{"text_format":"1","workbook":"xlsx","n_sheets":4,"sheets":["CEDULA-equidad","CEDULA- académico","CEDULA-vinculación","CEDULA -gestión"],"not_rendered":{"charts":0,"images":0,"macros":1,"external_links":0,"defined_names":5,"comments":2,"pivot_tables":0},"unopened":[],"bounds":{"document_bytes":16777216,"sheet_cells":100000,"rows_first":2000,"rows_last":500,"rows_between":2000,"halvings":0,"cell_chars":16384,"cell_head_chars":4096},"cells_cut":0,"cells_raw":0,"read":"whole","date_system":"1900"}

{"sheet":"CEDULA-equidad","index":0,"n_rows":123,"n_cols":175,"rows_kept":123,"cut":false,"hidden":false,"merged":[[0,1,0,26],[2,1,2,26],[4,1,4,26],[4,171,4,172],[12,1,12,26],[13,1,13,26],[14,4,14,8],[14,9,14,20],[15,9,15,14],[15,15,15,20],[16,9,16,11],[16,12,16,14],[16,15,16,17],[16,18,16,20],[16,21,16,23],[16,24,16,26],[17,9,17,11],[17,12,17,14],[17,15,17,17],[17,18,17,20],[17,21,17,23],[17,24,17,26],[18,4,18,8],[18,9,18,20],[19,9,19,14],[19,15,19,20],[20,9,20,11],[20,12,20,14],[20,15,20,17],[20,18,20,20],[20,21,20,23],[20,24,20,26],[21,9,21,11],[21,12,21,14],[21,15,21,17],[21,18,21,20],[21,21,21,23],[21,24,21,26],[22,2,22,26],[23,1,23,26],[24,5,24,16],[25,5,25,8],[25,9,25,12],[25,13,25,16],[26,5,26,6],[26,7,26,8],[26,9,26,10],[26,11,26,12],[26,13,26,14],[26,15,26,16],[27,17,27,23],[27,24,27,26],[28,1,28,2],[28,17,28,23],[28,24,28,26],[29,1,29,2],[29,17,29,23],[29,24,29,26],[30,1,30,2],[30,17,30,23],[30,24,30,26],[31,1,31,2],[31,17,31,23],[31,24,31,26],[32,1,32,2],[32,17,32,23],[32,24,32,26],[33,1,33,26],[34,1,34,26],[36,1,36,4],[36,12,36,26],[37,1,37,4],[37,12,37,26],[42,1,42,26],[44,1,44,26],[46,1,46,26],[54,1,54,26],[55,1,55,26],[56,4,56,8],[56,9,56,20],[57,9,57,14],[57,15,57,20],[58,9,58,11],[58,12,58,14],[58,15,58,17],[58,18,58,20],[58,21,58,23],[58,24,58,26],[59,9,59,11],[59,12,59,14],[59,15,59,17],[59,18,59,20],[59,21,59,23],[59,24,59,26],[60,4,60,8],[60,9,60,20],[61,9,61,14],[61,15,61,20],[62,9,62,11],[62,12,62,14],[62,15,62,17],[62,18,62,20],[62,21,62,23],[62,24,62,26],[63,9,63,11],[63,12,63,14],[63,15,63,17],[63,18,63,20],[63,21,63,23],[63,24,63,26],[64,2,64,26],[65,1,65,26],[66,5,66,16],[67,5,67,8],[67,9,67,12],[67,13,67,16],[68,5,68,6],[68,7,68,8],[68,9,68,10],[68,11,68,12],[68,13,68,14],[68,15,68,16],[69,17,69,23],[69,24,69,26],[70,1,70,2],[70,17,70,23],[70,24,70,26],[71,1,71,2],[71,17,71,23],[71,24,71,26],[72,1,72,2],[72,17,72,23],[72,24,72,26],[73,1,73,2],[73,17,73,23],[73,24,73,26],[74,1,74,2],[74,17,74,23],[74,24,74,26],[75,1,75,26],[76,1,76,26],[79,1,79,4],[79,15,79,26],[84,1,84,26],[86,1,86,26],[88,1,88,26],[96,1,96,26],[97,1,97,26],[98,4,98,8],[98,9,98,20],[99,9,99,14],[99,15,99,20],[100,9,100,11],[100,12,100,14],[100,15,100,17],[100,18,100,20],[100,21,100,23],[100,24,100,26],[101,9,101,11],[101,12,101,14],[101,15,101,17],[101,18,101,20],[101,21,101,23],[101,24,101,26],[102,4,102,8],[102,9,102,20],[103,9,103,14],[103,15,103,20],[104,9,104,11],[104,12,104,14],[104,15,104,17],[104,18,104,20],[104,21,104,23],[104,24,104,26],[105,9,105,11],[105,12,105,14],[105,15,105,17],[105,18,105,20],[105,21,105,23],[105,24,105,26],[106,2,106,26],[107,1,107,26],[108,5,108,16],[109,5,109,8],[109,9,109,12],[109,13,109,16],[110,5,110,6],[110,7,110,8],[110,9,110,10],[110,11,110,12],[110,13,110,14],[110,15,110,16],[111,17,111,23],[111,24,111,26],[112,1,112,2],[112,17,112,23],[112,24,112,26],[113,1,113,2],[113,17,113,23],[113,24,113,26],[114,1,114,2],[114,17,114,23],[114,24,114,26],[115,1,115,2],[115,17,115,23],[115,24,115,26],[116,1,116,2],[116,17,116,23],[116,24,116,26],[117,1,117,26],[118,1,118,26],[122,1,122,4],[122,15,122,26],[15,1,17,1],[19,1,21,1],[57,1,59,1],[61,1,63,1],[99,1,101,1],[103,1,105,1],[15,2,17,2],[19,2,21,2],[57,2,59,2],[61,2,63,2],[99,2,101,2],[103,2,105,2],[15,3,17,3],[19,3,21,3],[24,3,26,3],[57,3,59,3],[61,3,63,3],[66,3,68,3],[99,3,101,3],[103,3,105,3],[108,3,110,3],[24,4,26,4],[66,4,68,4],[108,4,110,4],[6,1,9,14],[6,15,7,22],[6,23,7,26],[8,15,9,22],[8,23,9,26],[14,21,15,26],[10,1,11,26],[15,4,17,8],[18,21,19,26],[19,4,21,8],[98,21,99,26],[90,15,91,22],[90,23,91,26],[92,15,93,22],[92,23,93,26],[90,1,93,14],[99,4,101,8],[24,17,26,23],[24,24,26,26],[24,1,26,2],[57,4,59,8],[56,21,57,26],[66,17,68,23],[66,24,68,26],[66,1,68,2],[108,1,110,2],[108,17,110,23],[108,24,110,26],[94,1,95,26],[60,21,61,26],[61,4,63,8],[102,21,103,26],[103,4,105,8],[52,1,53,26],[48,1,51,14],[48,15,49,22],[48,23,49,26],[50,15,51,22],[50,23,51,26]]}
[null,"PROGRAMA OPERATIVO ANUAL  2022"]
[]
[null,"FORMATO 01 \"DESARROLLO DE PROCESOS\""]
[]
[null,"UNIVERSIDAD: Universidad Tecnológica de Bahía de Banderas",null,null,null,null,null,null,null,null,null,null,null,null,null,null,null,null,null,null,null,null,null,null,null,null,null,null,null,null,null,null,null,null,null,null,null,null,null,null,null,null,null,null,null,null,null,null,null,null,null,null,null,null,null,null,null,null,null,null,null,null,null,null,null,null,null,null,null,null,null,null,null,null,null,null,null,null,null,null,null,null,null,null,null,null,null,null,null,null,null,null,null,null,null,null,null,null,null,null,null,null,null,null,null,null,null,null,null,null,null,null,null,null,null,null,null,null,null,null,null,null,null,null,null,null,null,null,null,null,null,null,null,null,null,null,null,null,null,null,null,null,null,null,null,null,null,null,null,null,null,null,null,null,null,null,null,null,null,null,null,null,null,null,null,null,null,null,null,null,null,"ACCESO Y PERMANENCIA DE LA EDUCACIÓN DE GRUPOS VULNERABLES"]
[null,null,null,null,null,null,null,null,null,null,null,null,null,null,null,null,null,null,null,null,null,null,null,null,null,null,null,null,null,null,null,null,null,null,null,null,null,null,null,null,null,null,null,null,null,null,null,null,null,null,null,null,null,null,null,null,null,null,null,null,null,null,null,null,null,null,null,null,null,null,null,null,null,null,null,null,null,null,null,null,null,null,null,null,null,null,null,null,null,null,null,null,null,null,null,null,null,null,null,null,null,null,null,null,null,null,null,null,null,null,null,null,null,null,null,null,null,null,null,null,null,null,null,null,null,null,null,null,null,null,null,null,null,null,null,null,null,null,null,null,null,null,null,null,null,null,null,null,null,null,null,null,null,null,null,null,null,null,null,null,null,null,null,null,null,null,null,null,null,null,null,"INDICADOR","FÓRMULA","unidad de medida","meta nacional"]
[null,"DENOMINACIÓN DEL PROCESO:\n    \nEQUIDAD + GRUPOS VULNERABLES (1)",null,null,null,null,null,null,null,null,null,null,null,null,null,"NUM. DE PROCESO",null,null,null,null,null,null,null,"TIPO DE PROCESO (3)               ",null,null,null,null,null,null,null,null,null,null,null,null,null,null,null,null,null,null,null,null,null,null,null,null,null,null,null,null,null,null,null,null,null,null,null,null,null,null,null,null,null,null,null,null,null,null,null,null,null,null,null,null,null,null,null,null,null,null,null,null,null,null,null,null,null,null,null,null,null,null,null,null,null,null,null,null,null,null,null,null,null,null,null,null,null,null,null,null,null,null,null,null,null,null,null,null,null,null,null,null,null,null,null,null,null,null,null,null,null,null,null,null,null,null,null,null,null,null,null,null,null,null,null,null,null,null,null,null,null,null,null,null,null,null,null,null,null,null,null,null,null,null,null,null,null,null,null,"Número de alumnos de origen indígena atendidos en la institución","(Número de alumnos de origen indígena en el año t/número total de alumnos en el año t)*100","Alumnos",9000]
[null,null,null,null,null,null,null,null,null,null,null,null,null,null,null,null,null,null,null,null,null,null,null,null,null,null,null,null,null,null,null,null,null,null,null,null,null,null,null,null,null,null,null,null,null,null,null,null,null,null,null,null,null,null,null,null,null,null,null,null,null,null,null,null,null,null,null,null,null,null,null,null,null,null,null,null,null,null,null,null,null,null,null,null,null,null,null,null,null,null,null,null,null,null,null,null,null,null,null,null,null,null,null,null,null,null,null,null,null,null,null,null,null,null,null,null,null,null,null,null,null,null,null,null,null,null,null,null,null,null,null,null,null,null,null,null,null,null,null,null,null,null,null,null,null,null,null,null,null,null,null,null,null,null,null,null,null,null,null,null,null,null,null,null,null,null,null,null,null,null,null,"Porcentaje de alumnos de origen indígena becados","(Número de alumnos de origen indígena becados/ número de alumnos)*100","Alumnos",56]
[null,null,null,null,null,null,null,null,null,null,null,null,null,null,null,"1   ",null,null,null,null,null,null,null,"Equidad de Género",null,null,null,null,null,null,null,null,null,null,null,null,null,null,null,null,null,null,null,null,null,null,null,null,null,null,null,null,null,null,null,null,null,null,null,null,null,null,null,null,null,null,null,null,null,null,null,null,null,null,null,null,null,null,null,null,null,null,null,null,null,null,null,null,null,null,null,null,null,null,null,null,null,null,null,null,null,null,null,null,null,null,null,null,null,null,null,null,null,null,null,null,null,null,null,null,null,null,null,null,null,null,null,null,null,null,null,null,null,null,null,null,null,null,null,null,null,null,null,null,null,null,null,null,null,null,null,null,null,null,null,null,null,null,null,null,null,null,null,null,null,null,null,null,null,null,null,"ATENCIÓN EDUCATIVA DE LAS PERSONAS CON DISCAPACIDAD"]
[null,null,null,null,null,null,null,null,null,null,null,null,null,null,null,null,null,null,null,null,null,null,null,null,null,null,null,null,null,null,null,null,null,null,null,null,null,null,null,null,null,null,null,null,null,null,null,null,null,null,null,null,null,null,null,null,null,null,null,null,null,null,null,null,null,null,null,null,null,null,null,null,null,null,null,null,null,null,null,null,null,null,null,null,null,null,null,null,null,null,null,null,null,null,null,null,null,null,null,null,null,null,null,null,null,null,null,null,null,null,null,null,null,null,null,null,null,null,null,null,null,null,null,null,null,null,null,null,null,null,null,null,null,null,null,null,null,null,null,null,null,null,null,null,null,null,null,null,null,null,null,null,null,null,null,null,null,null,null,null,null,null,null,null,null,null,null,null,null,null,null,"INDICADOR","FÓRMULA","unidad de medida","meta nacional"]
[null,"ÁREA RESPONSABLE ( 4 )",null,null,null,null,null,null,null,null,null,null,null,null,null,null,null,null,null,null,null,null,null,null,null,null,null,null,null,null,null,null,null,null,null,null,null,null,null,null,null,null,null,null,null,null,null,null,null,null,null,null,null,null,null,null,null,null,null,null,null,null,null,null,null,null,null,null,null,null,null,null,null,null,null,null,null,null,null,null,null,null,null,null,null,null,null,null,null,null,null,null,null,null,null,null,null,null,null,null,null,null,null,null,null,null,null,null,null,null,null,null,null,null,null,null,null,null,null,null,null,null,null,null,null,null,null,null,null,null,null,null,null,null,null,null,null,null,null,null,null,null,null,null,null,null,null,null,null,null,null,null,null,null,null,null,null,null,null,null,null,null,null,null,null,null,null,null,null,null,null,"Número de alumnos atendidos  con algun tipo de dicapacidad","(Número de alumnos con algun tipo de  discapacidad en el año t/número total de estudiantes en el año t)*100","Alumnos",1745]
[null,null,null,null,null,null,null,null,null,null,null,null,null,null,null,null,null,null,null,null,null,null,null,null,null,null,null,null,null,null,null,null,null,null,null,null,null,null,null,null,null,null,null,null,null,null,null,null,null,null,null,null,null,null,null,null,null,null,null,null,null,null,null,null,null,null,null,null,null,null,null,null,null,null,null,null,null,null,null,null,null,null,null,null,null,null,null,null,null,null,null,null,null,null,null,null,null,null,null,null,null,null,null,null,null,null,null,null,null,null,null,null,null,null,null,null,null,null,null,null,null,null,null,null,null,null,null,null,null,null,null,null,null,null,null,null,null,null,null,null,null,null,null,null,null,null,null,null,null,null,null,null,null,null,null,null,null,null,null,null,null,null,null,null,null,null,null,null,null,null,null,"Acondicionamiento de espacios para personas con discapacidad","(Número de Espacios para personas con discapacidad acondicionados/número de espacios para personas con discapacidad programados para acondicionar)*100","Espacios",101]
[null,"SERVICIOS ESCOLARES ",null,null,null,null,null,null,null,null,null,null,null,null,null,null,null,null,null,null,null,null,null,null,null,null,null,null,null,null,null,null,null,null,null,null,null,null,null,null,null,null,null,null,null,null,null,null,null,null,null,null,null,null,null,null,null,null,null,null,null,null,null,null,null,null,null,null,null,null,null,null,null,null,null,null,null,null,null,null,null,null,null,null,null,null,null,null,null,null,null,null,null,null,null,null,null,null,null,null,null,null,null,null,null,null,null,null,null,null,null,null,null,null,null,null,null,null,null,null,null,null,null,null,null,null,null,null,null,null,null,null,null,null,null,null,null,null,null,null,null,null,null,null,null,null,null,null,null,null,null,null,null,null,null,null,null,null,null,null,null,null,null,null,null,null,null,null,null,null,null,"La Institución forma parte de la Red Nacional Incluyente para personas con discapacidad","NOTA: Poner sí o no únicamente\n","certificación",30]
[null,"INDICADORES  ( 5 )",null,null,null,null,null,null,null,null,null,null,null,null,null,null,null,null,null,null,null,null,null,null,null,null,null,null,null,null,null,null,null,null,null,null,null,null,null,null,null,null,null,null,null,null,null,null,null,null,null,null,null,null,null,null,null,null,null,null,null,null,null,null,null,null,null,null,null,null,null,null,null,null,null,null,null,null,null,null,null,null,null,null,null,null,null,null,null,null,null,null,null,null,null,null,null,null,null,null,null,null,null,null,null,null,null,null,null,null,null,null,null,null,null,null,null,null,null,null,null,null,null,null,null,null,null,null,null,null,null,null,null,null,null,null,null,null,null,null,null,null,null,null,null,null,null,null,null,null,null,null,null,null,null,null,null,null,null,null,null,null,null,null,null,null,null,null,null,null,null,"INDICADOR","FÓRMULA","unidad de medida","meta nacional"]
[null,"NOMBRE DEL INDICADOR (5.1)","FORMULA","UNIDAD DE MEDIDA","META INSTITUCIONAL A 2024 \nPROGRAMA INSTITUCIONAL DE DESARROLLO DE LA UNIVERSIDAD",null,null,null,null,"CONTEXTO ACTUAL Y A FUTURO DEL INDICADOR (5.2)",null,null,null,null,null,null,null,null,null,null,null,"Total alcanzado (Se reporta en el tercer cuatrimestre) (5.3)",null,null,null,null,null,null,null,null,null,null,null,null,null,null,null,null,null,null,null,null,null,null,null,null,null,null,null,null,null,null,null,null,null,null,null,null,null,null,null,null,null,null,null,null,null,null,null,null,null,null,null,null,null,null,null,null,null,null,null,null,null,null,null,null,null,null,null,null,null,null,null,null,null,null,null,null,null,null,null,null,null,null,null,null,null,null,null,null,null,null,null,null,null,null,null,null,null,null,null,null,null,null,null,null,null,null,null,null,null,null,null,null,null,null,null,null,null,null,null,null,null,null,null,null,null,null,null,null,null,null,null,null,null,null,null,null,null,null,null,null,null,null,null,null,null,null,null,null,null,"Cursos impartidos sobre equidad de género","Cursos de género impartidos en el año/Total de cursos impartidos por la institución*100","Cursos",586]
[null,"Indicador: Porcentaje de estudiantes mujeres atendidas en la institución",{"$f":"(IF(B16=\"Cursos impartidos sobre equidad de género\",FQ15,IF(B16=\"Indicador: Porcentaje de estudiantes mujeres atendidas en la institución\",FQ16,IF(B16=\"Indicador: Porcentaje de estudiantes mujeres becadas\",FQ17,IF(B16=\"Certificación en el  Modelo de Equidad de Género (MEG)\",FQ18)))))","v":"(Número de estudiantes mujeres atendidas en la institución/ número total de estudiantes en la institución)*100"},{"$f":"(IF(B16=\"Cursos impartidos sobre equidad de género\",FR15,IF(B16=\"Indicador: Porcentaje de estudiantes mujeres atendidas en la institución\",FR16,IF(B16=\"Indicador: Porcentaje de estudiantes mujeres becadas\",FR17,IF(B16=\"Certificación en el  Modelo de Equidad de Género (MEG)\",FR18)))))","v":"Mujeres atendidas"},"Líneas estratégicas del PIDE  del SUT o SUP 2013-2018 al que se da atención.   \nDesarrollar programas para la retención escolar de estudiantes en el ejercicio de su maternidad y paternidad.",null,null,null,null,2021,null,null,null,null,null,2022,null,null,null,null,null,null,null,null,null,null,null,null,null,null,null,null,null,null,null,null,null,null,null,null,null,null,null,null,null,null,null,null,null,null,null,null,null,null,null,null,null,null,null,null,null,null,null,null,null,null,null,null,null,null,null,null,null,null,null,null,null,null,null,null,null,null,null,null,null,null,null,null,null,null,null,null,null,null,null,null,null,null,null,null,null,null,null,null,null,null,null,null,null,null,null,null,null,null,null,null,null,null,null,null,null,null,null,null,null,null,null,null,null,null,null,null,null,null,null,null,null,null,null,null,null,null,null,null,null,null,null,null,null,null,null,null,null,null,null,null,null,null,null,null,null,null,null,null,null,null,null,null,null,null,null,"Indicador: Porcentaje de estudiantes mujeres atendidas en la institución","(Número de estudiantes mujeres atendidas en la institución/ número total de estudiantes en la institución)*100","Mujeres atendidas",45]
[null,null,null,null,null,null,null,null,null,"Número actual",null,null,"Porcentaje actual",null,null,"Número a lograr",null,null,"Porcentaje a lograr",null,null,"Número alcanzado ",null,null,"Porcentaje alcanzado",null,null,null,null,null,null,null,null,null,null,null,null,null,null,null,null,null,null,null,null,null,null,null,null,null,null,null,null,null,null,null,null,null,null,null,null,null,null,null,null,null,null,null,null,null,null,null,null,null,null,null,null,null,null,null,null,null,null,null,null,null,null,null,null,null,null,null,null,null,null,null,null,null,null,null,null,null,null,null,null,null,null,null,null,null,null,null,null,null,null,null,null,null,null,null,null,null,null,null,null,null,null,null,null,null,null,null,null,null,null,null,null,null,null,null,null,null,null,null,null,null,null,null,null,null,null,null,null,null,null,null,null,null,null,null,null,null,null,null,null,null,null,null,null,null,null,"Indicador: Porcentaje de estudiantes mujeres becadas","(Número de estudiantes mujeres becadas/ número total de estudiantes mujeres en la institución)*100","Mujeres becadas",54]
[null,null,null,null,null,null,null,null,null,586,null,null,{"$f":"J18/1175*100","v":49.8723404255319},null,null,600,null,null,{"$f":"P18/1500*100","v":40},null,null,null,null,null,null,null,null,null,null,null,null,null,null,null,null,null,null,null,null,null,null,null,null,null,null,null,null,null,null,null,null,null,null,null,null,null,null,null,null,null,null,null,null,null,null,null,null,null,null,null,null,null,null,null,null,null,null,null,null,null,null,null,null,null,null,null,null,null,null,null,null,null,null,null,null,null,null,null,null,null,null,null,null,null,null,null,null,null,null,null,null,null,null,null,null,null,null,null,null,null,null,null,null,null,null,null,null,null,null,null,null,null,null,null,null,null,null,null,null,null,null,null,null,null,null,null,null,null,null,null,null,null,null,null,null,null,null,null,null,null,null,null,null,null,null,null,null,null,null,null,null,"Certificación en el  Modelo de Equidad de Género (MEG)","Certificación en el  Modelo de Equidad de Género (MEG) (NOTA: Poner sí o no únicamente)","certificación",90]
[null,"NOMBRE DEL INDICADOR (5.1)","FORMULA","UNIDAD DE MEDIDA","META INSTITUCIONAL A 2024 \nPROGRAMA INSTITUCIONAL DE DESARROLLO DE LA UNIVERSIDAD",null,null,null,null,"CONTEXTO ACTUAL Y A FUTURO DEL INDICADOR (5.2)",null,null,null,null,null,null,null,null,null,null,null,"Total alcanzado (Se reporta en el tercer cuatrimestre) (5.3)",null,null,null,null,null,null,null,null,null,null,null,null,null,null,null,null,null,null,null,null,null,null,null,null,null,null,null,null,null,null,null,null,null,null,null,null,null,null,null,null,null,null,null,null,null,null,null,null,null,null,null,null,null,null,null,null,null,null,null,null,null,null,null,null,null,null,null,null,null,null,null,null,null,null,null,null,null,null,null,null,null,null,null,null,null,null,null,null,null,null,null,null,null,null,null,null,null,null,null,null,null,null,null,null,null,null,null,null,null,null,null,null,null,null,null,null,null,null,null,null,null,null,null,null,null,null,null,null,null,null,null,null,null,null,null,null,null,null,null,null,null,null,null,null,null,null,null,null,null,"TIPO DE  PROCESO"]
[null,"Indicador: Porcentaje de estudiantes mujeres becadas",{"$f":"(IF(B20=\"Cursos impartidos sobre equidad de género\",FQ15,IF(B20=\"Indicador: Porcentaje de estudiantes mujeres atendidas en la institución\",FQ16,IF(B20=\"Indicador: Porcentaje de estudiantes mujeres becadas\",FQ17,IF(B20=\"Certificación en el  Modelo de Equidad de Género (MEG)\",FQ18)))))","v":"(Número de estudiantes mujeres becadas/ número total de estudiantes mujeres en la institución)*100"},{"$f":"(IF(B20=\"Cursos impartidos sobre equidad de género\",FR15,IF(B20=\"Indicador: Porcentaje de estudiantes mujeres atendidas en la institución\",FR16,IF(B20=\"Indicador: Porcentaje de estudiantes mujeres becadas\",FR17,IF(B20=\"Certificación en el  Modelo de Equidad de Género (MEG)\",FR18)))))","v":"Mujeres becadas"},"Líneas estratégicas del PIDE  del SUT o SUP 2013-2018 al que se da atención.   \nDesarrollar programas para la retención escolar de estudiantes en el ejercicio de su maternidad y paternidad.",null,null,null,null,2021,null,null,null,null,null,2022,null,null,null,null,null,null,null,null,null,null,null,null,null,null,null,null,null,null,null,null,null,null,null,null,null,null,null,null,null,null,null,null,null,null,null,null,null,null,null,null,null,null,null,null,null,null,null,null,null,null,null,null,null,null,null,null,null,null,null,null,null,null,null,null,null,null,null,null,null,null,null,null,null,null,null,null,null,null,null,null,null,null,null,null,null,null,null,null,null,null,null,null,null,null,null,null,null,null,null,null,null,null,null,null,null,null,null,null,null,null,null,null,null,null,null,null,null,null,null,null,null,null,null,null,null,null,null,null,null,null,null,null,null,null,null,null,null,null,null,null,null,null,null,null,null,null,null,null,null,null,null,null,null,null,null,"Eficiencia"]
[null,null,null,null,null,null,null,null,null,"Número actual",null,null,"Porcentaje actual",null,null,"Número a lograr",null,null,"Porcentaje a lograr",null,null,"Número alcanzado ",null,null,"Porcentaje alcanzado",null,null,null,null,null,null,null,null,null,null,null,null,null,null,null,null,null,null,null,null,null,null,null,null,null,null,null,null,null,null,null,null,null,null,null,null,null,null,null,null,null,null,null,null,null,null,null,null,null,null,null,null,null,null,null,null,null,null,null,null,null,null,null,null,null,null,null,null,null,null,null,null,null,null,null,null,null,null,null,null,null,null,null,null,null,null,null,null,null,null,null,null,null,null,null,null,null,null,null,null,null,null,null,null,null,null,null,null,null,null,null,null,null,null,null,null,null,null,null,null,null,null,null,null,null,null,null,null,null,null,null,null,null,null,null,null,null,null,null,null,null,null,null,null,null,null,"Eficacia"]
[null,null,null,null,null,null,null,null,null,172,null,null,{"$f":"J22/J18*100","v":29.3515358361775},null,null,185,null,null,{"$f":"P22/P18*100","v":30.8333333333333},null,null,null,null,null,null,null,null,null,null,null,null,null,null,null,null,null,null,null,null,null,null,null,null,null,null,null,null,null,null,null,null,null,null,null,null,null,null,null,null,null,null,null,null,null,null,null,null,null,null,null,null,null,null,null,null,null,null,null,null,null,null,null,null,null,null,null,null,null,null,null,null,null,null,null,null,null,null,null,null,null,null,null,null,null,null,null,null,null,null,null,null,null,null,null,null,null,null,null,null,null,null,null,null,null,null,null,null,null,null,null,null,null,null,null,null,null,null,null,null,null,null,null,null,null,null,null,null,null,null,null,null,null,null,null,null,null,null,null,null,null,null,null,null,null,null,null,null,null,null,null,null,"Pertinencia"]
[null,"OBJETIVO AL QUE ATIENDE DE ACUERDO AL PSE 2020-2024    (6)","6.1.- Garantizar el derecho de la población en México a una educación equitativa,\ninclusiva, intercultural e integral, que tenga como eje principal el interés superior\nde las niñas, niños, adolescentes y jóvenes.",null,null,null,null,null,null,null,null,null,null,null,null,null,null,null,null,null,null,null,null,null,null,null,null,null,null,null,null,null,null,null,null,null,null,null,null,null,null,null,null,null,null,null,null,null,null,null,null,null,null,null,null,null,null,null,null,null,null,null,null,null,null,null,null,null,null,null,null,null,null,null,null,null,null,null,null,null,null,null,null,null,null,null,null,null,null,null,null,null,null,null,null,null,null,null,null,null,null,null,null,null,null,null,null,null,null,null,null,null,null,null,null,null,null,null,null,null,null,null,null,null,null,null,null,null,null,null,null,null,null,null,null,null,null,null,null,null,null,null,null,null,null,null,null,null,null,null,null,null,null,null,null,null,null,null,null,null,null,null,null,null,null,null,null,null,null,null,null,"Vinculación"]
[null,"CALENDARIZACIÓN Y SEGUIMIENTO DE LAS PRINCIPALES ACTIVIDADES  (7)",null,null,null,null,null,null,null,null,null,null,null,null,null,null,null,null,null,null,null,null,null,null,null,null,null,null,null,null,null,null,null,null,null,null,null,null,null,null,null,null,null,null,null,null,null,null,null,null,null,null,null,null,null,null,null,null,null,null,null,null,null,null,null,null,null,null,null,null,null,null,null,null,null,null,null,null,null,null,null,null,null,null,null,null,null,null,null,null,null,null,null,null,null,null,null,null,null,null,null,null,null,null,null,null,null,null,null,null,null,null,null,null,null,null,null,null,null,null,null,null,null,null,null,null,null,null,null,null,null,null,null,null,null,null,null,null,null,null,null,null,null,null,null,null,null,null,null,null,null,null,null,null,null,null,null,null,null,null,null,null,null,null,null,null,null,null,null,null,null,"Equidad de Género"]
[null,"ACTIVIDADES",null,"UNIDAD DE MEDIDA","META  ANUAL","CALENDARIO 2022                                 CUATRIMESTRAL",null,null,null,null,null,null,null,null,null,null,null,"JUSTIFICACIÓN DE LAS DESVIACIONES POSITIVAS O NEGATIVAS (8)",null,null,null,null,null,null,"AREA\nEJECUTORA (9)"]
[null,null,null,null,null,1,null,null,null,2,null,null,null,3]
[null,null,null,null,null,"PROG",null,"ALC",null,"PROG",null,"ALC",null,"PROG",null,"ALC"]
[null,null,null,null,null,"#","%","#","%","#","%","#","%","#","%","#","%"]
[null,"Aplicación de examen de diagnóstico",null,"Exani II/Examen Academia",2,null,null,null,null,2,100]
[null,"Inscripción de alumnos de nuevo ingreso para TSU y alumnos de continuidad de estudios",null,"Inscripción",2,null,null,null,null,1,50,null,null,1,50]
[null,"Difusión de becas a toda la comunidad estudiantil ",null,"Convocatorias",6,2,33.33,null,null,2,66.66,null,null,6,100]
[null,"Validaciones de documentos",null,"Periodo",2,1,50,null,null,1,100]
[null,"Credencialización",null,"Periodo",4,1,25,null,null,1,50,null,null,2,100]
[null,"DESCRIPCIÓN DEL ALCANCE DEL INDICADOR Y EFECTO SOCIOECONOMICO    (10)"]
[null,"Mantener la equidad de genero en la institución mediante la promoción de becas a toda la comunidad estudiantil,  sin distinción; con la finalidad de incrementar el número de mujeres que cuentan con educación superior en nuestra Región."]
[]
[null,"Mtra. Carmina Yadira Regalado Mardueño",null,null,null,null,null,null,null,null,null,null,"LIC. María Guadalupe Ambriz Meza"]
[null,"NOMBRE Y FIRMA DEL RECTOR",null,null,null,null,null,null,null,null,null,null,"NOMBRE Y FIRMA DEL RESPONSABLE O COORDINADOR DEL PROCESO"]
[]
[]
[]
[]
[null,"PROGRAMA OPERATIVO ANUAL  2022"]
[]
[null,"FORMATO 01 \"DESARROLLO DE PROCESOS\""]
[]
[null,"UNIVERSIDAD:  Universidad Tecnológica de Bahía de Banderas"]
[]
[null,"DENOMINACIÓN DEL PROCESO:\n    \nEQUIDAD + GRUPOS VULNERABLES  (1)",null,null,null,null,null,null,null,null,null,null,null,null,null,"NUM. DE PROCESO",null,null,null,null,null,null,null,"TIPO DE PROCESO (3)                "]
[]
[null,null,null,null,null,null,null,null,null,null,null,null,null,null,null,"1      (2)",null,null,null,null,null,null,null,"Eficiencia"]
[]
[null,"ÁREA RESPONSABLE( 4 )"]
[]
[]
[null,"INDICADORES  ( 5 )"]
[null,"NOMBRE DEL INDICADOR (5.1)","FORMULA","UNIDAD DE MEDIDA","META INSTITUCIONAL A 2024 \nPROGRAMA INSTITUCIONAL DE DESARROLLO DE LA UNIVERSIDAD",null,null,null,null,"CONTEXTO ACTUAL Y A FUTURO DEL INDICADOR (5.2)",null,null,null,null,null,null,null,null,null,null,null,"Total alcanzado (Se reporta en el tercer cuatrimestre) (5.3)"]
[null,"La Institución forma parte de la Red Nacional Incluyente para personas con discapacidad",{"$f":"(IF(B58=\"Número de alumnos atendidos  con algun tipo de dicapacidad\",FQ11,IF(B58=\"Acondicionamiento de espacios para personas con discapacidad\",FQ12,IF(B58=\"La Institución forma parte de la Red Nacional Incluyente para personas con discapacidad\",FQ13,IF(B58=\"Personal de la UT con alguna discapacidad\",#REF!)))))","v":"NOTA: Poner sí o no únicamente\n"},{"$f":"(IF(B58=\"Número de alumnos atendidos  con algun tipo de dicapacidad\",FR11,IF(B58=\"Acondicionamiento de espacios para personas con discapacidad\",FR12,IF(B58=\"La Institución forma parte de la Red Nacional Incluyente para personas con discapacidad\",FR13,IF(B58=\"Personal de la UT con alguna discapacidad\",#REF!)))))","v":"certificación"},null,null,null,null,null,2021,null,null,null,null,null,2022]
[null,null,null,null,null,null,null,null,null,"Número actual",null,null,"Porcentaje actual",null,null,"Número a lograr",null,null,"Porcentaje a lograr",null,null,"Número alcanzado ",null,null,"Porcentaje alcanzado"]
[]
[null,"NOMBRE DEL INDICADOR (5.1)","FORMULA","UNIDAD DE MEDIDA","META INSTITUCIONAL A 2024 \nPROGRAMA INSTITUCIONAL DE DESARROLLO DE LA UNIVERSIDAD",null,null,null,null,"CONTEXTO ACTUAL Y A FUTURO DEL INDICADOR (5.2)",null,null,null,null,null,null,null,null,null,null,null,"Total alcanzado (Se reporta en el tercer cuatrimestre) (5.3)"]
[null,"La Institución forma parte de la Red Nacional Incluyente para personas con discapacidad",{"$f":"(IF(B62=\"Número de alumnos atendidos  con algun tipo de dicapacidad\",FQ11,IF(B62=\"Acondicionamiento de espacios para personas con discapacidad\",FQ12,IF(B62=\"La Institución forma parte de la Red Nacional Incluyente para personas con discapacidad\",FQ13,IF(B62=\"Personal de la UT con alguna discapacidad\",#REF!)))))","v":"NOTA: Poner sí o no únicamente\n"},{"$f":"(IF(B62=\"Número de alumnos atendidos  con algun tipo de dicapacidad\",FR11,IF(B62=\"Acondicionamiento de espacios para personas con discapacidad\",FR12,IF(B62=\"La Institución forma parte de la Red Nacional Incluyente para personas con discapacidad\",FR13,IF(B62=\"Personal de la UT con alguna discapacidad\",#REF!)))))","v":"certificación"},null,null,null,null,null,2021,null,null,null,null,null,2022]
[null,null,null,null,null,null,null,null,null,"Número actual",null,null,"Porcentaje actual",null,null,"Número a lograr",null,null,"Porcentaje a lograr",null,null,"Número alcanzado ",null,null,"Porcentaje alcanzado"]
[]
[null,"OBJETIVO AL QUE ATIENDE DE ACUERDO AL PSE 2020-2024    (6)"]
[null,"CALENDARIZACIÓN Y SEGUIMIENTO DE LAS PRINCIPALES ACTIVIDADES  (7)"]
[null,"ACTIVIDADES",null,"UNIDAD DE MEDIDA","META  ANUAL","CALENDARIO 2022                                 CUATRIMESTRAL",null,null,null,null,null,null,null,null,null,null,null,"JUSTIFICACIÓN DE LAS DESVIACIONES POSITIVAS O NEGATIVAS (8)",null,null,null,null,null,null,"AREA\nEJECUTORA (9)"]
[null,null,null,null,null,1,null,null,null,2,null,null,null,3]
[null,null,null,null,null,"PROG",null,"ALC",null,"PROG",null,"ALC",null,"PROG",null,"ALC"]
[null,null,null,null,null,"#","%","#","%","#","%","#","%","#","%","#","%"]
[]
[]
[]
[]
[]
[null,"DESCRIPCIÓN DEL ALCANCE DEL INDICADOR Y EFECTO SOCIOECONOMICO    (10)"]
[]
[]
[]
[null,"NOBRE Y FIRMA DEL RECTOR",null,null,null,null,null,null,null,null,null,null,null,null,null,"NOMBRE Y FIRMA DEL RESPONSABLE O COORDINADOR DEL PROCESO"]
[]
[]
[]
[]
[null,"PROGRAMA OPERATIVO ANUAL  2022"]
[]
[null,"FORMATO 01 \"DESARROLLO DE PROCESOS\""]
[]
[null,"UNIVERSIDAD: Universidad Tecnológica de Bahía de Banderas"]
[]
[null,"DENOMINACIÓN DEL PROCESO:\n    \nEQUIDAD + GRUPOS VULNERABLES   (1)",null,null,null,null,null,null,null,null,null,null,null,null,null,"NUM. DE PRCESO",null,null,null,null,null,null,null,"TIPO DE PROCESO (3)               "]
[]
[null,null,null,null,null,null,null,null,null,null,null,null,null,null,null,"1      (2)",null,null,null,null,null,null,null,"Eficiencia"]
[]
[null,"ÁREA RESPONSABLE( 4 )"]
[]
[]
[null,"INDICADORES  ( 5 )"]
[null,"NOMBRE DEL INDICADOR (5.1)","FORMULA","UNIDAD DE MEDIDA","META INSTITUCIONAL A 2024 \nPROGRAMA INSTITUCIONAL DE DESARROLLO DE LA UNIVERSIDAD",null,null,null,null,"CONTEXTO ACTUAL Y A FUTURO DEL INDICADOR (5.2)",null,null,null,null,null,null,null,null,null,null,null,"Total alcanzado (Se reporta en el tercer cuatrimestre) (5.3)"]
[null,"Número de alumnos de origen indígena atendidos en la institución",{"$f":"(IF(B100=\"Número de alumnos de origen indígena atendidos en la institución\",FQ7,IF(B100=\"Porcentaje de alumnos de origen indígena becados\",FQ8)))","v":"(Número de alumnos de origen indígena en el año t/número total de alumnos en el año t)*100"},{"$f":"(IF(B100=\"Número de alumnos de origen indígena atendidos en la institución\",FR7,IF(B100=\"Porcentaje de alumnos de origen indígena becados\",FR8)))","v":"Alumnos"},null,null,null,null,null,2021,null,null,null,null,null,2022]
[null,null,null,null,null,null,null,null,null,"Número actual",null,null,"Porcentaje actual",null,null,"Número a lograr",null,null,"Porcentaje a lograr",null,null,"Número alcanzado ",null,null,"Porcentaje alcanzado"]
[]
[null,"NOMBRE DEL INDICADOR (5.1)","FORMULA","UNIDAD DE MEDIDA","META INSTITUCIONAL A 2024 \nPROGRAMA INSTITUCIONAL DE DESARROLLO DE LA UNIVERSIDAD",null,null,null,null,"CONTEXTO ACTUAL Y A FUTURO DEL INDICADOR (5.2)",null,null,null,null,null,null,null,null,null,null,null,"Total alcanzado (Se reporta en el tercer cuatrimestre) (5.3)"]
[null,"Número de alumnos de origen indígena atendidos en la institución",{"$f":"(IF(B104=\"Número de alumnos de origen indígena atendidos en la institución\",FQ7,IF(B104=\"Porcentaje de alumnos de origen indígena becados\",FQ8)))","v":"(Número de alumnos de origen indígena en el año t/número total de alumnos en el año t)*100"},{"$f":"(IF(B104=\"Número de alumnos de origen indígena atendidos en la institución\",FR7,IF(B104=\"Porcentaje de alumnos de origen indígena becados\",FR8)))","v":"Alumnos"},null,null,null,null,null,2021,null,null,null,null,null,2022]
[null,null,null,null,null,null,null,null,null,"Número actual",null,null,"Porcentaje actual",null,null,"Número a lograr",null,null,"Porcentaje a lograr",null,null,"Número alcanzado ",null,null,"Porcentaje alcanzado"]
[]
[null,"OBJETIVO AL QUE ATIENDE DE ACUERDO AL PSE 2020-2024    (6)"]
[null,"CALENDARIZACIÓN Y SEGUIMIENTO DE LAS PRINCIPALES ACTIVIDADES  (7)"]
[null,"ACTIVIDADES",null,"UNIDAD DE MEDIDA","META  ANUAL","CALENDARIO 2022                                    CUATRIMESTRAL",null,null,null,null,null,null,null,null,null,null,null,"JUSTIFICACIÓN DE LAS DESVIACIONES POSITIVAS O NEGATIVAS (8)",null,null,null,null,null,null,"AREA\nEJECUTORA (9)"]
[null,null,null,null,null,1,null,null,null,2,null,null,null,3]
[null,null,null,null,null,"PROG",null,"ALC",null,"PROG",null,"ALC",null,"PROG",null,"ALC"]
[null,null,null,null,null,"#","%","#","%","#","%","#","%","#","%","#","%"]
[]
[]
[]
[]
[]
[null,"DESCRIPCIÓN DEL ALCANCE DEL INDICADOR Y EFECTO SOCIOECONOMICO    (10)"]
[]
[]
[]
[]
[null,"NOBRE Y FIRMA DEL RECTOR",null,null,null,null,null,null,null,null,null,null,null,null,null,"NOMBRE Y FIRMA DEL RESPONSABLE O COORDINADOR DEL PROCESO"]

{"sheet":"CEDULA- académico","index":1,"n_rows":176,"n_cols":174,"rows_kept":176,"cut":false,"hidden":false,"merged":[[0,1,0,26],[2,1,2,26],[4,1,4,26],[6,170,6,171],[12,1,12,26],[13,1,13,26],[14,4,14,8],[14,9,14,20],[15,9,15,14],[15,15,15,20],[16,9,16,11],[16,12,16,14],[16,15,16,17],[16,18,16,20],[16,21,16,23],[16,24,16,26],[20,4,20,8],[20,9,20,20],[21,9,21,14],[21,15,21,20],[22,9,22,11],[22,12,22,14],[22,15,22,17],[22,18,22,20],[22,21,22,23],[22,24,22,26],[28,1,28,26],[29,6,29,17],[30,6,30,9],[30,10,30,13],[30,14,30,17],[31,6,31,7],[31,8,31,9],[31,10,31,11],[31,12,31,13],[31,14,31,15],[31,16,31,17],[32,1,32,2],[32,4,32,5],[32,18,32,24],[32,25,32,26],[33,1,33,2],[33,4,33,5],[33,18,33,24],[33,25,33,26],[34,1,34,2],[34,4,34,5],[34,18,34,24],[34,25,34,26],[35,1,35,2],[35,4,35,5],[35,18,35,24],[35,25,35,26],[36,1,36,2],[36,4,36,5],[36,18,36,24],[36,25,36,26],[37,1,37,2],[37,4,37,5],[37,18,37,24],[37,25,37,26],[38,1,38,26],[39,1,39,26],[41,1,41,4],[41,15,41,26],[42,1,42,4],[42,16,42,26],[47,1,47,26],[49,1,49,26],[51,1,51,26],[59,1,59,26],[60,1,60,26],[61,4,61,8],[61,9,61,20],[62,9,62,14],[62,15,62,20],[63,9,63,11],[63,12,63,14],[63,15,63,17],[63,18,63,20],[63,21,63,23],[63,24,63,26],[64,9,64,11],[64,12,64,14],[64,15,64,17],[64,18,64,20],[64,21,64,23],[64,24,64,26],[65,4,65,8],[65,9,65,20],[66,9,66,14],[66,15,66,20],[67,9,67,11],[67,12,67,14],[67,15,67,17],[67,18,67,20],[67,21,67,23],[67,24,67,26],[68,9,68,11],[68,12,68,14],[68,15,68,17],[68,18,68,20],[68,21,68,23],[68,24,68,26],[69,1,69,2],[69,3,69,26],[70,1,70,26],[71,6,71,17],[72,6,72,9],[72,10,72,13],[72,14,72,17],[73,6,73,7],[73,8,73,9],[73,10,73,11],[73,12,73,13],[73,14,73,15],[73,16,73,17],[74,1,74,2],[74,4,74,5],[74,18,74,24],[74,25,74,26],[75,1,75,2],[75,4,75,5],[75,18,75,24],[75,25,75,26],[76,1,76,2],[76,4,76,5],[76,18,76,24],[76,25,76,26],[77,1,77,2],[77,4,77,5],[77,18,77,24],[77,25,77,26],[78,1,78,2],[78,4,78,5],[78,18,78,24],[78,25,78,26],[79,1,79,2],[79,4,79,5],[79,18,79,24],[79,25,79,26],[80,1,80,26],[81,1,81,26],[83,1,83,4],[83,15,83,26],[84,1,84,4],[84,16,84,26],[89,1,89,26],[90,1,90,26],[92,1,92,26],[100,1,100,26],[101,1,101,26],[102,4,102,8],[102,9,102,20],[103,9,103,14],[103,15,103,20],[104,9,104,11],[104,12,104,14],[104,15,104,17],[104,18,104,20],[104,21,104,23],[104,24,104,26],[107,4,107,8],[107,9,107,20],[108,9,108,14],[108,15,108,20],[109,9,109,11],[109,12,109,14],[109,15,109,17],[109,18,109,20],[109,21,109,23],[109,24,109,26],[112,1,112,2],[112,3,112,26],[113,1,113,26],[114,6,114,17],[115,6,115,9],[115,10,115,13],[115,14,115,17],[116,6,116,7],[116,8,116,9],[116,10,116,11],[116,12,116,13],[116,14,116,15],[116,16,116,17],[117,1,117,2],[117,4,117,5],[117,18,117,24],[117,25,117,26],[118,1,118,2],[118,4,118,5],[118,18,118,24],[118,25,118,26],[119,1,119,2],[119,4,119,5],[119,18,119,24],[119,25,119,26],[120,1,120,2],[120,4,120,5],[120,18,120,24],[120,25,120,26],[121,1,121,2],[121,4,121,5],[121,18,121,24],[121,25,121,26],[122,1,122,2],[122,4,122,5],[122,18,122,24],[122,25,122,26],[123,1,123,2],[123,4,123,5],[123,18,123,24],[123,25,123,26],[124,1,124,2],[124,4,124,5],[124,18,124,24],[124,25,124,26],[125,1,125,26],[126,1,126,26],[129,1,129,4],[129,14,129,26],[130,1,130,4],[130,16,130,26],[135,1,135,26],[137,1,137,26],[139,1,139,26],[147,1,147,26],[148,1,148,26],[149,4,149,8],[149,9,149,20],[150,9,150,14],[150,15,150,20],[151,9,151,11],[151,12,151,14],[151,15,151,17],[151,18,151,20],[151,21,151,23],[151,24,151,26],[154,4,154,8],[154,9,154,20],[155,9,155,14],[155,15,155,20],[156,9,156,11],[156,12,156,14],[156,15,156,17],[156,18,156,20],[156,21,156,23],[156,24,156,26],[159,1,159,2],[159,3,159,26],[160,1,160,26],[161,6,161,17],[162,6,162,9],[162,10,162,13],[162,14,162,17],[163,6,163,7],[163,8,163,9],[163,10,163,11],[163,12,163,13],[163,14,163,15],[163,16,163,17],[164,1,164,2],[164,4,164,5],[164,18,164,24],[164,25,164,26],[165,1,165,2],[165,4,165,5],[165,18,165,24],[165,25,165,26],[166,1,166,2],[166,4,166,5],[166,18,166,24],[166,25,166,26],[167,1,167,2],[167,4,167,5],[167,18,167,24],[167,25,167,26],[168,1,168,2],[168,4,168,5],[168,18,168,24],[168,25,168,26],[169,1,169,2],[169,4,169,5],[169,18,169,24],[169,25,169,26],[170,1,170,26],[171,1,171,26],[174,1,174,4],[174,15,174,26],[175,1,175,4],[175,16,175,26],[15,1,19,1],[21,1,25,1],[62,1,64,1],[66,1,68,1],[103,1,106,1],[108,1,111,1],[150,1,153,1],[155,1,158,1],[15,2,19,2],[21,2,25,2],[62,2,64,2],[66,2,68,2],[103,2,106,2],[108,2,111,2],[150,2,153,2],[155,2,158,2],[15,3,19,3],[21,3,25,3],[29,3,31,3],[62,3,64,3],[66,3,68,3],[71,3,73,3],[103,3,106,3],[108,3,111,3],[114,3,116,3],[150,3,153,3],[155,3,158,3],[161,3,163,3],[6,1,9,15],[6,16,7,23],[6,24,7,26],[8,16,9,23],[8,24,9,26],[10,1,11,26],[26,1,27,2],[26,3,27,26],[29,1,31,2],[29,25,31,26],[15,4,19,8],[14,21,15,26],[17,9,19,11],[17,12,19,14],[17,15,19,17],[17,18,19,20],[17,21,19,23],[17,24,19,26],[29,4,31,5],[29,18,31,24],[61,21,62,26],[65,21,66,26],[154,21,155,26],[145,1,146,26],[143,16,144,23],[143,24,144,26],[141,1,144,15],[141,16,142,23],[141,24,142,26],[150,4,153,8],[152,9,153,11],[152,12,153,14],[152,15,153,17],[152,18,153,20],[152,21,153,23],[152,24,153,26],[98,1,99,26],[103,4,106,8],[102,21,103,26],[149,21,150,26],[114,1,116,2],[114,25,116,26],[114,4,116,5],[114,18,116,24],[105,9,106,11],[105,12,106,14],[105,15,106,17],[105,18,106,20],[105,21,106,23],[105,24,106,26],[20,21,21,26],[23,9,25,11],[23,12,25,14],[23,15,25,17],[23,18,25,20],[23,21,25,23],[23,24,25,26],[110,9,111,11],[110,12,111,14],[110,15,111,17],[110,18,111,20],[110,21,111,23],[110,24,111,26],[53,1,56,15],[53,16,54,23],[53,24,54,26],[55,16,56,23],[55,24,56,26],[71,1,73,2],[71,25,73,26],[71,4,73,5],[71,18,73,24],[94,1,97,15],[94,16,95,23],[94,24,95,26],[96,16,97,23],[57,1,58,26],[21,4,25,8],[66,4,68,8],[62,4,64,8],[107,21,108,26],[108,4,111,8],[161,18,163,24],[161,1,163,2],[161,25,163,26],[157,9,158,11],[157,12,158,14],[157,15,158,17],[157,18,158,20],[157,21,158,23],[157,24,158,26],[161,4,163,5],[155,4,158,8],[96,24,97,26]]}
[null,"PROGRAMA OPERATIVO ANUAL  2022"]
[]
[null,"FORMATO 01 \"DESARROLLO DE PROCESOS\""]
[]
[null,"UNIVERSIDAD: Universidad Tecnológica de Bahía de Banderas"]
[]
[null,"DENOMINACIÓN DEL PROCESO:\n    \nACADÉMICO    (1)",null,null,null,null,null,null,null,null,null,null,null,null,null,null,"NUM. DE PROCESO",null,null,null,null,null,null,null,"TIPO DE PROCESO  (3)              ",null,null,null,null,null,null,null,null,null,null,null,null,null,null,null,null,null,null,null,null,null,null,null,null,null,null,null,null,null,null,null,null,null,null,null,null,null,null,null,null,null,null,null,null,null,null,null,null,null,null,null,null,null,null,null,null,null,null,null,null,null,null,null,null,null,null,null,null,null,null,null,null,null,null,null,null,null,null,null,null,null,null,null,null,null,null,null,null,null,null,null,null,null,null,null,null,null,null,null,null,null,null,null,null,null,null,null,null,null,null,null,null,null,null,null,null,null,null,null,null,null,null,null,null,null,null,null,null,null,null,null,null,null,null,null,null,null,null,null,null,null,null,null,null,null,"ASEGURAMIENTO DE LA CALIDAD DE LOS PROGRAMAS EDUCATIVOS"]
[null,null,null,null,null,null,null,null,null,null,null,null,null,null,null,null,null,null,null,null,null,null,null,null,null,null,null,null,null,null,null,null,null,null,null,null,null,null,null,null,null,null,null,null,null,null,null,null,null,null,null,null,null,null,null,null,null,null,null,null,null,null,null,null,null,null,null,null,null,null,null,null,null,null,null,null,null,null,null,null,null,null,null,null,null,null,null,null,null,null,null,null,null,null,null,null,null,null,null,null,null,null,null,null,null,null,null,null,null,null,null,null,null,null,null,null,null,null,null,null,null,null,null,null,null,null,null,null,null,null,null,null,null,null,null,null,null,null,null,null,null,null,null,null,null,null,null,null,null,null,null,null,null,null,null,null,null,null,null,null,null,null,null,null,null,null,null,null,null,null,"INDICADOR","FÓRMULA","Unidad de Medida","Media Nacional"]
[null,null,null,null,null,null,null,null,null,null,null,null,null,null,null,null,2,null,null,null,null,null,null,null,"Eficiencia",null,null,null,null,null,null,null,null,null,null,null,null,null,null,null,null,null,null,null,null,null,null,null,null,null,null,null,null,null,null,null,null,null,null,null,null,null,null,null,null,null,null,null,null,null,null,null,null,null,null,null,null,null,null,null,null,null,null,null,null,null,null,null,null,null,null,null,null,null,null,null,null,null,null,null,null,null,null,null,null,null,null,null,null,null,null,null,null,null,null,null,null,null,null,null,null,null,null,null,null,null,null,null,null,null,null,null,null,null,null,null,null,null,null,null,null,null,null,null,null,null,null,null,null,null,null,null,null,null,null,null,null,null,null,null,null,null,null,null,null,null,null,null,null,null,"Porcentaje de programas evaluables de TSU certificados en el nivel 1 de CIEES y/o acreditados por algún organismo reconocido por el COPAES","(Número de programas evaluables de TSU certificados en el nivel 1 de CIEES y/o acreditados por organismos reconocidos por el COPAES/ Total de programas de TSU evaluables)*100 \n","PE",87]
[null,null,null,null,null,null,null,null,null,null,null,null,null,null,null,null,null,null,null,null,null,null,null,null,null,null,null,null,null,null,null,null,null,null,null,null,null,null,null,null,null,null,null,null,null,null,null,null,null,null,null,null,null,null,null,null,null,null,null,null,null,null,null,null,null,null,null,null,null,null,null,null,null,null,null,null,null,null,null,null,null,null,null,null,null,null,null,null,null,null,null,null,null,null,null,null,null,null,null,null,null,null,null,null,null,null,null,null,null,null,null,null,null,null,null,null,null,null,null,null,null,null,null,null,null,null,null,null,null,null,null,null,null,null,null,null,null,null,null,null,null,null,null,null,null,null,null,null,null,null,null,null,null,null,null,null,null,null,null,null,null,null,null,null,null,null,null,null,null,null,"Porcentaje de programas evaluables de licenciatura certificados en el nivel 1 de CIEES y/o acreditados por algún organismo reconocido por el COPAES","(Número de programas evaluables de licenciatura certificados en el nivel 1 de CIEES y/o acreditados por organismos reconocidos por el COPAES/ Total de programas de Licenciatura evaluables)*100 \n","PE",64]
[null,"ÁREA RESPONSABLE ( 4 )",null,null,null,null,null,null,null,null,null,null,null,null,null,null,null,null,null,null,null,null,null,null,null,null,null,null,null,null,null,null,null,null,null,null,null,null,null,null,null,null,null,null,null,null,null,null,null,null,null,null,null,null,null,null,null,null,null,null,null,null,null,null,null,null,null,null,null,null,null,null,null,null,null,null,null,null,null,null,null,null,null,null,null,null,null,null,null,null,null,null,null,null,null,null,null,null,null,null,null,null,null,null,null,null,null,null,null,null,null,null,null,null,null,null,null,null,null,null,null,null,null,null,null,null,null,null,null,null,null,null,null,null,null,null,null,null,null,null,null,null,null,null,null,null,null,null,null,null,null,null,null,null,null,null,null,null,null,null,null,null,null,null,null,null,null,null,null,null,"Porcentaje de estudiantes que realiza estudios en programas de TSU certificados  en el nivel 1 de CIEES y/o acreditados por el COPAES","(Número de estudiantes que realizan sus estudios en programas de TSU certificados en el nivel 1 de CIEES y/o acreditados por el COPAES/ Número de estudiantes que realizan sus estudios de TSU en programas evaluables)*100\n","Estudiantes",91]
[null,null,null,null,null,null,null,null,null,null,null,null,null,null,null,null,null,null,null,null,null,null,null,null,null,null,null,null,null,null,null,null,null,null,null,null,null,null,null,null,null,null,null,null,null,null,null,null,null,null,null,null,null,null,null,null,null,null,null,null,null,null,null,null,null,null,null,null,null,null,null,null,null,null,null,null,null,null,null,null,null,null,null,null,null,null,null,null,null,null,null,null,null,null,null,null,null,null,null,null,null,null,null,null,null,null,null,null,null,null,null,null,null,null,null,null,null,null,null,null,null,null,null,null,null,null,null,null,null,null,null,null,null,null,null,null,null,null,null,null,null,null,null,null,null,null,null,null,null,null,null,null,null,null,null,null,null,null,null,null,null,null,null,null,null,null,null,null,null,null,"Porcentaje de estudiantes que realiza estudios en programas de Licenciatura certificados en el nivel 1 de CIEES y/o acreditados por el COPAES","(Número de estudiantes que realizan sus estudios en programas de licenciatura certificados en el nivel 1 de CIEES y/o acreditados por el COPAES/ Número de estudiantes que realizan sus estudios de Licenciatura en programas evaluables)*100\n","Estudiantes",65]
[null,"DIVISION ENERGÍAS RENOVABLES, TICS, AGRICULTURA, TERAPIA FÍSICA Y DESARROLLO DE NEGOCIOS",null,null,null,null,null,null,null,null,null,null,null,null,null,null,null,null,null,null,null,null,null,null,null,null,null,null,null,null,null,null,null,null,null,null,null,null,null,null,null,null,null,null,null,null,null,null,null,null,null,null,null,null,null,null,null,null,null,null,null,null,null,null,null,null,null,null,null,null,null,null,null,null,null,null,null,null,null,null,null,null,null,null,null,null,null,null,null,null,null,null,null,null,null,null,null,null,null,null,null,null,null,null,null,null,null,null,null,null,null,null,null,null,null,null,null,null,null,null,null,null,null,null,null,null,null,null,null,null,null,null,null,null,null,null,null,null,null,null,null,null,null,null,null,null,null,null,null,null,null,null,null,null,null,null,null,null,null,null,null,null,null,null,null,null,null,null,null,null,"Porcentaje de Avance en la Obtención de la Certificación en los tres procesos básicos en la norma ISO aplicables","(Número de certificaciones obtenidas en el año t/número de certificaciones programadas en el año t)*100","Certificaciones",93]
[null,"INDICADORES  ( 5 )",null,null,null,null,null,null,null,null,null,null,null,null,null,null,null,null,null,null,null,null,null,null,null,null,null,null,null,null,null,null,null,null,null,null,null,null,null,null,null,null,null,null,null,null,null,null,null,null,null,null,null,null,null,null,null,null,null,null,null,null,null,null,null,null,null,null,null,null,null,null,null,null,null,null,null,null,null,null,null,null,null,null,null,null,null,null,null,null,null,null,null,null,null,null,null,null,null,null,null,null,null,null,null,null,null,null,null,null,null,null,null,null,null,null,null,null,null,null,null,null,null,null,null,null,null,null,null,null,null,null,null,null,null,null,null,null,null,null,null,null,null,null,null,null,null,null,null,null,null,null,null,null,null,null,null,null,null,null,null,null,null,null,null,null,null,null,null,null,"Número de estudios de trayectoria y de egresados llevados a cabo en el Año","Número de estudios de trayectoria y de egresados llevados a cabo en el año\n","Estudios",447]
[null,"NOMBRE DEL INDICADOR (5.1)","FÓRMULA","UNIDAD DE MEDIDA","META INSTITUCIONAL A 2024 \nPROGRAMA INSTITUCIONAL DE DESARROLLO DE LA UNIVERSIDAD",null,null,null,null,"CONTEXTO ACTUAL Y A FUTURO DEL INDICADOR (5.2)",null,null,null,null,null,null,null,null,null,null,null,"Total alcanzado (Se reporta en el tercer cuatrimestre) (5.3)",null,null,null,null,null,null,null,null,null,null,null,null,null,null,null,null,null,null,null,null,null,null,null,null,null,null,null,null,null,null,null,null,null,null,null,null,null,null,null,null,null,null,null,null,null,null,null,null,null,null,null,null,null,null,null,null,null,null,null,null,null,null,null,null,null,null,null,null,null,null,null,null,null,null,null,null,null,null,null,null,null,null,null,null,null,null,null,null,null,null,null,null,null,null,null,null,null,null,null,null,null,null,null,null,null,null,null,null,null,null,null,null,null,null,null,null,null,null,null,null,null,null,null,null,null,null,null,null,null,null,null,null,null,null,null,null,null,null,null,null,null,null,null,null,null,null,null,null,"Porcentaje de programas educativos con Análisis Situacional del Trabajo (AST)","(Programas educativos en la institución con AST vigentes/ total de programas educativos en la institución)*100","Análisis",96]
[null,"Porcentaje de programas evaluables de TSU certificados en el nivel 1 de CIEES y/o acreditados por algún organismo reconocido por el COPAES",{"$f":"(IF(B16=\"Porcentaje de programas evaluables de TSU certificados en el nivel 1 de CIEES y/o acreditados por algún organismo reconocido por el COPAES\",FP9,IF(B16=\"Porcentaje de programas evaluables de licenciatura certificados en el nivel 1 de CIEES y/o acreditados por algún organismo reconocido por el COPAES\",FP10,IF(B16=\"Porcentaje de estudiantes que realiza estudios en programas de TSU certificados  en el nivel 1 de CIEES y/o acreditados por el COPAES\",FP11,IF(B16=\"Porcentaje de estudiantes que realiza estudios en programas de Licenciatura certificados en el nivel 1 de CIEES y/o acreditados por el COPAES\",FP12,IF(B16=\"Porcentaje de Avance en la Obtención de la Certificación en los tres procesos básicos en la norma ISO aplicables\",FP13))))))","v":"(Número de programas evaluables de TSU certificados en el nivel 1 de CIEES y/o acreditados por organismos reconocidos por el COPAES/ Total de programas de TSU evaluables)*100 \n"},{"$f":"(IF(B16=\"Porcentaje de programas evaluables de TSU certificados en el nivel 1 de CIEES y/o acreditados por algún organismo reconocido por el COPAES\",FQ9,IF(B16=\"Porcentaje de programas evaluables de licenciatura certificados en el nivel 1 de CIEES y/o acreditados por algún organismo reconocido por el COPAES\",FQ10,IF(B16=\"Porcentaje de estudiantes que realiza estudios en programas de TSU certificados  en el nivel 1 de CIEES y/o acreditados por el COPAES\",FQ11,IF(B16=\"Porcentaje de estudiantes que realiza estudios en programas de Licenciatura certificados en el nivel 1 de CIEES y/o acreditados por el COPAES\",FQ12,IF(B16=\"Porcentaje de Avance en la Obtención de la Certificación en los tres procesos básicos en la norma ISO aplicables\",FQ13))))))","v":"PE"},"Líneas estratégicas del PIDE  del SUT o SUP 2013-2018 al que se da atención.   ( 5 ).\nCrear una agenda institucional para atender las prioridades y áreas de calidad educativa.",null,null,null,null,2021,null,null,null,null,null,2022,null,null,null,null,null,null,null,null,null,null,null,null,null,null,null,null,null,null,null,null,null,null,null,null,null,null,null,null,null,null,null,null,null,null,null,null,null,null,null,null,null,null,null,null,null,null,null,null,null,null,null,null,null,null,null,null,null,null,null,null,null,null,null,null,null,null,null,null,null,null,null,null,null,null,null,null,null,null,null,null,null,null,null,null,null,null,null,null,null,null,null,null,null,null,null,null,null,null,null,null,null,null,null,null,null,null,null,null,null,null,null,null,null,null,null,null,null,null,null,null,null,null,null,null,null,null,null,null,null,null,null,null,null,null,null,null,null,null,null,null,null,null,null,null,null,null,null,null,null,null,null,null,null,null,"Número de estudios de factibilidad elaborados","Número de estudios de factibilidad elaborados","Estudios",243]
[null,null,null,null,null,null,null,null,null,"Número actual",null,null,"Porcentaje actual",null,null,"Número a lograr",null,null,"Porcentaje a lograr",null,null,"Número alcanzado ",null,null,"Porcentaje alcanzado",null,null,null,null,null,null,null,null,null,null,null,null,null,null,null,null,null,null,null,null,null,null,null,null,null,null,null,null,null,null,null,null,null,null,null,null,null,null,null,null,null,null,null,null,null,null,null,null,null,null,null,null,null,null,null,null,null,null,null,null,null,null,null,null,null,null,null,null,null,null,null,null,null,null,null,null,null,null,null,null,null,null,null,null,null,null,null,null,null,null,null,null,null,null,null,null,null,null,null,null,null,null,null,null,null,null,null,null,null,null,null,null,null,null,null,null,null,null,null,null,null,null,null,null,null,null,null,null,null,null,null,null,null,null,null,null,null,null,null,null,null,null,null,null,null,"AUMENTO CON EFICACIA DE LA COBERTURA"]
[null,null,null,null,null,null,null,null,null,4,null,null,{"$f":"J18/8*100","v":50},null,null,7,null,null,78,null,null,null,null,null,null,null,null,null,null,null,null,null,null,null,null,null,null,null,null,null,null,null,null,null,null,null,null,null,null,null,null,null,null,null,null,null,null,null,null,null,null,null,null,null,null,null,null,null,null,null,null,null,null,null,null,null,null,null,null,null,null,null,null,null,null,null,null,null,null,null,null,null,null,null,null,null,null,null,null,null,null,null,null,null,null,null,null,null,null,null,null,null,null,null,null,null,null,null,null,null,null,null,null,null,null,null,null,null,null,null,null,null,null,null,null,null,null,null,null,null,null,null,null,null,null,null,null,null,null,null,null,null,null,null,null,null,null,null,null,null,null,null,null,null,null,null,null,null,null,null,"INDICADOR","FÓRMULA","Unidad de Medida","Media Nacional"]
[null,null,null,null,null,null,null,null,null,null,null,null,null,null,null,null,null,null,null,null,null,null,null,null,null,null,null,null,null,null,null,null,null,null,null,null,null,null,null,null,null,null,null,null,null,null,null,null,null,null,null,null,null,null,null,null,null,null,null,null,null,null,null,null,null,null,null,null,null,null,null,null,null,null,null,null,null,null,null,null,null,null,null,null,null,null,null,null,null,null,null,null,null,null,null,null,null,null,null,null,null,null,null,null,null,null,null,null,null,null,null,null,null,null,null,null,null,null,null,null,null,null,null,null,null,null,null,null,null,null,null,null,null,null,null,null,null,null,null,null,null,null,null,null,null,null,null,null,null,null,null,null,null,null,null,null,null,null,null,null,null,null,null,null,null,null,null,null,null,null,"Número de estudiantes inscritos en TSU","Número de estudiantes inscritos en TSU","Estudiantes",199180]
[null,null,null,null,null,null,null,null,null,null,null,null,null,null,null,null,null,null,null,null,null,null,null,null,null,null,null,null,null,null,null,null,null,null,null,null,null,null,null,null,null,null,null,null,null,null,null,null,null,null,null,null,null,null,null,null,null,null,null,null,null,null,null,null,null,null,null,null,null,null,null,null,null,null,null,null,null,null,null,null,null,null,null,null,null,null,null,null,null,null,null,null,null,null,null,null,null,null,null,null,null,null,null,null,null,null,null,null,null,null,null,null,null,null,null,null,null,null,null,null,null,null,null,null,null,null,null,null,null,null,null,null,null,null,null,null,null,null,null,null,null,null,null,null,null,null,null,null,null,null,null,null,null,null,null,null,null,null,null,null,null,null,null,null,null,null,null,null,null,null,"Número de estudiantes inscritos en Licenciatura","Número de estudiantes inscritos en Licenciatura","Estudiantes",87053]
[null,"NOMBRE DEL INDICADOR (5.1)","FÓRMULA","UNIDAD DE MEDIDA","META INSTITUCIONAL A 2024 \nPROGRAMA INSTITUCIONAL DE DESARROLLO DE LA UNIVERSIDAD",null,null,null,null,"CONTEXTO ACTUAL Y A FUTURO DEL INDICADOR (5.2)",null,null,null,null,null,null,null,null,null,null,null,"Total alcanzado (Se reporta en el tercer cuatrimestre) (5.3)",null,null,null,null,null,null,null,null,null,null,null,null,null,null,null,null,null,null,null,null,null,null,null,null,null,null,null,null,null,null,null,null,null,null,null,null,null,null,null,null,null,null,null,null,null,null,null,null,null,null,null,null,null,null,null,null,null,null,null,null,null,null,null,null,null,null,null,null,null,null,null,null,null,null,null,null,null,null,null,null,null,null,null,null,null,null,null,null,null,null,null,null,null,null,null,null,null,null,null,null,null,null,null,null,null,null,null,null,null,null,null,null,null,null,null,null,null,null,null,null,null,null,null,null,null,null,null,null,null,null,null,null,null,null,null,null,null,null,null,null,null,null,null,null,null,null,null,null,"Tasa de egreso por cohorte generacional de TSU","(Número de estudiantes de TSU por cohorte que egresan/ Total de estudiantes de TSU de la cohorte)*100","Estudiantes",66]
[null,"Porcentaje de estudiantes que realiza estudios en programas de TSU certificados  en el nivel 1 de CIEES y/o acreditados por el COPAES",{"$f":"(IF(B22=\"Porcentaje de programas evaluables de TSU certificados en el nivel 1 de CIEES y/o acreditados por algún organismo reconocido por el COPAES\",FP9,IF(B22=\"Porcentaje de programas evaluables de licenciatura certificados en el nivel 1 de CIEES y/o acreditados por algún organismo reconocido por el COPAES\",FP10,IF(B22=\"Porcentaje de estudiantes que realiza estudios en programas de TSU certificados  en el nivel 1 de CIEES y/o acreditados por el COPAES\",FP11,IF(B22=\"Porcentaje de estudiantes que realiza estudios en programas de Licenciatura certificados en el nivel 1 de CIEES y/o acreditados por el COPAES\",FP12,IF(B22=\"Porcentaje de Avance en la Obtención de la Certificación en los tres procesos básicos en la norma ISO aplicables\",FP13))))))","v":"(Número de estudiantes que realizan sus estudios en programas de TSU certificados en el nivel 1 de CIEES y/o acreditados por el COPAES/ Número de estudiantes que realizan sus estudios de TSU en programas evaluables)*100\n"},{"$f":"(IF(B22=\"Porcentaje de programas evaluables de TSU certificados en el nivel 1 de CIEES y/o acreditados por algún organismo reconocido por el COPAES\",FQ9,IF(B22=\"Porcentaje de programas evaluables de licenciatura certificados en el nivel 1 de CIEES y/o acreditados por algún organismo reconocido por el COPAES\",FQ10,IF(B22=\"Porcentaje de estudiantes que realiza estudios en programas de TSU certificados  en el nivel 1 de CIEES y/o acreditados por el COPAES\",FQ11,IF(B22=\"Porcentaje de estudiantes que realiza estudios en programas de Licenciatura certificados en el nivel 1 de CIEES y/o acreditados por el COPAES\",FQ12,IF(B22=\"Porcentaje de Avance en la Obtención de la Certificación en los tres procesos básicos en la norma ISO aplicables\",FQ13))))))","v":"Estudiantes"},"Líneas estratégicas del PIDE  del SUT o SUP 2013-2018 al que se da atención.   ( 5 ).\nCrear una agenda institucional para atender las prioridades y áreas de calidad educativa.",null,null,null,null,2021,null,null,null,null,null,2022,null,null,null,null,null,null,null,null,null,null,null,null,null,null,null,null,null,null,null,null,null,null,null,null,null,null,null,null,null,null,null,null,null,null,null,null,null,null,null,null,null,null,null,null,null,null,null,null,null,null,null,null,null,null,null,null,null,null,null,null,null,null,null,null,null,null,null,null,null,null,null,null,null,null,null,null,null,null,null,null,null,null,null,null,null,null,null,null,null,null,null,null,null,null,null,null,null,null,null,null,null,null,null,null,null,null,null,null,null,null,null,null,null,null,null,null,null,null,null,null,null,null,null,null,null,null,null,null,null,null,null,null,null,null,null,null,null,null,null,null,null,null,null,null,null,null,null,null,null,null,null,null,null,null,"Tasa de egreso por cohorte generacional de Licenciatura","(Número de estudiantes de Licenciatura por cohorte que egresan/ Total de estudiantes de Licenciatura de la cohorte)*100","Estudiantes",73]
[null,null,null,null,null,null,null,null,null,"Número actual",null,null,"Porcentaje actual",null,null,"Número a lograr",null,null,"Porcentaje a lograr",null,null,"Número alcanzado ",null,null,"Porcentaje alcanzado",null,null,null,null,null,null,null,null,null,null,null,null,null,null,null,null,null,null,null,null,null,null,null,null,null,null,null,null,null,null,null,null,null,null,null,null,null,null,null,null,null,null,null,null,null,null,null,null,null,null,null,null,null,null,null,null,null,null,null,null,null,null,null,null,null,null,null,null,null,null,null,null,null,null,null,null,null,null,null,null,null,null,null,null,null,null,null,null,null,null,null,null,null,null,null,null,null,null,null,null,null,null,null,null,null,null,null,null,null,null,null,null,null,null,null,null,null,null,null,null,null,null,null,null,null,null,null,null,null,null,null,null,null,null,null,null,null,null,null,null,null,null,null,null,null,"Retención escolar","(Número de estudiantes que finalizaron el ciclo de formación/Número de estudiantes que iniciaron el ciclo de formación)*100","Estudiantes",78]
[null,null,null,null,null,null,null,null,null,351,null,null,{"$f":"J24/630*100","v":55.7142857142857},null,null,600,null,null,{"$f":"P24/900*100","v":66.6666666666667},null,null,null,null,null,null,null,null,null,null,null,null,null,null,null,null,null,null,null,null,null,null,null,null,null,null,null,null,null,null,null,null,null,null,null,null,null,null,null,null,null,null,null,null,null,null,null,null,null,null,null,null,null,null,null,null,null,null,null,null,null,null,null,null,null,null,null,null,null,null,null,null,null,null,null,null,null,null,null,null,null,null,null,null,null,null,null,null,null,null,null,null,null,null,null,null,null,null,null,null,null,null,null,null,null,null,null,null,null,null,null,null,null,null,null,null,null,null,null,null,null,null,null,null,null,null,null,null,null,null,null,null,null,null,null,null,null,null,null,null,null,null,null,null,null,null,null,null,null,null,null,"PREVENCIÓN Y DISMINUCIÓN DEL ABANDONO ESCOLAR"]
[null,null,null,null,null,null,null,null,null,null,null,null,null,null,null,null,null,null,null,null,null,null,null,null,null,null,null,null,null,null,null,null,null,null,null,null,null,null,null,null,null,null,null,null,null,null,null,null,null,null,null,null,null,null,null,null,null,null,null,null,null,null,null,null,null,null,null,null,null,null,null,null,null,null,null,null,null,null,null,null,null,null,null,null,null,null,null,null,null,null,null,null,null,null,null,null,null,null,null,null,null,null,null,null,null,null,null,null,null,null,null,null,null,null,null,null,null,null,null,null,null,null,null,null,null,null,null,null,null,null,null,null,null,null,null,null,null,null,null,null,null,null,null,null,null,null,null,null,null,null,null,null,null,null,null,null,null,null,null,null,null,null,null,null,null,null,null,null,null,null,"INDICADOR","FÓRMULA","Unidad de Medida","Media Nacional"]
[null,null,null,null,null,null,null,null,null,null,null,null,null,null,null,null,null,null,null,null,null,null,null,null,null,null,null,null,null,null,null,null,null,null,null,null,null,null,null,null,null,null,null,null,null,null,null,null,null,null,null,null,null,null,null,null,null,null,null,null,null,null,null,null,null,null,null,null,null,null,null,null,null,null,null,null,null,null,null,null,null,null,null,null,null,null,null,null,null,null,null,null,null,null,null,null,null,null,null,null,null,null,null,null,null,null,null,null,null,null,null,null,null,null,null,null,null,null,null,null,null,null,null,null,null,null,null,null,null,null,null,null,null,null,null,null,null,null,null,null,null,null,null,null,null,null,null,null,null,null,null,null,null,null,null,null,null,null,null,null,null,null,null,null,null,null,null,null,null,null,"Porcentaje de profesores de tiempo completo que imparten tutorías","(Número de profesores de tiempo completo que imparten tutorías/ número de profesores de tiempo completo)*100","Profesores",96]
[null,"OBJETIVO AL QUE ATIENDE DE ACUERDO AL PSE 2020-2024    (6)",null,"6.2. Garantizar el derecho de la población en México a una educación de\nexcelencia, pertinente y relevante en los diferentes tipos, niveles y modalidades\ndel Sistema Educativo Nacional. ",null,null,null,null,null,null,null,null,null,null,null,null,null,null,null,null,null,null,null,null,null,null,null,null,null,null,null,null,null,null,null,null,null,null,null,null,null,null,null,null,null,null,null,null,null,null,null,null,null,null,null,null,null,null,null,null,null,null,null,null,null,null,null,null,null,null,null,null,null,null,null,null,null,null,null,null,null,null,null,null,null,null,null,null,null,null,null,null,null,null,null,null,null,null,null,null,null,null,null,null,null,null,null,null,null,null,null,null,null,null,null,null,null,null,null,null,null,null,null,null,null,null,null,null,null,null,null,null,null,null,null,null,null,null,null,null,null,null,null,null,null,null,null,null,null,null,null,null,null,null,null,null,null,null,null,null,null,null,null,null,null,null,null,null,null,null,"Porcentaje de estudiantes de nuevo ingreso que reciben programas de inducción","(Número de estudiantes de nuevo ingreso participantes en programas de inducción/número total de estudiantes de nuevo igreso)*100","Estudiantes",99]
[null,null,null,null,null,null,null,null,null,null,null,null,null,null,null,null,null,null,null,null,null,null,null,null,null,null,null,null,null,null,null,null,null,null,null,null,null,null,null,null,null,null,null,null,null,null,null,null,null,null,null,null,null,null,null,null,null,null,null,null,null,null,null,null,null,null,null,null,null,null,null,null,null,null,null,null,null,null,null,null,null,null,null,null,null,null,null,null,null,null,null,null,null,null,null,null,null,null,null,null,null,null,null,null,null,null,null,null,null,null,null,null,null,null,null,null,null,null,null,null,null,null,null,null,null,null,null,null,null,null,null,null,null,null,null,null,null,null,null,null,null,null,null,null,null,null,null,null,null,null,null,null,null,null,null,null,null,null,null,null,null,null,null,null,null,null,null,null,null,null,"Programas de Tutorías","Número de programas de tutorías que tiene la institución","Programas de Tutorías",109]
[null,"CALENDARIZACIÓN Y SEGUIMIENTO DE LAS PRINCIPALES ACTIVIDADES  (7)",null,null,null,null,null,null,null,null,null,null,null,null,null,null,null,null,null,null,null,null,null,null,null,null,null,null,null,null,null,null,null,null,null,null,null,null,null,null,null,null,null,null,null,null,null,null,null,null,null,null,null,null,null,null,null,null,null,null,null,null,null,null,null,null,null,null,null,null,null,null,null,null,null,null,null,null,null,null,null,null,null,null,null,null,null,null,null,null,null,null,null,null,null,null,null,null,null,null,null,null,null,null,null,null,null,null,null,null,null,null,null,null,null,null,null,null,null,null,null,null,null,null,null,null,null,null,null,null,null,null,null,null,null,null,null,null,null,null,null,null,null,null,null,null,null,null,null,null,null,null,null,null,null,null,null,null,null,null,null,null,null,null,null,null,null,null,null,null,"Atención Psicopedagógica","Número de programas de atención psicopedagógica que tiene la institución","Programas de Atención Psicopedagógica",106]
[null,"ACTIVIDADES",null,"UNIDAD DE MEDIDA","META  ANUAL",null,"CALENDARIO 2022                                 CUATRIMESTRAL",null,null,null,null,null,null,null,null,null,null,null,"JUSTIFICACIÓN DE LAS DESVIACIONES POSITIVAS O NEGATIVAS (8)",null,null,null,null,null,null,"ÁREA\nEJECUTORA (9)",null,null,null,null,null,null,null,null,null,null,null,null,null,null,null,null,null,null,null,null,null,null,null,null,null,null,null,null,null,null,null,null,null,null,null,null,null,null,null,null,null,null,null,null,null,null,null,null,null,null,null,null,null,null,null,null,null,null,null,null,null,null,null,null,null,null,null,null,null,null,null,null,null,null,null,null,null,null,null,null,null,null,null,null,null,null,null,null,null,null,null,null,null,null,null,null,null,null,null,null,null,null,null,null,null,null,null,null,null,null,null,null,null,null,null,null,null,null,null,null,null,null,null,null,null,null,null,null,null,null,null,null,null,null,null,null,null,null,null,null,null,null,null,null,"Porcentaje de alumnos que participan en programa de tutorÍas","(Número de alumnos en programas de tutorías/ \nTotal de alumnos)*100","Estudiantes",98]
[null,null,null,null,null,null,1,null,null,null,2,null,null,null,3]
[null,null,null,null,null,null,"PROG",null,"ALC",null,"PROG",null,"ALC",null,"PROG",null,"ALC",null,null,null,null,null,null,null,null,null,null,null,null,null,null,null,null,null,null,null,null,null,null,null,null,null,null,null,null,null,null,null,null,null,null,null,null,null,null,null,null,null,null,null,null,null,null,null,null,null,null,null,null,null,null,null,null,null,null,null,null,null,null,null,null,null,null,null,null,null,null,null,null,null,null,null,null,null,null,null,null,null,null,null,null,null,null,null,null,null,null,null,null,null,null,null,null,null,null,null,null,null,null,null,null,null,null,null,null,null,null,null,null,null,null,null,null,null,null,null,null,null,null,null,null,null,null,null,null,null,null,null,null,null,null,null,null,null,null,null,null,null,null,null,null,null,null,null,null,null,null,null,null,null,"TIPO DE  PROCESO"]
[null,null,null,null,null,null,"#","%","#","%","#","%","#","%","#","%","#","%",null,null,null,null,null,null,null,null,null,null,null,null,null,null,null,null,null,null,null,null,null,null,null,null,null,null,null,null,null,null,null,null,null,null,null,null,null,null,null,null,null,null,null,null,null,null,null,null,null,null,null,null,null,null,null,null,null,null,null,null,null,null,null,null,null,null,null,null,null,null,null,null,null,null,null,null,null,null,null,null,null,null,null,null,null,null,null,null,null,null,null,null,null,null,null,null,null,null,null,null,null,null,null,null,null,null,null,null,null,null,null,null,null,null,null,null,null,null,null,null,null,null,null,null,null,null,null,null,null,null,null,null,null,null,null,null,null,null,null,null,null,null,null,null,null,null,null,null,null,null,null,null,"Eficiencia"]
[null,"Realizar ejercicio de autoevaluación para la Acreditación del TSU en Desarrollo de Negocios",null,"Autoevaluación",1,null,null,null,null,null,1,100,null,null,null,null,null,null,null,null,null,null,null,null,null,"Division  DNAM(1)",null,null,null,null,null,null,null,null,null,null,null,null,null,null,null,null,null,null,null,null,null,null,null,null,null,null,null,null,null,null,null,null,null,null,null,null,null,null,null,null,null,null,null,null,null,null,null,null,null,null,null,null,null,null,null,null,null,null,null,null,null,null,null,null,null,null,null,null,null,null,null,null,null,null,null,null,null,null,null,null,null,null,null,null,null,null,null,null,null,null,null,null,null,null,null,null,null,null,null,null,null,null,null,null,null,null,null,null,null,null,null,null,null,null,null,null,null,null,null,null,null,null,null,null,null,null,null,null,null,null,null,null,null,null,null,null,null,null,null,null,null,null,null,null,"Eficacia"]
[null,"Recibir la evaluación para la acreditación del PE ",null,"Evaluación",{"$f":"1+2","v":3},null,null,null,null,null,null,null,null,null,{"$f":"1+2","v":3},100,null,null,null,null,null,null,null,null,null,"Division  DNAM(1)",null,null,null,null,null,null,null,null,null,null,null,null,null,null,null,null,null,null,null,null,null,null,null,null,null,null,null,null,null,null,null,null,null,null,null,null,null,null,null,null,null,null,null,null,null,null,null,null,null,null,null,null,null,null,null,null,null,null,null,null,null,null,null,null,null,null,null,null,null,null,null,null,null,null,null,null,null,null,null,null,null,null,null,null,null,null,null,null,null,null,null,null,null,null,null,null,null,null,null,null,null,null,null,null,null,null,null,null,null,null,null,null,null,null,null,null,null,null,null,null,null,null,null,null,null,null,null,null,null,null,null,null,null,null,null,null,null,null,null,null,null,null,null,null,"Pertinencia"]
[null,"Participar en el Curso-Taller para la Autoevaluación con fines de acreditación del Programa de Ingeniería en Mantenimiento Industrial en el CACEI",null,"Curso",1,null,null,null,null,null,1,100,null,null,null,null,null,null,null,null,null,null,null,null,null,"Division  ER y MI",null,null,null,null,null,null,null,null,null,null,null,null,null,null,null,null,null,null,null,null,null,null,null,null,null,null,null,null,null,null,null,null,null,null,null,null,null,null,null,null,null,null,null,null,null,null,null,null,null,null,null,null,null,null,null,null,null,null,null,null,null,null,null,null,null,null,null,null,null,null,null,null,null,null,null,null,null,null,null,null,null,null,null,null,null,null,null,null,null,null,null,null,null,null,null,null,null,null,null,null,null,null,null,null,null,null,null,null,null,null,null,null,null,null,null,null,null,null,null,null,null,null,null,null,null,null,null,null,null,null,null,null,null,null,null,null,null,null,null,null,null,null,null,null,"Vinculación"]
[null,"Atender las reuniones del comité nacional de TF que se estaran reuniendo para revisar las actualizaciones del PE de TF",null,"Reuniones ",2,null,1,50,null,null,1,100,null,null,null,null,null,null,null,null,null,null,null,null,null,"Dirección de carrera de TU y TF",null,null,null,null,null,null,null,null,null,null,null,null,null,null,null,null,null,null,null,null,null,null,null,null,null,null,null,null,null,null,null,null,null,null,null,null,null,null,null,null,null,null,null,null,null,null,null,null,null,null,null,null,null,null,null,null,null,null,null,null,null,null,null,null,null,null,null,null,null,null,null,null,null,null,null,null,null,null,null,null,null,null,null,null,null,null,null,null,null,null,null,null,null,null,null,null,null,null,null,null,null,null,null,null,null,null,null,null,null,null,null,null,null,null,null,null,null,null,null,null,null,null,null,null,null,null,null,null,null,null,null,null,null,null,null,null,null,null,null,null,null,null,null,null,"Equidad de Género"]
[null,"Atender las reuniones del comité nacional de Tf que se estaran reuniendo para revisar los diferentes organismos  acreditadores por los que Tf pudiera participar ",null,"Reuniones ",1,null,1,100,null,null,null,null,null,null,null,null,null,null,null,null,null,null,null,null,null,"Dirección de carrera de TU y TF"]
[null,"DESCRIPCIÓN DEL ALCANCE DEL INDICADOR Y EFECTO SOCIOECONOMICO    (10)"]
[]
[]
[null,"Mtra. Carmina Yadira Regalado Mardueño",null,null,null,null,null,null,null,null,null,null,null,null,null,"Lic. Victor Manuel Benítez Pérez"]
[null,"NOMBRE Y FIRMA DEL/LA RECTOR(A)",null,null,null,null,null,null,null,null,null,null,null,null,null,null,"NOMBRE Y FIRMA DE LA PERSONA RESPONSABLE  DEL PROCESO"]
[]
[]
[]
[]
[null,"PROGRAMA OPERATIVO ANUAL  2022 "]
[]
[null,"FORMATO 01 \"DESARROLLO DE PROCESOS\""]
[]
[null,"UNIVERSIDAD: Universidad Tecnológica de Bahía de Banderas"]
[]
[null,"DENOMINACIÓN DEL PROCESO:\n    \nACADÉMICO    (1)",null,null,null,null,null,null,null,null,null,null,null,null,null,null,"NUM. DE PROCESO",null,null,null,null,null,null,null,"TIPO DE PROCESO (3)                "]
[]
[null,null,null,null,null,null,null,null,null,null,null,null,null,null,null,null,2.1,null,null,null,null,null,null,null,"Eficacia"]
[]
[null,"ÁREA RESPONSABLE( 4 )"]
[]
[null,"SECRETARÍA ACADEMICA / PLANEACIÓN Y EVALUACIÓN"]
[null,"INDICADORES  ( 5 )"]
[null,"NOMBRE DEL INDICADOR (5.1)","FÓRMULA","UNIDAD DE MEDIDA","META INSTITUCIONAL A 2024 \nPROGRAMA INSTITUCIONAL DE DESARROLLO DE LA UNIVERSIDAD",null,null,null,null,"CONTEXTO ACTUAL Y A FUTURO DEL INDICADOR (5.2)",null,null,null,null,null,null,null,null,null,null,null,"Total alcanzado (Se reporta en el tercer cuatrimestre) (5.3)"]
[null,"Número de estudios de trayectoria y de egresados llevados a cabo en el Año",{"$f":"(IF(B63=\"Número de estudios de trayectoria y de egresados llevados a cabo en el Año\",FP14,IF(B63=\"Porcentaje de programas educativos con Análisis Situacional del Trabajo (AST)\",FP15,IF(B63=\"Número de estudios de factibilidad elaborados\",FP16))))","v":"Número de estudios de trayectoria y de egresados llevados a cabo en el año\n"},{"$f":"(IF(B63=\"Número de estudios de trayectoria y de egresados llevados a cabo en el Año\",FQ14,IF(B63=\"Porcentaje de programas educativos con Análisis Situacional del Trabajo (AST)\",FQ15,IF(B63=\"Número de estudios de factibilidad elaborados\",FQ16))))","v":"Estudios"},"Líneas estratégicas del PIDE  del SUT o SUP 2013-2018 al que se da atención.   ( 5 ).\nMantener la pertinencia de los programas educativos actuales y de los de nueva creación, acorde a las necesidades de los sectores laboral y de servicios.",null,null,null,null,2021,null,null,null,null,null,2022]
[null,null,null,null,null,null,null,null,null,"Número actual",null,null,"Porcentaje actual",null,null,"Número a lograr",null,null,"Porcentaje a lograr",null,null,"Número alcanzado ",null,null,"Porcentaje alcanzado"]
[null,null,null,null,null,null,null,null,null,0,null,null,0,null,null,1,null,null,100]
[null,"NOMBRE DEL INDICADOR (5.1)","FÓRMULA","UNIDAD DE MEDIDA","META INSTITUCIONAL A 2024 \nPROGRAMA INSTITUCIONAL DE DESARROLLO DE LA UNIVERSIDAD",null,null,null,null,"CONTEXTO ACTUAL Y A FUTURO DEL INDICADOR (5.2)",null,null,null,null,null,null,null,null,null,null,null,"Total alcanzado (Se reporta en el tercer cuatrimestre) (5.3)"]
[null,"Porcentaje de programas educativos con Análisis Situacional del Trabajo (AST)",{"$f":"(IF(B67=\"Número de estudios de trayectoria y de egresados llevados a cabo en el Año\",FP14,IF(B67=\"Porcentaje de programas educativos con Análisis Situacional del Trabajo (AST)\",FP15,IF(B67=\"Número de estudios de factibilidad elaborados\",FP16))))","v":"(Programas educativos en la institución con AST vigentes/ total de programas educativos en la institución)*100"},{"$f":"(IF(B67=\"Número de estudios de trayectoria y de egresados llevados a cabo en el Año\",FQ14,IF(B67=\"Porcentaje de programas educativos con Análisis Situacional del Trabajo (AST)\",FQ15,IF(B67=\"Número de estudios de factibilidad elaborados\",FQ16))))","v":"Análisis"},"Líneas estratégicas del PIDE  del SUT o SUP 2013-2018 al que se da atención.   ( 5 ).\nMantener la pertinencia de los programas educativos actuales y de los de nueva creación, acorde a las necesidades de los sectores laboral y de servicios.",null,null,null,null,2021,null,null,null,null,null,2022]
[null,null,null,null,null,null,null,null,null,"Número actual",null,null,"Porcentaje actual",null,null,"Número a lograr",null,null,"Porcentaje a lograr",null,null,"Número alcanzado ",null,null,"Porcentaje alcanzado"]
[null,null,null,null,null,null,null,null,null,10,null,null,{"$f":"J69/16*100","v":62.5},null,null,10,null,null,62.5]
[null,"OBJETIVO AL QUE ATIENDE DE ACUERDO AL PSE 2020-2024    (6)",null,"6.2. Garantizar el derecho de la población en México a una educación de\nexcelencia, pertinente y relevante en los diferentes tipos, niveles y modalidades\ndel Sistema Educativo Nacional. "]
[null,"CALENDARIZACIÓN Y SEGUIMIENTO DE LAS PRINCIPALES ACTIVIDADES  (7)"]
[null,"ACTIVIDADES",null,"UNIDAD DE MEDIDA","META  ANUAL",null,"CALENDARIO 2022                                      CUATRIMESTRAL",null,null,null,null,null,null,null,null,null,null,null,"JUSTIFICACIÓN DE LAS DESVIACIONES POSITIVAS O NEGATIVAS (8)",null,null,null,null,null,null,"ÁREA\nEJECUTORA (9)"]
[null,null,null,null,null,null,1,null,null,null,2,null,null,null,3]
[null,null,null,null,null,null,"PROG",null,"ALC",null,"PROG",null,"ALC",null,"PROG",null,"ALC"]
[null,null,null,null,null,null,"#","%","#","%","#","%","#","%","#","%","#","%"]
[null,"Reuniones de comité de pertinencia ",null,"Reuniones",9,null,1,11.11,null,null,2,33.33,null,null,9,100,null,null,null,null,null,null,null,null,null,"Dirección de Carrera "]
[null,"Reunión del Comité Nacional de Directores de PE´s",null,"Reuniones",{"$f":"4+2+4+4","v":14},null,{"$f":"1+1","v":2},{"$f":"G77/E77*100","v":14.2857142857143},null,null,{"$f":"3+1+3+4","v":11},{"$f":"K77/E77*100","v":78.5714285714286},null,null,{"$f":"4+2+4+4","v":14},{"$f":"O77/E77*100","v":100},null,null,null,null,null,null,null,null,null,"Dirección de Carrera de ER, MI y DN (4), TIyASP (4), GA(2), TUyTF(4)"]
[null,"Encuestas de Trayectoria Educativa",null,"Encuesta",1,null,null,null,null,null,null,null,null,null,1,100,null,null,null,null,null,null,null,null,null,"Planeación y Educación"]
[]
[]
[null,"DESCRIPCIÓN DEL ALCANCE DEL INDICADOR Y EFECTO SOCIOECONOMICO    (10)"]
[null,"Mantener PE pertinentes a nuestra área de influencia."]
[]
[null,"Mtra. Carmina Yadira Regalado Mardueño",null,null,null,null,null,null,null,null,null,null,null,null,null,"Lic. Victor Manuel Benítez Pérez"]
[null,"NOMBRE Y FIRMA DEL/LA RECTOR(A)",null,null,null,null,null,null,null,null,null,null,null,null,null,null,"NOMBRE Y FIRMA DE LA PERSONA RESPONSABLE DEL PROCESO"]
[]
[]
[]
[]
[null,"PROGRAMA OPERATIVO ANUAL  2022"]
[null,"FORMATO 01 \"DESARROLLO DE PROCESOS\""]
[]
[null,"UNIVERSIDAD: Universidad Tecnológica de Bahía de Banderas"]
[]
[null,"DENOMINACIÓN DEL PROCESO:\n    \nACADÉMICO    (1)",null,null,null,null,null,null,null,null,null,null,null,null,null,null,"NUM. DE PRCESO",null,null,null,null,null,null,null,"TIPO DE PROCESO (3)               "]
[]
[null,null,null,null,null,null,null,null,null,null,null,null,null,null,null,null,2.2,null,null,null,null,null,null,null,"Eficacia"]
[]
[null,"ÁREA RESPONSABLE ( 4 )"]
[]
[null,"PRENSA Y DIFUSIÓN"]
[null,"INDICADORES  ( 5 )"]
[null,"NOMBRE DEL INDICADOR (5.1)","FÓRMULA","UNIDAD DE MEDIDA","META INSTITUCIONAL A 2024 \nPROGRAMA INSTITUCIONAL DE DESARROLLO DE LA UNIVERSIDAD",null,null,null,null,"CONTEXTO ACTUAL Y A FUTURO DEL INDICADOR (5.2)",null,null,null,null,null,null,null,null,null,null,null,"Total alcanzado (Se reporta en el tercer cuatrimestre) (5.3)"]
[null,"Número de estudiantes inscritos en TSU",{"$f":"(IF(B104=\"Número de estudiantes inscritos en TSU\",FP19,IF(B104=\"Número de estudiantes inscritos en Licenciatura\",FP20,IF(B104=\"Tasa de egreso por cohorte generacional de TSU\",FP21,IF(B104=\"Tasa de egreso por cohorte generacional de Licenciatura\",FP22,IF(B104=\"Retención escolar\",FP23))))))","v":"Número de estudiantes inscritos en TSU"},{"$f":"(IF(B104=\"Número de estudiantes inscritos en TSU\",FQ19,IF(B104=\"Número de estudiantes inscritos en Licenciatura\",FQ20,IF(B104=\"Tasa de egreso por cohorte generacional de TSU\",FQ21,IF(B104=\"Tasa de egreso por cohorte generacional de Licenciatura\",FQ22,IF(B104=\"Retención escolar\",FQ23))))))","v":"Estudiantes"},"Líneas estratégicas del PIDE  del SUT o SUP 2013-2018 al que se da atención.   ( 5 ).\nEstablecer criterios de eficiencia que hagan posible la utilización plena de la capacidad instalada",null,null,null,null,2021,null,null,null,null,null,2022]
[null,null,null,null,null,null,null,null,null,"Número actual",null,null,"Porcentaje actual",null,null,"Número a lograr",null,null,"Porcentaje a lograr",null,null,"Número alcanzado ",null,null,"Porcentaje alcanzado"]
[null,null,null,null,null,null,null,null,null,630,null,null,100,null,null,1100,null,null,100]
[]
[null,"NOMBRE DEL INDICADOR (5.1)","FÓRMULA","UNIDAD DE MEDIDA","META INSTITUCIONAL A 2024 \nPROGRAMA INSTITUCIONAL DE DESARROLLO DE LA UNIVERSIDAD",null,null,null,null,"CONTEXTO ACTUAL Y A FUTURO DEL INDICADOR (5.2)",null,null,null,null,null,null,null,null,null,null,null,"Total alcanzado (Se reporta en el tercer cuatrimestre) (5.3)"]
[null,"Número de estudiantes inscritos en Licenciatura",{"$f":"(IF(B109=\"Número de estudiantes inscritos en TSU\",FP19,IF(B109=\"Número de estudiantes inscritos en Licenciatura\",FP20,IF(B109=\"Tasa de egreso por cohorte generacional de TSU\",FP21,IF(B109=\"Tasa de egreso por cohorte generacional de Licenciatura\",FP22,IF(B109=\"Retención escolar\",FP23))))))","v":"Número de estudiantes inscritos en Licenciatura"},{"$f":"(IF(B109=\"Número de estudiantes inscritos en TSU\",FQ19,IF(B109=\"Número de estudiantes inscritos en Licenciatura\",FQ20,IF(B109=\"Tasa de egreso por cohorte generacional de TSU\",FQ21,IF(B109=\"Tasa de egreso por cohorte generacional de Licenciatura\",FQ22,IF(B109=\"Retención escolar\",FQ23))))))","v":"Estudiantes"},"Líneas estratégicas del PIDE  del SUT o SUP 2013-2018 al que se da atención.   ( 5 ).\nEstablecer criterios de eficiencia que hagan posible la utilización plena de la capacidad instalada",null,null,null,null,2021,null,null,null,null,null,2022]
[null,null,null,null,null,null,null,null,null,"Número actual",null,null,"Porcentaje actual",null,null,"Número a lograr",null,null,"Porcentaje a lograr",null,null,"Número alcanzado ",null,null,"Porcentaje alcanzado"]
[null,null,null,null,null,null,null,null,null,545,null,null,100,null,null,470,null,null,100]
[]
[null,"OBJETIVO AL QUE ATIENDE DE ACUERDO AL PSE 2020-2024    (6)",null,"6.1.- Garantizar el derecho de la población en México a una educación equitativa,\ninclusiva, intercultural e integral, que tenga como eje principal el interés superior\nde las niñas, niños, adolescentes y jóvenes. "]
[null,"CALENDARIZACIÓN Y SEGUIMIENTO DE LAS PRINCIPALES ACTIVIDADES  (7)"]
[null,"ACTIVIDADES",null,"UNIDAD DE MEDIDA","META  ANUAL",null,"CALENDARIO 2022                                    CUATRIMESTRAL",null,null,null,null,null,null,null,null,null,null,null,"JUSTIFICACIÓN DE LAS DESVIACIONES POSITIVAS O NEGATIVAS (8)",null,null,null,null,null,null,"ÁREA\nEJECUTORA (9)"]
[null,null,null,null,null,null,1,null,null,null,2,null,null,null,3]
[null,null,null,null,null,null,"PROG",null,"ALC",null,"PROG",null,"ALC",null,"PROG",null,"ALC"]
[null,null,null,null,null,null,"#","%","#","%","#","%","#","%","#","%","#","%"]
[null,"Actualización de pagina web",null,"actualizaciones",80,null,27,34,null,null,54,68,null,null,80,100,null,null,null,null,null,null,null,null,null,"Prensa y Difusión"]
[null,"Publicidad en medios digitales",null,"Spot, videos, banners, capsulas informativas.(personas alcanzadas)",600000,null,200000,33,null,null,400000,66,null,null,600000,100,null,null,null,null,null,null,null,null,null,"Prensa y Difusión"]
[null,"Recorridos y ferias educativas con alumnos de bachillerato",null,"Alumnos de Bachillerato atendidos",2500,null,1800,{"$f":"G121/E121*100","v":72},null,null,null,null,null,null,{"$f":"700+G121","v":2500},100,null,null,2050,null,null,null,null,null,null,"Prensa y Difusión"]
[null,"Impresiones",null,"Folletos",3500,null,3000,85,null,null,null,null,null,null,{"$f":"500+G122","v":3500},100,null,null,2700,null,null,null,null,null,null,"Prensa y Difusión"]
[null,"Podcast",null,"Entrevistas",17,null,6,35,null,null,12,70,null,null,17,100,null,null,8,null,null,null,null,null,null,"Prensa y Difusión"]
[null,"implementacion de Whastapp bussines",null,"Estudiantes atendidos",1000,null,800,80,null,null,null,null,null,null,200,100,null,null,1000,null,null,null,null,null,null,"Prensa y Difusión"]
[null,"Actividades de divulgación de la oferta educativa",null,"Reuniones virtuales",23,null,15,66,null,null,null,null,null,null,23,100,null,null,2,null,null,null,null,null,null,"Prensa y Difusión"]
[null,"DESCRIPCIÓN DEL ALCANCE DEL INDICADOR Y EFECTO SOCIOECONOMICO    (10)"]
[null,"Incrementar el números de jovenes nayaritas con estudios superioes en la región de Bahía de Banderas."]
[]
[]
[null,"Mtra. Carmina Yadira Regalado Mardueño",null,null,null,null,null,null,null,null,null,null,null,null,"Lic. Pedro Iván Serrano Del Ángel"]
[null,"NOMBRE Y FIRMA DEL/LA RECTOR(A)",null,null,null,null,null,null,null,null,null,null,null,null,null,null,"NOMBRE Y FIRMA DE LA PERSONA RESPONSABLE DEL PROCESO"]
[]
[]
[]
[]
[null,"PROGRAMA OPERATIVO ANUAL  2022"]
[]
[null,"FORMATO 01 \"DESARROLLO DE PROCESOS\""]
[]
[null,"UNIVERSIDAD: Universidad Tecnológica de Bahía de Banderas"]
[]
[null,"DENOMINACIÓN DEL PROCESO:\n    \nACADÉMICO    (1)",null,null,null,null,null,null,null,null,null,null,null,null,null,null,"NUM. DE PROCESO",null,null,null,null,null,null,null,"TIPO DE PROCESO (3)              "]
[]
[null,null,null,null,null,null,null,null,null,null,null,null,null,null,null,null,2.3,null,null,null,null,null,null,null,"Eficacia"]
[]
[null,"ÁREA RESPONSABLE ( 4 )"]
[]
[null,"SECRETARÍA ACADÉMICA"]
[null,"INDICADORES  ( 5 )"]
[null,"NOMBRE DEL INDICADOR (5.1)","FÓRMULA","UNIDAD DE MEDIDA","META INSTITUCIONAL A 2024 \nPROGRAMA INSTITUCIONAL DE DESARROLLO DE LA UNIVERSIDAD",null,null,null,null,"CONTEXTO ACTUAL Y A FUTURO DEL INDICADOR (5.2)",null,null,null,null,null,null,null,null,null,null,null,"Total alcanzado (Se reporta en el tercer cuatrimestre) (5.3)"]
[null,"Porcentaje de profesores de tiempo completo que imparten tutorías",{"$f":"(IF(B151=\"Porcentaje de profesores de tiempo completo que imparten tutorías\",FP26,IF(B151=\"Porcentaje de estudiantes de nuevo ingreso que reciben programas de inducción\",FP27,IF(B151=\"Programas de Tutorías\",FP28,IF(B151=\"Atención Psicopedagógica\",FP29,IF(B151=\"Porcentaje de alumnos que participan en programa de tutorÍas\",FP30))))))","v":"(Número de profesores de tiempo completo que imparten tutorías/ número de profesores de tiempo completo)*100"},{"$f":"(IF(B151=\"Porcentaje de profesores de tiempo completo que imparten tutorías\",FQ26,IF(B151=\"Porcentaje de estudiantes de nuevo ingreso que reciben programas de inducción\",FQ27,IF(B151=\"Programas de Tutorías\",FQ28,IF(B151=\"Atención Psicopedagógica\",FQ29,IF(B151=\"Porcentaje de alumnos que participan en programa de tutorÍas\",FQ30))))))","v":"Profesores"},"Líneas estratégicas del PIDE  del SUT o SUP 2013-2018 al que se da atención.   ( 5 ).\nAprovechar las experiencias exitosas de algunas Universidades Tecnológicas en temas como el Programa de Servicios de Apoyo al Estudiante (PROSAE) y el Programa Institucional de Tutorías (PIT)",null,null,null,null,2021,null,null,null,null,null,2022]
[null,null,null,null,null,null,null,null,null,"Número actual",null,null,"Porcentaje actual",null,null,"Número a lograr",null,null,"Porcentaje a lograr",null,null,"Número alcanzado ",null,null,"Porcentaje alcanzado"]
[null,null,null,null,null,null,null,null,null,33,null,null,100,null,null,33,null,null,100]
[]
[null,"NOMBRE DEL INDICADOR (5.1)","FÓRMULA","UNIDAD DE MEDIDA","META INSTITUCIONAL A 2024 \nPROGRAMA INSTITUCIONAL DE DESARROLLO DE LA UNIVERSIDAD",null,null,null,null,"CONTEXTO ACTUAL Y A FUTURO DEL INDICADOR (5.2)",null,null,null,null,null,null,null,null,null,null,null,"Total alcanzado (Se reporta en el tercer cuatrimestre) (5.3)"]
[null,"Porcentaje de alumnos que participan en programa de tutorÍas",{"$f":"(IF(B156=\"Porcentaje de profesores de tiempo completo que imparten tutorías\",FP26,IF(B156=\"Porcentaje de estudiantes de nuevo ingreso que reciben programas de inducción\",FP27,IF(B156=\"Programas de Tutorías\",FP28,IF(B156=\"Atención Psicopedagógica\",FP29,IF(B156=\"Porcentaje de alumnos que participan en programa de tutorÍas\",FP30))))))","v":"(Número de alumnos en programas de tutorías/ \nTotal de alumnos)*100"},{"$f":"(IF(B156=\"Porcentaje de profesores de tiempo completo que imparten tutorías\",FQ26,IF(B156=\"Porcentaje de estudiantes de nuevo ingreso que reciben programas de inducción\",FQ27,IF(B156=\"Programas de Tutorías\",FQ28,IF(B156=\"Atención Psicopedagógica\",FQ29,IF(B156=\"Porcentaje de alumnos que participan en programa de tutorÍas\",FQ30))))))","v":"Estudiantes"},"Líneas estratégicas del PIDE  del SUT o SUP 2013-2018 al que se da atención.   ( 5 ).\nAprovechar las experiencias exitosas de algunas Universidades Tecnológicas en temas como el Programa de Servicios de Apoyo al Estudiante (PROSAE) y el Programa Institucional de Tutorías (PIT)",null,null,null,null,2021,null,null,null,null,null,2022]
[null,null,null,null,null,null,null,null,null,"Número actual",null,null,"Porcentaje actual",null,null,"Número a lograr",null,null,"Porcentaje a lograr",null,null,"Número alcanzado ",null,null,"Porcentaje alcanzado"]
[null,null,null,null,null,null,null,null,null,1175,null,null,100,null,null,1570,null,null,100]
[]
[null,"OBJETIVO AL QUE ATIENDE DE ACUERDO AL PSE 2020-2024    (6)",null,"6.3.- Revalorizar a las maestras y los maestros como agentes fundamentales del\nproceso educativo, con pleno respeto a sus derechos, a partir de su desarrollo\nprofesional, mejora continua y vocación de servicio. "]
[null,"CALENDARIZACIÓN Y SEGUIMIENTO DE LAS PRINCIPALES ACTIVIDADES  (7)"]
[null,"ACTIVIDADES",null,"UNIDAD DE MEDIDA","META  ANUAL",null,"CALENDARIO 2022                                 CUATRIMESTRAL",null,null,null,null,null,null,null,null,null,null,null,"JUSTIFICACIÓN DE LAS DESVIACIONES POSITIVAS O NEGATIVAS (8)",null,null,null,null,null,null,"ÁREA\nEJECUTORA (9)"]
[null,null,null,null,null,null,1,null,null,null,2,null,null,null,3]
[null,null,null,null,null,null,"PROG",null,"ALC",null,"PROG",null,"ALC",null,"PROG",null,"ALC"]
[null,null,null,null,null,null,"#","%","#","%","#","%","#","%","#","%","#","%"]
[null,"Asignar tutores para cada grupo",null,"Programación de asignación de tutores",{"$f":"3+3+3+3","v":12},null,{"$f":"1+1+1+1","v":4},{"$f":"G166/E166*100","v":33.3333333333333},null,null,{"$f":"2+2+2+2","v":8},{"$f":"K166/E166*100","v":66.6666666666667},null,null,{"$f":"3+3+3+3","v":12},{"$f":"O166/E166*100","v":100},null,null,null,null,null,null,null,null,null,"Div ER (1), MI (1) y DN (1); GA (3), TIyASP (3), TUyTF (3)"]
[null,"Impartición de tutorías ",null,"Grupos tutorados",{"$f":"39+21+26+42","v":128},null,{"$f":"6+6+7+6+13","v":38},{"$f":"G167/E167*100","v":29.6875},null,null,{"$f":"4+4+G167+11+10+22","v":89},{"$f":"K167/E167*100","v":69.53125},null,null,{"$f":"39+21+26+42","v":128},{"$f":"O167/E167*100","v":100},null,null,null,null,null,null,null,null,null,"Div ER, MI y DN (39); GA (21) TIyASP (26), TUyTF (42)"]
[]
[]
[]
[null,"DESCRIPCIÓN DEL ALCANCE DEL INDICADOR Y EFECTO SOCIOECONOMICO    (10)"]
[null,"Capacitar a nuestros profesores para que impartan tutorías con mejor contenido y en base al programa de tutorías que establece la CGUTYP"]
[]
[]
[null,"Mtra. Carmina Yadira Regalado Mardueño",null,null,null,null,null,null,null,null,null,null,null,null,null,"Lic. Victor Manuel Benítez Pérez"]
[null,"NOMBRE Y FIRMA DEL/LA RECTOR(A)",null,null,null,null,null,null,null,null,null,null,null,null,null,null,"NOMBRE Y FIRMA DE LA PERSONA RESPONSABLE DEL PROCESO"]

{"sheet":"CEDULA-vinculación","index":2,"n_rows":168,"n_cols":276,"rows_kept":168,"cut":false,"hidden":false,"merged":[[0,1,0,26],[2,1,2,26],[4,1,4,26],[12,1,12,26],[13,1,13,26],[14,4,14,8],[14,9,14,20],[15,9,15,14],[15,15,15,20],[16,9,16,11],[16,12,16,14],[16,15,16,17],[16,18,16,20],[16,21,16,23],[16,24,16,26],[17,9,17,11],[17,12,17,14],[17,15,17,17],[17,18,17,20],[17,21,17,23],[17,24,17,26],[18,4,18,8],[18,9,18,20],[19,9,19,14],[19,15,19,20],[20,9,20,11],[20,12,20,14],[20,15,20,17],[20,18,20,20],[20,21,20,23],[20,24,20,26],[21,9,21,11],[21,12,21,14],[21,15,21,17],[21,18,21,20],[21,21,21,23],[21,24,21,26],[24,1,24,26],[25,6,25,17],[26,6,26,9],[26,10,26,13],[26,14,26,17],[27,6,27,7],[27,8,27,9],[27,10,27,11],[27,12,27,13],[27,14,27,15],[27,16,27,17],[28,1,28,2],[28,4,28,5],[28,18,28,24],[28,25,28,26],[29,1,29,2],[29,4,29,5],[29,18,29,24],[29,25,29,26],[30,1,30,2],[30,4,30,5],[30,18,30,24],[30,25,30,26],[31,1,31,2],[31,4,31,5],[31,18,31,24],[31,25,31,26],[32,1,32,2],[32,4,32,5],[32,18,32,24],[32,25,32,26],[33,1,33,2],[33,4,33,5],[33,18,33,24],[33,25,33,26],[34,1,34,2],[34,4,34,5],[34,18,34,24],[34,25,34,26],[35,1,35,26],[36,1,36,26],[38,1,38,4],[38,15,38,26],[39,1,39,4],[39,16,39,26],[44,1,44,26],[46,1,46,26],[48,1,48,26],[56,1,56,26],[57,1,57,26],[58,4,58,8],[58,9,58,20],[59,9,59,14],[59,15,59,20],[60,9,60,11],[60,12,60,14],[60,15,60,17],[60,18,60,20],[60,21,60,23],[60,24,60,26],[61,9,61,11],[61,12,61,14],[61,15,61,17],[61,18,61,20],[61,21,61,23],[61,24,61,26],[62,4,62,8],[62,9,62,20],[63,9,63,14],[63,15,63,20],[64,9,64,11],[64,12,64,14],[64,15,64,17],[64,18,64,20],[64,21,64,23],[64,24,64,26],[65,9,65,11],[65,12,65,14],[65,15,65,17],[65,18,65,20],[65,21,65,23],[65,24,65,26],[66,1,66,2],[66,3,66,26],[67,1,67,26],[68,6,68,17],[69,6,69,9],[69,10,69,13],[69,14,69,17],[70,6,70,7],[70,8,70,9],[70,10,70,11],[70,12,70,13],[70,14,70,15],[70,16,70,17],[71,1,71,2],[71,4,71,5],[71,18,71,24],[71,25,71,26],[72,1,72,2],[72,4,72,5],[72,18,72,24],[72,25,72,26],[73,1,73,2],[73,4,73,5],[73,18,73,24],[73,25,73,26],[74,1,74,2],[74,4,74,5],[74,18,74,24],[74,25,74,26],[75,1,75,2],[75,4,75,5],[75,18,75,24],[75,25,75,26],[76,1,76,2],[76,4,76,5],[76,18,76,24],[76,25,76,26],[77,1,77,26],[78,1,78,26],[80,1,80,4],[80,15,80,26],[81,1,81,4],[81,16,81,26],[86,1,86,26],[88,1,88,26],[90,1,90,26],[98,1,98,26],[99,1,99,26],[100,4,100,8],[100,9,100,20],[101,9,101,14],[101,15,101,20],[102,9,102,11],[102,12,102,14],[102,15,102,17],[102,18,102,20],[102,21,102,23],[102,24,102,26],[103,9,103,11],[103,12,103,14],[103,15,103,17],[103,18,103,20],[103,21,103,23],[103,24,103,26],[104,4,104,8],[104,9,104,20],[105,9,105,14],[105,15,105,20],[106,9,106,11],[106,12,106,14],[106,15,106,17],[106,18,106,20],[106,21,106,23],[106,24,106,26],[107,9,107,11],[107,12,107,14],[107,15,107,17],[107,18,107,20],[107,21,107,23],[107,24,107,26],[108,1,108,2],[108,3,108,26],[109,1,109,26],[110,6,110,17],[111,6,111,9],[111,10,111,13],[111,14,111,17],[112,6,112,7],[112,8,112,9],[112,10,112,11],[112,12,112,13],[112,14,112,15],[112,16,112,17],[113,1,113,2],[113,4,113,5],[113,18,113,24],[113,25,113,26],[114,1,114,2],[114,4,114,5],[114,18,114,24],[114,25,114,26],[115,1,115,2],[115,4,115,5],[115,18,115,24],[115,25,115,26],[116,1,116,2],[116,4,116,5],[116,18,116,24],[116,25,116,26],[117,1,117,2],[117,4,117,5],[117,18,117,24],[117,25,117,26],[118,1,118,2],[118,4,118,5],[118,18,118,24],[118,25,118,26],[119,1,119,26],[120,1,120,26],[123,1,123,4],[123,14,123,26],[124,1,124,4],[124,16,124,26],[129,1,129,26],[131,1,131,26],[133,1,133,26],[141,1,141,26],[142,1,142,26],[143,4,143,8],[143,9,143,20],[144,9,144,14],[144,15,144,20],[145,9,145,11],[145,12,145,14],[145,15,145,17],[145,18,145,20],[145,21,145,23],[145,24,145,26],[146,9,146,11],[146,12,146,14],[146,15,146,17],[146,18,146,20],[146,21,146,23],[146,24,146,26],[147,4,147,8],[147,9,147,20],[148,9,148,14],[148,15,148,20],[149,9,149,11],[149,12,149,14],[149,15,149,17],[149,18,149,20],[149,21,149,23],[149,24,149,26],[150,9,150,11],[150,12,150,14],[150,15,150,17],[150,18,150,20],[150,21,150,23],[150,24,150,26],[151,1,151,2],[151,3,151,26],[152,1,152,26],[153,6,153,17],[154,6,154,9],[154,10,154,13],[154,14,154,17],[155,6,155,7],[155,8,155,9],[155,10,155,11],[155,12,155,13],[155,14,155,15],[155,16,155,17],[156,1,156,2],[156,4,156,5],[156,18,156,24],[156,25,156,26],[157,1,157,2],[157,4,157,5],[157,18,157,24],[157,25,157,26],[158,1,158,2],[158,4,158,5],[158,18,158,24],[158,25,158,26],[159,1,159,2],[159,4,159,5],[159,18,159,24],[159,25,159,26],[160,1,160,2],[160,4,160,5],[160,18,160,24],[160,25,160,26],[161,1,161,2],[161,4,161,5],[161,18,161,24],[161,25,161,26],[162,1,162,26],[163,1,163,26],[166,1,166,4],[166,15,166,26],[167,1,167,4],[167,16,167,26],[15,1,17,1],[19,1,21,1],[59,1,61,1],[63,1,65,1],[101,1,103,1],[105,1,107,1],[144,1,146,1],[148,1,150,1],[15,2,17,2],[19,2,21,2],[59,2,61,2],[63,2,65,2],[101,2,103,2],[105,2,107,2],[144,2,146,2],[148,2,150,2],[15,3,17,3],[19,3,21,3],[25,3,27,3],[59,3,61,3],[63,3,65,3],[68,3,70,3],[101,3,103,3],[105,3,107,3],[110,3,112,3],[144,3,146,3],[148,3,150,3],[153,3,155,3],[15,4,17,8],[6,1,9,15],[6,16,7,23],[6,24,7,26],[8,16,9,23],[8,24,9,26],[14,21,15,26],[10,1,11,26],[25,1,27,2],[25,25,27,26],[25,4,27,5],[25,18,27,24],[22,1,23,2],[22,3,23,26],[19,4,21,8],[18,21,19,26],[50,1,53,15],[50,16,51,23],[50,24,51,26],[52,16,53,23],[52,24,53,26],[54,1,55,26],[62,21,63,26],[68,1,70,2],[68,25,70,26],[101,4,103,8],[104,21,105,26],[110,18,112,24],[110,4,112,5],[147,21,148,26],[153,1,155,2],[153,25,155,26],[153,4,155,5],[153,18,155,24],[58,21,59,26],[59,4,61,8],[68,4,70,5],[68,18,70,24],[92,1,95,15],[92,16,93,23],[92,24,93,26],[94,16,95,23],[94,24,95,26],[63,4,65,8],[100,21,101,26],[96,1,97,26],[148,4,150,8],[105,4,107,8],[139,1,140,26],[135,1,138,15],[135,16,136,23],[135,24,136,26],[137,16,138,23],[137,24,138,26],[144,4,146,8],[143,21,144,26],[110,1,112,2],[110,25,112,26]]}
[null,"PROGRAMA OPERATIVO ANUAL 2022"]
[]
[null,"FORMATO 01 \"DESARROLLO DE PROCESOS\""]
[]
[null,"UNIVERSIDAD: Universidad Tecnológica de Bahía de Banderas"]
[]
[null,"DENOMINACIÓN DEL PROCESO:\n    \nVINCULACIÓN   (1)",null,null,null,null,null,null,null,null,null,null,null,null,null,null,"NUM. DE PROCESO",null,null,null,null,null,null,null,"TIPO DE PROCESO (3)               ",null,null,null,null,null,null,null,null,null,null,null,null,null,null,null,null,null,null,null,null,null,null,null,null,null,null,null,null,null,null,null,null,null,null,null,null,null,null,null,null,null,null,null,null,null,null,null,null,null,null,null,null,null,null,null,null,null,null,null,null,null,null,null,null,null,null,null,null,null,null,null,null,null,null,null,null,null,null,null,null,null,null,null,null,null,null,null,null,null,null,null,null,null,null,null,null,null,null,null,null,null,null,null,null,null,null,null,null,null,null,null,null,null,null,null,null,null,null,null,null,null,null,null,null,null,null,null,null,null,null,null,null,null,null,null,null,null,null,null,null,null,null,null,null,null,null,null,null,null,null,null,null,null,null,null,null,null,null,null,null,null,null,null,null,null,null,null,null,null,null,null,null,null,null,null,null,null,null,null,null,null,null,null,null,null,null,null,null,null,null,null,null,null,null,null,null,null,null,null,null,null,null,null,null,null,null,null,null,null,null,null,null,null,null,null,null,null,null,null,null,null,null,null,null,null,null,null,null,null,null,null,null,null,null,null,null,null,null,null,null,null,null,null,null,null,null,null,"VINCULACIÓN, EMPLEABILIDAD Y EMPRENDEDURISMO",null,"UNIDAD DE MEDIDA","MEDIA NACIONAL"]
[null,null,null,null,null,null,null,null,null,null,null,null,null,null,null,null,null,null,null,null,null,null,null,null,null,null,null,null,null,null,null,null,null,null,null,null,null,null,null,null,null,null,null,null,null,null,null,null,null,null,null,null,null,null,null,null,null,null,null,null,null,null,null,null,null,null,null,null,null,null,null,null,null,null,null,null,null,null,null,null,null,null,null,null,null,null,null,null,null,null,null,null,null,null,null,null,null,null,null,null,null,null,null,null,null,null,null,null,null,null,null,null,null,null,null,null,null,null,null,null,null,null,null,null,null,null,null,null,null,null,null,null,null,null,null,null,null,null,null,null,null,null,null,null,null,null,null,null,null,null,null,null,null,null,null,null,null,null,null,null,null,null,null,null,null,null,null,null,null,null,null,null,null,null,null,null,null,null,null,null,null,null,null,null,null,null,null,null,null,null,null,null,null,null,null,null,null,null,null,null,null,null,null,null,null,null,null,null,null,null,null,null,null,null,null,null,null,null,null,null,null,null,null,null,null,null,null,null,null,null,null,null,null,null,null,null,null,null,null,null,null,null,null,null,null,null,null,null,null,null,null,null,null,null,null,null,null,null,null,null,null,null,null,null,null,null,null,null,null,null,null,null,"Transferencia  del modelo de incubación de la CGUTyP","Número de Modelos de incubación transferidos. \n","Transferencias",95]
[null,null,null,null,null,null,null,null,null,null,null,null,null,null,null,null,3,null,null,null,null,null,null,null,"Pertinencia",null,null,null,null,null,null,null,null,null,null,null,null,null,null,null,null,null,null,null,null,null,null,null,null,null,null,null,null,null,null,null,null,null,null,null,null,null,null,null,null,null,null,null,null,null,null,null,null,null,null,null,null,null,null,null,null,null,null,null,null,null,null,null,null,null,null,null,null,null,null,null,null,null,null,null,null,null,null,null,null,null,null,null,null,null,null,null,null,null,null,null,null,null,null,null,null,null,null,null,null,null,null,null,null,null,null,null,null,null,null,null,null,null,null,null,null,null,null,null,null,null,null,null,null,null,null,null,null,null,null,null,null,null,null,null,null,null,null,null,null,null,null,null,null,null,null,null,null,null,null,null,null,null,null,null,null,null,null,null,null,null,null,null,null,null,null,null,null,null,null,null,null,null,null,null,null,null,null,null,null,null,null,null,null,null,null,null,null,null,null,null,null,null,null,null,null,null,null,null,null,null,null,null,null,null,null,null,null,null,null,null,null,null,null,null,null,null,null,null,null,null,null,null,null,null,null,null,null,null,null,null,null,null,null,null,null,null,null,null,null,null,null,null,null,null,null,null,"Número de empresas generadas anualmente, derivadas de los proyectos incubados en la Universidad sin importar cuántos se hayan incubado en total","Número total de empresas generadas anualmente, sin importar cuántos proyectos se hayan incubado en total","Empresas",1382]
[null,null,null,null,null,null,null,null,null,null,null,null,null,null,null,null,null,null,null,null,null,null,null,null,null,null,null,null,null,null,null,null,null,null,null,null,null,null,null,null,null,null,null,null,null,null,null,null,null,null,null,null,null,null,null,null,null,null,null,null,null,null,null,null,null,null,null,null,null,null,null,null,null,null,null,null,null,null,null,null,null,null,null,null,null,null,null,null,null,null,null,null,null,null,null,null,null,null,null,null,null,null,null,null,null,null,null,null,null,null,null,null,null,null,null,null,null,null,null,null,null,null,null,null,null,null,null,null,null,null,null,null,null,null,null,null,null,null,null,null,null,null,null,null,null,null,null,null,null,null,null,null,null,null,null,null,null,null,null,null,null,null,null,null,null,null,null,null,null,null,null,null,null,null,null,null,null,null,null,null,null,null,null,null,null,null,null,null,null,null,null,null,null,null,null,null,null,null,null,null,null,null,null,null,null,null,null,null,null,null,null,null,null,null,null,null,null,null,null,null,null,null,null,null,null,null,null,null,null,null,null,null,null,null,null,null,null,null,null,null,null,null,null,null,null,null,null,null,null,null,null,null,null,null,null,null,null,null,null,null,null,null,null,null,null,null,null,null,null,null,null,null,"Número de convenios firmados anualmente con el sector productivo ","Número de convenios firmados anualmente con el sector productivo ","Convenios",10560]
[null,"ÁREA RESPONSABLE( 4 )",null,null,null,null,null,null,null,null,null,null,null,null,null,null,null,null,null,null,null,null,null,null,null,null,null,null,null,null,null,null,null,null,null,null,null,null,null,null,null,null,null,null,null,null,null,null,null,null,null,null,null,null,null,null,null,null,null,null,null,null,null,null,null,null,null,null,null,null,null,null,null,null,null,null,null,null,null,null,null,null,null,null,null,null,null,null,null,null,null,null,null,null,null,null,null,null,null,null,null,null,null,null,null,null,null,null,null,null,null,null,null,null,null,null,null,null,null,null,null,null,null,null,null,null,null,null,null,null,null,null,null,null,null,null,null,null,null,null,null,null,null,null,null,null,null,null,null,null,null,null,null,null,null,null,null,null,null,null,null,null,null,null,null,null,null,null,null,null,null,null,null,null,null,null,null,null,null,null,null,null,null,null,null,null,null,null,null,null,null,null,null,null,null,null,null,null,null,null,null,null,null,null,null,null,null,null,null,null,null,null,null,null,null,null,null,null,null,null,null,null,null,null,null,null,null,null,null,null,null,null,null,null,null,null,null,null,null,null,null,null,null,null,null,null,null,null,null,null,null,null,null,null,null,null,null,null,null,null,null,null,null,null,null,null,null,null,null,null,null,null,"Número de Consejos de Vinculación instalados en la Institución  ","Número de Consejos de Vinculación en la Institución instalados","Consejos",109]
[null,null,null,null,null,null,null,null,null,null,null,null,null,null,null,null,null,null,null,null,null,null,null,null,null,null,null,null,null,null,null,null,null,null,null,null,null,null,null,null,null,null,null,null,null,null,null,null,null,null,null,null,null,null,null,null,null,null,null,null,null,null,null,null,null,null,null,null,null,null,null,null,null,null,null,null,null,null,null,null,null,null,null,null,null,null,null,null,null,null,null,null,null,null,null,null,null,null,null,null,null,null,null,null,null,null,null,null,null,null,null,null,null,null,null,null,null,null,null,null,null,null,null,null,null,null,null,null,null,null,null,null,null,null,null,null,null,null,null,null,null,null,null,null,null,null,null,null,null,null,null,null,null,null,null,null,null,null,null,null,null,null,null,null,null,null,null,null,null,null,null,null,null,null,null,null,null,null,null,null,null,null,null,null,null,null,null,null,null,null,null,null,null,null,null,null,null,null,null,null,null,null,null,null,null,null,null,null,null,null,null,null,null,null,null,null,null,null,null,null,null,null,null,null,null,null,null,null,null,null,null,null,null,null,null,null,null,null,null,null,null,null,null,null,null,null,null,null,null,null,null,null,null,null,null,null,null,null,null,null,null,null,null,null,null,null,null,null,null,null,null,null,"Número de Entidades de Evaluación y Certificación","Número de Entidades de evaluación y certificación","Entidades",85]
[null,"VINCULACIÓN",null,null,null,null,null,null,null,null,null,null,null,null,null,null,null,null,null,null,null,null,null,null,null,null,null,null,null,null,null,null,null,null,null,null,null,null,null,null,null,null,null,null,null,null,null,null,null,null,null,null,null,null,null,null,null,null,null,null,null,null,null,null,null,null,null,null,null,null,null,null,null,null,null,null,null,null,null,null,null,null,null,null,null,null,null,null,null,null,null,null,null,null,null,null,null,null,null,null,null,null,null,null,null,null,null,null,null,null,null,null,null,null,null,null,null,null,null,null,null,null,null,null,null,null,null,null,null,null,null,null,null,null,null,null,null,null,null,null,null,null,null,null,null,null,null,null,null,null,null,null,null,null,null,null,null,null,null,null,null,null,null,null,null,null,null,null,null,null,null,null,null,null,null,null,null,null,null,null,null,null,null,null,null,null,null,null,null,null,null,null,null,null,null,null,null,null,null,null,null,null,null,null,null,null,null,null,null,null,null,null,null,null,null,null,null,null,null,null,null,null,null,null,null,null,null,null,null,null,null,null,null,null,null,null,null,null,null,null,null,null,null,null,null,null,null,null,null,null,null,null,null,null,null,null,null,null,null,null,null,null,null,null,null,null,null,null,null,null,null,null,"Número de certificados expedidos anualmente por el Centro de Certificación iCarnegie","Número de certificados expedidos anualmente por el Centro de Certificación iCarnegie","Certificados",3858]
[null,"INDICADORES  ( 5 )",null,null,null,null,null,null,null,null,null,null,null,null,null,null,null,null,null,null,null,null,null,null,null,null,null,null,null,null,null,null,null,null,null,null,null,null,null,null,null,null,null,null,null,null,null,null,null,null,null,null,null,null,null,null,null,null,null,null,null,null,null,null,null,null,null,null,null,null,null,null,null,null,null,null,null,null,null,null,null,null,null,null,null,null,null,null,null,null,null,null,null,null,null,null,null,null,null,null,null,null,null,null,null,null,null,null,null,null,null,null,null,null,null,null,null,null,null,null,null,null,null,null,null,null,null,null,null,null,null,null,null,null,null,null,null,null,null,null,null,null,null,null,null,null,null,null,null,null,null,null,null,null,null,null,null,null,null,null,null,null,null,null,null,null,null,null,null,null,null,null,null,null,null,null,null,null,null,null,null,null,null,null,null,null,null,null,null,null,null,null,null,null,null,null,null,null,null,null,null,null,null,null,null,null,null,null,null,null,null,null,null,null,null,null,null,null,null,null,null,null,null,null,null,null,null,null,null,null,null,null,null,null,null,null,null,null,null,null,null,null,null,null,null,null,null,null,null,null,null,null,null,null,null,null,null,null,null,null,null,null,null,null,null,null,null,null,null,null,null,null,"Número de Centros de Certificación National Instruments","Número de centros de Certificación National Instruments","Centros",45]
[null,"NOMBRE DEL INDICADOR (5.1)","FÓRMULA","UNIDAD DE MEDIDA","META INSTITUCIONAL A 2024 \nPROGRAMA INSTITUCIONAL DE DESARROLLO DE LA UNIVERSIDAD",null,null,null,null,"CONTEXTO ACTUAL Y A FUTURO DEL INDICADOR (5.2)",null,null,null,null,null,null,null,null,null,null,null,"Total alcanzado (Se reporta en el tercer cuatrimestre) (5.3)",null,null,null,null,null,null,null,null,null,null,null,null,null,null,null,null,null,null,null,null,null,null,null,null,null,null,null,null,null,null,null,null,null,null,null,null,null,null,null,null,null,null,null,null,null,null,null,null,null,null,null,null,null,null,null,null,null,null,null,null,null,null,null,null,null,null,null,null,null,null,null,null,null,null,null,null,null,null,null,null,null,null,null,null,null,null,null,null,null,null,null,null,null,null,null,null,null,null,null,null,null,null,null,null,null,null,null,null,null,null,null,null,null,null,null,null,null,null,null,null,null,null,null,null,null,null,null,null,null,null,null,null,null,null,null,null,null,null,null,null,null,null,null,null,null,null,null,null,null,null,null,null,null,null,null,null,null,null,null,null,null,null,null,null,null,null,null,null,null,null,null,null,null,null,null,null,null,null,null,null,null,null,null,null,null,null,null,null,null,null,null,null,null,null,null,null,null,null,null,null,null,null,null,null,null,null,null,null,null,null,null,null,null,null,null,null,null,null,null,null,null,null,null,null,null,null,null,null,null,null,null,null,null,null,null,null,null,null,null,null,null,null,null,null,null,null,null,null,null,null,"Número de certificados expedidos anualmente por algún centro certificador.","Número de certificados expedidos anualmente por algún centro certificador.","Certificados",3136]
[null,"Número de convenios firmados anualmente con el sector productivo ",{"$f":"(IF(B16=\"Transferencia  del modelo de incubación de la CGUTyP\",JN8,IF(B16=\"Número de empresas generadas anualmente, derivadas de los proyectos incubados en la Universidad sin importar cuántos se hayan incubado en total\",JN9,IF(B16=\"Número total de empleos generados anualmente por las empresas incubadas\",#REF!,IF(B16=\"Número de convenios firmados anualmente con el sector productivo \",JN10,IF(B16=\"Número de Consejos de Vinculación instalados en la Institución  \",JN11,IF(B16=\"Número de Entidades de Evaluación y Certificación\",JN12,IF(B16=\"Número de certificados expedidos anualmente por la Entidad de Evaluación y Certificación (EEC)\",#REF!,IF(B16=\"Número de Centros de Certificación iCarnegie\",#REF!,IF(B16=\"Número de certificados expedidos anualmente por el Centro de Certificación iCarnegie\",JN13,IF(B16=\"Número de Centros de Certificación National Instruments\",JN14,IF(B16=\"Número de certificados expedidos anualmente por algún Centro Certificador.\",JN15,IF(B16=\"Porcentaje de egresados de TSU que optan por la continuidad de estudios\",JN16,IF(B16=\"Porcentaje de egresados de TSU que obtienen empleo en 6 meses o menos\",JN17,IF(B16=\"Porcentaje de egresados de TSU que optaron por la continuidad y que tienen empleo\",JN18,IF(B16=\"Porcentaje de colocación, en 6 meses o menos, de los egresados de Ingeniería\",JN19,IF(B16=\"Porcentaje de colocación de los egresados en su área de competencia\",JN20)))))))))))))))))","v":"Número de convenios firmados anualmente con el sector productivo "},{"$f":"(IF(B16=\"Transferencia  del modelo de incubación de la CGUTyP\",JO8,IF(B16=\"Número de empresas generadas anualmente, derivadas de los proyectos incubados en la Universidad sin importar cuántos se hayan incubado en total\",JO9,IF(B16=\"Número total de empleos generados anualmente por las empresas incubadas\",#REF!,IF(B16=\"Número de convenios firmados anualmente con el sector productivo \",JO10,IF(B16=\"Número de Consejos de Vinculación instalados en la Institución  \",JO11,IF(B16=\"Número de Entidades de Evaluación y Certificación\",JO12,IF(B16=\"Número de certificados expedidos anualmente por la Entidad de Evaluación y Certificación (EEC)\",#REF!,IF(B16=\"Número de Centros de Certificación iCarnegie\",#REF!,IF(B16=\"Número de certificados expedidos anualmente por el Centro de Certificación iCarnegie\",JO13,IF(B16=\"Número de Centros de Certificación National Instruments\",JO14,IF(B16=\"Número de certificados expedidos anualmente por algún centro certificador.\",JO15,IF(B16=\"Porcentaje de egresados de TSU que optan por la continuidad de estudios\",JO16,IF(B16=\"Porcentaje de egresados de TSU que obtienen empleo en 6 meses o menos\",JO17,IF(B16=\"Porcentaje de egresados de TSU que optaron por la continuidad y que tienen empleo\",JO18,IF(B16=\"Porcentaje de colocación, en 6 meses o menos, de los egresados de Ingeniería\",JO19,IF(B16=\"Porcentaje de colocación de los egresados en su área de competencia\",JO20)))))))))))))))))","v":"Convenios"},"Líneas estratégicas del PIDE  del SUT o SUP 2022-2027 al que se da atención. ( 5 ).\nGeneralizar la creación de órganos institucionales de vinculación, perfeccionando los mecanismos de interacción con las empresas.",null,null,null,null,2021,null,null,null,null,null,2022,null,null,null,null,null,null,null,null,null,null,null,null,null,null,null,null,null,null,null,null,null,null,null,null,null,null,null,null,null,null,null,null,null,null,null,null,null,null,null,null,null,null,null,null,null,null,null,null,null,null,null,null,null,null,null,null,null,null,null,null,null,null,null,null,null,null,null,null,null,null,null,null,null,null,null,null,null,null,null,null,null,null,null,null,null,null,null,null,null,null,null,null,null,null,null,null,null,null,null,null,null,null,null,null,null,null,null,null,null,null,null,null,null,null,null,null,null,null,null,null,null,null,null,null,null,null,null,null,null,null,null,null,null,null,null,null,null,null,null,null,null,null,null,null,null,null,null,null,null,null,null,null,null,null,null,null,null,null,null,null,null,null,null,null,null,null,null,null,null,null,null,null,null,null,null,null,null,null,null,null,null,null,null,null,null,null,null,null,null,null,null,null,null,null,null,null,null,null,null,null,null,null,null,null,null,null,null,null,null,null,null,null,null,null,null,null,null,null,null,null,null,null,null,null,null,null,null,null,null,null,null,null,null,null,null,null,null,null,null,null,null,null,null,null,null,null,null,null,null,null,null,null,null,null,null,null,"Porcentaje de egresados de TSU que optan por la continuidad de estudios","(Número de egresados de TSU que optan por la continuidad de estudios/número de egresados de TSU en el año t)*100","Alumnos",48]
[null,null,null,null,null,null,null,null,null,"Número actual",null,null,"Porcentaje actual",null,null,"Número a lograr",null,null,"Porcentaje a lograr",null,null,"Número alcanzado ",null,null,"Porcentaje alcanzado",null,null,null,null,null,null,null,null,null,null,null,null,null,null,null,null,null,null,null,null,null,null,null,null,null,null,null,null,null,null,null,null,null,null,null,null,null,null,null,null,null,null,null,null,null,null,null,null,null,null,null,null,null,null,null,null,null,null,null,null,null,null,null,null,null,null,null,null,null,null,null,null,null,null,null,null,null,null,null,null,null,null,null,null,null,null,null,null,null,null,null,null,null,null,null,null,null,null,null,null,null,null,null,null,null,null,null,null,null,null,null,null,null,null,null,null,null,null,null,null,null,null,null,null,null,null,null,null,null,null,null,null,null,null,null,null,null,null,null,null,null,null,null,null,null,null,null,null,null,null,null,null,null,null,null,null,null,null,null,null,null,null,null,null,null,null,null,null,null,null,null,null,null,null,null,null,null,null,null,null,null,null,null,null,null,null,null,null,null,null,null,null,null,null,null,null,null,null,null,null,null,null,null,null,null,null,null,null,null,null,null,null,null,null,null,null,null,null,null,null,null,null,null,null,null,null,null,null,null,null,null,null,null,null,null,null,null,null,null,null,null,null,null,null,null,null,null,"Porcentaje de egresados de TSU que obtienen empleo en 6 meses o menos","(Número de egresados de TSU que obtienen trabajo en 6 meses o menos/número de estudiantes egresados de TSU en el año t)*100","Alumnos",89]
[null,null,null,null,null,null,null,null,null,556,null,null,100,null,null,621,null,null,100,null,null,null,null,null,null,null,null,null,null,null,null,null,null,null,null,null,null,null,null,null,null,null,null,null,null,null,null,null,null,null,null,null,null,null,null,null,null,null,null,null,null,null,null,null,null,null,null,null,null,null,null,null,null,null,null,null,null,null,null,null,null,null,null,null,null,null,null,null,null,null,null,null,null,null,null,null,null,null,null,null,null,null,null,null,null,null,null,null,null,null,null,null,null,null,null,null,null,null,null,null,null,null,null,null,null,null,null,null,null,null,null,null,null,null,null,null,null,null,null,null,null,null,null,null,null,null,null,null,null,null,null,null,null,null,null,null,null,null,null,null,null,null,null,null,null,null,null,null,null,null,null,null,null,null,null,null,null,null,null,null,null,null,null,null,null,null,null,null,null,null,null,null,null,null,null,null,null,null,null,null,null,null,null,null,null,null,null,null,null,null,null,null,null,null,null,null,null,null,null,null,null,null,null,null,null,null,null,null,null,null,null,null,null,null,null,null,null,null,null,null,null,null,null,null,null,null,null,null,null,null,null,null,null,null,null,null,null,null,null,null,null,null,null,null,null,null,null,null,null,null,null,null,"Porcentaje de egresados de TSU que optaron por la continuidad y que tienen empleo","(Número de egresados de TSU que optaron por la continuidad y que tienen empleo/número de egresados de TSU) *100 ","Alumnos",25]
[null,"NOMBRE DEL INDICADOR (5.1)","FÓRMULA","UNIDAD DE MEDIDA","META INSTITUCIONAL A 2024 \nPROGRAMA INSTITUCIONAL DE DESARROLLO DE LA UNIVERSIDAD",null,null,null,null,"CONTEXTO ACTUAL Y A FUTURO DEL INDICADOR (5.2)",null,null,null,null,null,null,null,null,null,null,null,"Total alcanzado (Se reporta en el tercer cuatrimestre) (5.3)",null,null,null,null,null,null,null,null,null,null,null,null,null,null,null,null,null,null,null,null,null,null,null,null,null,null,null,null,null,null,null,null,null,null,null,null,null,null,null,null,null,null,null,null,null,null,null,null,null,null,null,null,null,null,null,null,null,null,null,null,null,null,null,null,null,null,null,null,null,null,null,null,null,null,null,null,null,null,null,null,null,null,null,null,null,null,null,null,null,null,null,null,null,null,null,null,null,null,null,null,null,null,null,null,null,null,null,null,null,null,null,null,null,null,null,null,null,null,null,null,null,null,null,null,null,null,null,null,null,null,null,null,null,null,null,null,null,null,null,null,null,null,null,null,null,null,null,null,null,null,null,null,null,null,null,null,null,null,null,null,null,null,null,null,null,null,null,null,null,null,null,null,null,null,null,null,null,null,null,null,null,null,null,null,null,null,null,null,null,null,null,null,null,null,null,null,null,null,null,null,null,null,null,null,null,null,null,null,null,null,null,null,null,null,null,null,null,null,null,null,null,null,null,null,null,null,null,null,null,null,null,null,null,null,null,null,null,null,null,null,null,null,null,null,null,null,null,null,null,null,"Porcentaje de colocación, en 6 meses o menos, de los egresados de Ingeniería","(Número de egresados de Ingeniería que encontraron colocación en el sector productivo, en 6 meses o menos/número de egresados de Ingeniería)*100","Alumnos",86]
[null,"Porcentaje de egresados de TSU que optan por la continuidad de estudios",{"$f":"(IF(B20=\"Transferencia  del modelo de incubación de la CGUTyP\",JN8,IF(B20=\"Número de empresas generadas anualmente, derivadas de los proyectos incubados en la Universidad sin importar cuántos se hayan incubado en total\",JN9,IF(B20=\"Número total de empleos generados anualmente por las empresas incubadas\",#REF!,IF(B20=\"Número de convenios firmados anualmente con el sector productivo \",JN10,IF(B20=\"Número de Consejos de Vinculación instalados en la Institución  \",JN11,IF(B20=\"Número de Entidades de Evaluación y Certificación\",JN12,IF(B20=\"Número de certificados expedidos anualmente por la Entidad de Evaluación y Certificación (EEC)\",#REF!,IF(B20=\"Número de Centros de Certificación iCarnegie\",#REF!,IF(B20=\"Número de certificados expedidos anualmente por el Centro de Certificación iCarnegie\",JN13,IF(B20=\"Número de Centros de Certificación National Instruments\",JN14,IF(B20=\"Número de certificados expedidos anualmente por algún Centro Certificador.\",JN15,IF(B20=\"Porcentaje de egresados de TSU que optan por la continuidad de estudios\",JN16,IF(B20=\"Porcentaje de egresados de TSU que obtienen empleo en 6 meses o menos\",JN17,IF(B20=\"Porcentaje de egresados de TSU que optaron por la continuidad y que tienen empleo\",JN18,IF(B20=\"Porcentaje de colocación, en 6 meses o menos, de los egresados de Ingeniería\",JN19,IF(B20=\"Porcentaje de colocación de los egresados en su área de competencia\",JN20)))))))))))))))))","v":"(Número de egresados de TSU que optan por la continuidad de estudios/número de egresados de TSU en el año t)*100"},{"$f":"(IF(B20=\"Transferencia  del modelo de incubación de la CGUTyP\",JO8,IF(B20=\"Número de empresas generadas anualmente, derivadas de los proyectos incubados en la Universidad sin importar cuántos se hayan incubado en total\",JO9,IF(B20=\"Número total de empleos generados anualmente por las empresas incubadas\",#REF!,IF(B20=\"Número de convenios firmados anualmente con el sector productivo \",JO10,IF(B20=\"Número de Consejos de Vinculación instalados en la Institución  \",JO11,IF(B20=\"Número de Entidades de Evaluación y Certificación\",JO12,IF(B20=\"Número de certificados expedidos anualmente por la Entidad de Evaluación y Certificación (EEC)\",#REF!,IF(B20=\"Número de Centros de Certificación iCarnegie\",#REF!,IF(B20=\"Número de certificados expedidos anualmente por el Centro de Certificación iCarnegie\",JO13,IF(B20=\"Número de Centros de Certificación National Instruments\",JO14,IF(B20=\"Número de certificados expedidos anualmente por algún centro certificador.\",JO15,IF(B20=\"Porcentaje de egresados de TSU que optan por la continuidad de estudios\",JO16,IF(B20=\"Porcentaje de egresados de TSU que obtienen empleo en 6 meses o menos\",JO17,IF(B20=\"Porcentaje de egresados de TSU que optaron por la continuidad y que tienen empleo\",JO18,IF(B20=\"Porcentaje de colocación, en 6 meses o menos, de los egresados de Ingeniería\",JO19,IF(B20=\"Porcentaje de colocación de los egresados en su área de competencia\",JO20)))))))))))))))))","v":"Alumnos"},"Líneas estratégicas del PIDE  del SUT o SUP 2013-2018 al que se da atención. ( 5 ).\nGeneralizar la creación de órganos institucionales de vinculación, perfeccionando los mecanismos de interacción con las empresas.",null,null,null,null,2021,null,null,null,null,null,2022,null,null,null,null,null,null,null,null,null,null,null,null,null,null,null,null,null,null,null,null,null,null,null,null,null,null,null,null,null,null,null,null,null,null,null,null,null,null,null,null,null,null,null,null,null,null,null,null,null,null,null,null,null,null,null,null,null,null,null,null,null,null,null,null,null,null,null,null,null,null,null,null,null,null,null,null,null,null,null,null,null,null,null,null,null,null,null,null,null,null,null,null,null,null,null,null,null,null,null,null,null,null,null,null,null,null,null,null,null,null,null,null,null,null,null,null,null,null,null,null,null,null,null,null,null,null,null,null,null,null,null,null,null,null,null,null,null,null,null,null,null,null,null,null,null,null,null,null,null,null,null,null,null,null,null,null,null,null,null,null,null,null,null,null,null,null,null,null,null,null,null,null,null,null,null,null,null,null,null,null,null,null,null,null,null,null,null,null,null,null,null,null,null,null,null,null,null,null,null,null,null,null,null,null,null,null,null,null,null,null,null,null,null,null,null,null,null,null,null,null,null,null,null,null,null,null,null,null,null,null,null,null,null,null,null,null,null,null,null,null,null,null,null,null,null,null,null,null,null,null,null,null,null,null,null,null,"Porcentaje de colocación de los egresados en su área de competencia","(Número de egresados que tienen trabajo en su área de competencia / número de egresados que tienen empleo) *100 ","Alumnos",69]
[null,null,null,null,null,null,null,null,null,"Número actual",null,null,"Porcentaje actual",null,null,"Número a lograr",null,null,"Porcentaje a lograr",null,null,"Número alcanzado ",null,null,"Porcentaje alcanzado",null,null,null,null,null,null,null,null,null,null,null,null,null,null,null,null,null,null,null,null,null,null,null,null,null,null,null,null,null,null,null,null,null,null,null,null,null,null,null,null,null,null,null,null,null,null,null,null,null,null,null,null,null,null,null,null,null,null,null,null,null,null,null,null,null,null,null,null,null,null,null,null,null,null,null,null,null,null,null,null,null,null,null,null,null,null,null,null,null,null,null,null,null,null,null,null,null,null,null,null,null,null,null,null,null,null,null,null,null,null,null,null,null,null,null,null,null,null,null,null,null,null,null,null,null,null,null,null,null,null,null,null,null,null,null,null,null,null,null,null,null,null,null,null,null,null,null,null,null,null,null,null,null,null,null,null,null,null,null,null,null,null,null,null,null,null,null,null,null,null,null,null,null,null,null,null,null,null,null,null,null,null,null,null,null,null,null,null,null,null,null,null,null,null,null,null,null,null,null,null,null,null,null,null,null,null,null,null,null,null,null,null,null,null,null,null,null,null,null,null,null,null,null,null,null,null,null,null,null,null,null,null,null,null,null,null,null,null,null,null,null,null,null,null,null,null,null,"NUEVOS MODELOS DE COOPERACIÓN PARA LA INTERNACIONALIZACIÓN DE LA EDUCACIÓN SUPERIORINDICADOR","FÓRMULA","UNIDAD DE MEDIDA","MEDIA NACIONAL"]
[null,null,null,null,null,null,null,null,null,251,null,null,96,null,null,208,null,null,100,null,null,null,null,null,null,null,null,null,null,null,null,null,null,null,null,null,null,null,null,null,null,null,null,null,null,null,null,null,null,null,null,null,null,null,null,null,null,null,null,null,null,null,null,null,null,null,null,null,null,null,null,null,null,null,null,null,null,null,null,null,null,null,null,null,null,null,null,null,null,null,null,null,null,null,null,null,null,null,null,null,null,null,null,null,null,null,null,null,null,null,null,null,null,null,null,null,null,null,null,null,null,null,null,null,null,null,null,null,null,null,null,null,null,null,null,null,null,null,null,null,null,null,null,null,null,null,null,null,null,null,null,null,null,null,null,null,null,null,null,null,null,null,null,null,null,null,null,null,null,null,null,null,null,null,null,null,null,null,null,null,null,null,null,null,null,null,null,null,null,null,null,null,null,null,null,null,null,null,null,null,null,null,null,null,null,null,null,null,null,null,null,null,null,null,null,null,null,null,null,null,null,null,null,null,null,null,null,null,null,null,null,null,null,null,null,null,null,null,null,null,null,null,null,null,null,null,null,null,null,null,null,null,null,null,null,null,null,null,null,null,null,null,null,null,null,null,null,null,null,null,null,null,"Número de estudiantes inscritos en programas de intercambio o movilidad  en instituciones extranjeras","Número de estudiantes inscritos en programas de intercambio o movilidad  en instituciones extranjeras","Estudiantes",3441]
[null,"OBJETIVO AL QUE ATIENDE DE ACUERDO AL PSE 2020-2024    (6)",null,"6.1.- Garantizar el derecho de la población en México a una educación equitativa,\ninclusiva, intercultural e integral, que tenga como eje principal el interés superior\nde las niñas, niños, adolescentes y jóvenes. \n6.4 Generar entornos favorables para el proceso de enseñanza-aprendizaje en los\ndiferentes tipos, niveles y modalidades del Sistema Educativo Nacional.",null,null,null,null,null,null,null,null,null,null,null,null,null,null,null,null,null,null,null,null,null,null,null,null,null,null,null,null,null,null,null,null,null,null,null,null,null,null,null,null,null,null,null,null,null,null,null,null,null,null,null,null,null,null,null,null,null,null,null,null,null,null,null,null,null,null,null,null,null,null,null,null,null,null,null,null,null,null,null,null,null,null,null,null,null,null,null,null,null,null,null,null,null,null,null,null,null,null,null,null,null,null,null,null,null,null,null,null,null,null,null,null,null,null,null,null,null,null,null,null,null,null,null,null,null,null,null,null,null,null,null,null,null,null,null,null,null,null,null,null,null,null,null,null,null,null,null,null,null,null,null,null,null,null,null,null,null,null,null,null,null,null,null,null,null,null,null,null,null,null,null,null,null,null,null,null,null,null,null,null,null,null,null,null,null,null,null,null,null,null,null,null,null,null,null,null,null,null,null,null,null,null,null,null,null,null,null,null,null,null,null,null,null,null,null,null,null,null,null,null,null,null,null,null,null,null,null,null,null,null,null,null,null,null,null,null,null,null,null,null,null,null,null,null,null,null,null,null,null,null,null,null,null,null,null,null,null,null,null,null,null,null,null,null,null,null,null,null,"Número de estudiantes extranjeros inscritos en programas de intercambio en nuestras instituciones","Número de estudiantes extranjeros inscritos en programas de intercambio en nuestras instituciones.","Estudiantes",588]
[null,null,null,null,null,null,null,null,null,null,null,null,null,null,null,null,null,null,null,null,null,null,null,null,null,null,null,null,null,null,null,null,null,null,null,null,null,null,null,null,null,null,null,null,null,null,null,null,null,null,null,null,null,null,null,null,null,null,null,null,null,null,null,null,null,null,null,null,null,null,null,null,null,null,null,null,null,null,null,null,null,null,null,null,null,null,null,null,null,null,null,null,null,null,null,null,null,null,null,null,null,null,null,null,null,null,null,null,null,null,null,null,null,null,null,null,null,null,null,null,null,null,null,null,null,null,null,null,null,null,null,null,null,null,null,null,null,null,null,null,null,null,null,null,null,null,null,null,null,null,null,null,null,null,null,null,null,null,null,null,null,null,null,null,null,null,null,null,null,null,null,null,null,null,null,null,null,null,null,null,null,null,null,null,null,null,null,null,null,null,null,null,null,null,null,null,null,null,null,null,null,null,null,null,null,null,null,null,null,null,null,null,null,null,null,null,null,null,null,null,null,null,null,null,null,null,null,null,null,null,null,null,null,null,null,null,null,null,null,null,null,null,null,null,null,null,null,null,null,null,null,null,null,null,null,null,null,null,null,null,null,null,null,null,null,null,null,null,null,null,null,null,"Número de profesores extranjeros en programas de intercambio en instituciones nacionales","Número de profesores extranjeros en programas de intercambio en instituciones nacionales","Profesores",270]
[null,"CALENDARIZACIÓN Y SEGUIMIENTO DE LAS PRINCIPALES ACTIVIDADES  (7)",null,null,null,null,null,null,null,null,null,null,null,null,null,null,null,null,null,null,null,null,null,null,null,null,null,null,null,null,null,null,null,null,null,null,null,null,null,null,null,null,null,null,null,null,null,null,null,null,null,null,null,null,null,null,null,null,null,null,null,null,null,null,null,null,null,null,null,null,null,null,null,null,null,null,null,null,null,null,null,null,null,null,null,null,null,null,null,null,null,null,null,null,null,null,null,null,null,null,null,null,null,null,null,null,null,null,null,null,null,null,null,null,null,null,null,null,null,null,null,null,null,null,null,null,null,null,null,null,null,null,null,null,null,null,null,null,null,null,null,null,null,null,null,null,null,null,null,null,null,null,null,null,null,null,null,null,null,null,null,null,null,null,null,null,null,null,null,null,null,null,null,null,null,null,null,null,null,null,null,null,null,null,null,null,null,null,null,null,null,null,null,null,null,null,null,null,null,null,null,null,null,null,null,null,null,null,null,null,null,null,null,null,null,null,null,null,null,null,null,null,null,null,null,null,null,null,null,null,null,null,null,null,null,null,null,null,null,null,null,null,null,null,null,null,null,null,null,null,null,null,null,null,null,null,null,null,null,null,null,null,null,null,null,null,null,null,null,null,null,null,"Número de profesores en programas de intercambio en instituciones internacionales","Número de profesores en programas de intercambio en instituciones internacionales","Profesores",713]
[null,"ACTIVIDADES",null,"UNIDAD DE MEDIDA","META  ANUAL",null,"CALENDARIO 2022                                      CUATRIMESTRAL",null,null,null,null,null,null,null,null,null,null,null,"JUSTIFICACIÓN DE LAS DESVIACIONES POSITIVAS O NEGATIVAS (8)",null,null,null,null,null,null,"ÁREA\nEJECUTORA (9)",null,null,null,null,null,null,null,null,null,null,null,null,null,null,null,null,null,null,null,null,null,null,null,null,null,null,null,null,null,null,null,null,null,null,null,null,null,null,null,null,null,null,null,null,null,null,null,null,null,null,null,null,null,null,null,null,null,null,null,null,null,null,null,null,null,null,null,null,null,null,null,null,null,null,null,null,null,null,null,null,null,null,null,null,null,null,null,null,null,null,null,null,null,null,null,null,null,null,null,null,null,null,null,null,null,null,null,null,null,null,null,null,null,null,null,null,null,null,null,null,null,null,null,null,null,null,null,null,null,null,null,null,null,null,null,null,null,null,null,null,null,null,null,null,null,null,null,null,null,null,null,null,null,null,null,null,null,null,null,null,null,null,null,null,null,null,null,null,null,null,null,null,null,null,null,null,null,null,null,null,null,null,null,null,null,null,null,null,null,null,null,null,null,null,null,null,null,null,null,null,null,null,null,null,null,null,null,null,null,null,null,null,null,null,null,null,null,null,null,null,null,null,null,null,null,null,null,null,null,null,null,null,null,null,null,null,null,null,null,null,null,null,null,null,null,null,"Número de programas de lengua extranjera que se imparten en la institución","Número de programas de lengua extranjera que se imparten en la institución","Programas",72]
[null,null,null,null,null,null,1,null,null,null,2,null,null,null,3,null,null,null,null,null,null,null,null,null,null,null,null,null,null,null,null,null,null,null,null,null,null,null,null,null,null,null,null,null,null,null,null,null,null,null,null,null,null,null,null,null,null,null,null,null,null,null,null,null,null,null,null,null,null,null,null,null,null,null,null,null,null,null,null,null,null,null,null,null,null,null,null,null,null,null,null,null,null,null,null,null,null,null,null,null,null,null,null,null,null,null,null,null,null,null,null,null,null,null,null,null,null,null,null,null,null,null,null,null,null,null,null,null,null,null,null,null,null,null,null,null,null,null,null,null,null,null,null,null,null,null,null,null,null,null,null,null,null,null,null,null,null,null,null,null,null,null,null,null,null,null,null,null,null,null,null,null,null,null,null,null,null,null,null,null,null,null,null,null,null,null,null,null,null,null,null,null,null,null,null,null,null,null,null,null,null,null,null,null,null,null,null,null,null,null,null,null,null,null,null,null,null,null,null,null,null,null,null,null,null,null,null,null,null,null,null,null,null,null,null,null,null,null,null,null,null,null,null,null,null,null,null,null,null,null,null,null,null,null,null,null,null,null,null,null,null,null,null,null,null,null,null,null,null,null,null,null,"Porcentaje de profesores que imparten una lengua extranjera y que están certificados","(Número de profesores que imparte una lengua extranjera y que están certificados/ número de profesores que imparte una lengua extranjera)*100","Profesores",79]
[null,null,null,null,null,null,"PROG",null,"ALC",null,"PROG",null,"ALC",null,"PROG",null,"ALC",null,null,null,null,null,null,null,null,null,null,null,null,null,null,null,null,null,null,null,null,null,null,null,null,null,null,null,null,null,null,null,null,null,null,null,null,null,null,null,null,null,null,null,null,null,null,null,null,null,null,null,null,null,null,null,null,null,null,null,null,null,null,null,null,null,null,null,null,null,null,null,null,null,null,null,null,null,null,null,null,null,null,null,null,null,null,null,null,null,null,null,null,null,null,null,null,null,null,null,null,null,null,null,null,null,null,null,null,null,null,null,null,null,null,null,null,null,null,null,null,null,null,null,null,null,null,null,null,null,null,null,null,null,null,null,null,null,null,null,null,null,null,null,null,null,null,null,null,null,null,null,null,null,null,null,null,null,null,null,null,null,null,null,null,null,null,null,null,null,null,null,null,null,null,null,null,null,null,null,null,null,null,null,null,null,null,null,null,null,null,null,null,null,null,null,null,null,null,null,null,null,null,null,null,null,null,null,null,null,null,null,null,null,null,null,null,null,null,null,null,null,null,null,null,null,null,null,null,null,null,null,null,null,null,null,null,null,null,null,null,null,null,null,null,null,null,null,null,null,null,null,null,null,null,null,"Número de convenios firmados con Universidades extranjeras para la movilidad estudiantil","Número de convenios firmados con Universidades extranjeras para la movilidad estudiantil.","Convenios",506]
[null,null,null,null,null,null,"#","%","#","%","#","%","#","%","#","%","#","%"]
[null,"Firma de Convenios con el Sector Productivo Nacional e Internacional",null,"Convenios",50,null,20,40,null,null,30,60,null,null,50,100,null,null,null,null,null,null,null,null,null,"Vinculacion",null,null,null,null,null,null,null,null,null,null,null,null,null,null,null,null,null,null,null,null,null,null,null,null,null,null,null,null,null,null,null,null,null,null,null,null,null,null,null,null,null,null,null,null,null,null,null,null,null,null,null,null,null,null,null,null,null,null,null,null,null,null,null,null,null,null,null,null,null,null,null,null,null,null,null,null,null,null,null,null,null,null,null,null,null,null,null,null,null,null,null,null,null,null,null,null,null,null,null,null,null,null,null,null,null,null,null,null,null,null,null,null,null,null,null,null,null,null,null,null,null,null,null,null,null,null,null,null,null,null,null,null,null,null,null,null,null,null,null,null,null,null,null,null,null,null,null,null,null,null,null,null,null,null,null,null,null,null,null,null,null,null,null,null,null,null,null,null,null,null,null,null,null,null,null,null,null,null,null,null,null,null,null,null,null,null,null,null,null,null,null,null,null,null,null,null,null,null,null,null,null,null,null,null,null,null,null,null,null,null,null,null,null,null,null,null,null,null,null,null,null,null,null,null,null,null,null,null,null,null,null,null,null,null,null,null,null,null,null,null,null,null,null,null,null,null,"PROMOCIÓN Y DIFUSIÓN DEL ARTE Y LA CULTURA"]
[null,"Firma de Convenios con el Sector Productivo para Programa Dual",null,"Convenios",15,null,5,33.3,null,null,10,67,null,null,15,100,null,null,null,null,null,null,null,null,null,"Vinculacion",null,null,null,null,null,null,null,null,null,null,null,null,null,null,null,null,null,null,null,null,null,null,null,null,null,null,null,null,null,null,null,null,null,null,null,null,null,null,null,null,null,null,null,null,null,null,null,null,null,null,null,null,null,null,null,null,null,null,null,null,null,null,null,null,null,null,null,null,null,null,null,null,null,null,null,null,null,null,null,null,null,null,null,null,null,null,null,null,null,null,null,null,null,null,null,null,null,null,null,null,null,null,null,null,null,null,null,null,null,null,null,null,null,null,null,null,null,null,null,null,null,null,null,null,null,null,null,null,null,null,null,null,null,null,null,null,null,null,null,null,null,null,null,null,null,null,null,null,null,null,null,null,null,null,null,null,null,null,null,null,null,null,null,null,null,null,null,null,null,null,null,null,null,null,null,null,null,null,null,null,null,null,null,null,null,null,null,null,null,null,null,null,null,null,null,null,null,null,null,null,null,null,null,null,null,null,null,null,null,null,null,null,null,null,null,null,null,null,null,null,null,null,null,null,null,null,null,null,null,null,null,null,null,null,null,null,null,null,null,null,null,null,null,null,null,null,"Presentaciones artísticas y culturales","Número de presentaciones anuales de danza, múscia, teatro, festivales, entre otros","Presentaciones",2789]
[null,"Visitas a empresas para reactivar y generar convenios Locales y Nacionales ",null,"Visitas",15,null,5,33.3,null,null,{"$f":"G32+5","v":10},66.6,null,null,{"$f":"K32+5","v":15},100,null,null,null,null,null,null,null,null,null,"Vinculacion",null,null,null,null,null,null,null,null,null,null,null,null,null,null,null,null,null,null,null,null,null,null,null,null,null,null,null,null,null,null,null,null,null,null,null,null,null,null,null,null,null,null,null,null,null,null,null,null,null,null,null,null,null,null,null,null,null,null,null,null,null,null,null,null,null,null,null,null,null,null,null,null,null,null,null,null,null,null,null,null,null,null,null,null,null,null,null,null,null,null,null,null,null,null,null,null,null,null,null,null,null,null,null,null,null,null,null,null,null,null,null,null,null,null,null,null,null,null,null,null,null,null,null,null,null,null,null,null,null,null,null,null,null,null,null,null,null,null,null,null,null,null,null,null,null,null,null,null,null,null,null,null,null,null,null,null,null,null,null,null,null,null,null,null,null,null,null,null,null,null,null,null,null,null,null,null,null,null,null,null,null,null,null,null,null,null,null,null,null,null,null,null,null,null,null,null,null,null,null,null,null,null,null,null,null,null,null,null,null,null,null,null,null,null,null,null,null,null,null,null,null,null,null,null,null,null,null,null,null,null,null,null,null,null,null,null,null,null,null,null,null,null,null,null,null,null,"Alumnos que participan en actividades culturales y artísticas","Número de alumnos que participan en actividades culturales y artísticas/ total de alumnos*100","Alumnos",70842]
[null,"Aplicación de cuestionarios a los recien egresados como TSU",null,"Cuestionarios",500,null,0,0,null,null,250,50,null,null,500,100,null,null,null,null,null,null,null,null,null,"Vinculacion"]
[null,"Reunión con empresarios para establecer alianzas estratégicas en el tema de empleabilidad",null,"Reunión",3,null,1,33,null,null,2,100,null,null,3,100,null,null,null,null,null,null,null,null,null,"Vinculacion",null,null,null,null,null,null,null,null,null,null,null,null,null,null,null,null,null,null,null,null,null,null,null,null,null,null,null,null,null,null,null,null,null,null,null,null,null,null,null,null,null,null,null,null,null,null,null,null,null,null,null,null,null,null,null,null,null,null,null,null,null,null,null,null,null,null,null,null,null,null,null,null,null,null,null,null,null,null,null,null,null,null,null,null,null,null,null,null,null,null,null,null,null,null,null,null,null,null,null,null,null,null,null,null,null,null,null,null,null,null,null,null,null,null,null,null,null,null,null,null,null,null,null,null,null,null,null,null,null,null,null,null,null,null,null,null,null,null,null,null,null,null,null,null,null,null,null,null,null,null,null,null,null,null,null,null,null,null,null,null,null,null,null,null,null,null,null,null,null,null,null,null,null,null,null,null,null,null,null,null,null,null,null,null,null,null,null,null,null,null,null,null,null,null,null,null,null,null,null,null,null,null,null,null,null,null,null,null,null,null,null,null,null,null,null,null,null,null,null,null,null,null,null,null,null,null,null,null,null,null,null,null,null,null,null,null,null,null,null,null,null,null,null,null,null,null,"FORTALECIMIENTO DE LA PRÁCTICA DE ACTIVIDADES FÍSICAS Y DEPORTIVAS"]
[null,"Difundir la Bolsa de trabajo",null,"Presentaciones",200,null,90,{"$f":"G35/E35*100","v":45},null,null,{"$f":"40+G35","v":130},{"$f":"K35/E35*100","v":65},null,null,{"$f":"70+K35","v":200},{"$f":"O35/E35*100","v":100},null,null,null,null,null,null,null,null,null,"Vinculacion",null,null,null,null,null,null,null,null,null,null,null,null,null,null,null,null,null,null,null,null,null,null,null,null,null,null,null,null,null,null,null,null,null,null,null,null,null,null,null,null,null,null,null,null,null,null,null,null,null,null,null,null,null,null,null,null,null,null,null,null,null,null,null,null,null,null,null,null,null,null,null,null,null,null,null,null,null,null,null,null,null,null,null,null,null,null,null,null,null,null,null,null,null,null,null,null,null,null,null,null,null,null,null,null,null,null,null,null,null,null,null,null,null,null,null,null,null,null,null,null,null,null,null,null,null,null,null,null,null,null,null,null,null,null,null,null,null,null,null,null,null,null,null,null,null,null,null,null,null,null,null,null,null,null,null,null,null,null,null,null,null,null,null,null,null,null,null,null,null,null,null,null,null,null,null,null,null,null,null,null,null,null,null,null,null,null,null,null,null,null,null,null,null,null,null,null,null,null,null,null,null,null,null,null,null,null,null,null,null,null,null,null,null,null,null,null,null,null,null,null,null,null,null,null,null,null,null,null,null,null,null,null,null,null,null,null,null,null,null,null,null,null,null,null,null,null,"INDICADOR","FÓRMULA","2016"]
[null,"DESCRIPCIÓN DEL ALCANCE DEL INDICADOR Y EFECTO SOCIOECONOMICO    (10)",null,null,null,null,null,null,null,null,null,null,null,null,null,null,null,null,null,null,null,null,null,null,null,null,null,null,null,null,null,null,null,null,null,null,null,null,null,null,null,null,null,null,null,null,null,null,null,null,null,null,null,null,null,null,null,null,null,null,null,null,null,null,null,null,null,null,null,null,null,null,null,null,null,null,null,null,null,null,null,null,null,null,null,null,null,null,null,null,null,null,null,null,null,null,null,null,null,null,null,null,null,null,null,null,null,null,null,null,null,null,null,null,null,null,null,null,null,null,null,null,null,null,null,null,null,null,null,null,null,null,null,null,null,null,null,null,null,null,null,null,null,null,null,null,null,null,null,null,null,null,null,null,null,null,null,null,null,null,null,null,null,null,null,null,null,null,null,null,null,null,null,null,null,null,null,null,null,null,null,null,null,null,null,null,null,null,null,null,null,null,null,null,null,null,null,null,null,null,null,null,null,null,null,null,null,null,null,null,null,null,null,null,null,null,null,null,null,null,null,null,null,null,null,null,null,null,null,null,null,null,null,null,null,null,null,null,null,null,null,null,null,null,null,null,null,null,null,null,null,null,null,null,null,null,null,null,null,null,null,null,null,null,null,null,null,null,null,null,null,null,"Torneos deportivos","Número de torneos deportivos anuales internos y externos en los que participará la institución","Torneos",1960]
[null,"Generación de nuevas alianzas estratégicas con el sector productivo para el incremento de las oportunidades laborales de nuestros egresados.",null,null,null,null,null,null,null,null,null,null,null,null,null,null,null,null,null,null,null,null,null,null,null,null,null,null,null,null,null,null,null,null,null,null,null,null,null,null,null,null,null,null,null,null,null,null,null,null,null,null,null,null,null,null,null,null,null,null,null,null,null,null,null,null,null,null,null,null,null,null,null,null,null,null,null,null,null,null,null,null,null,null,null,null,null,null,null,null,null,null,null,null,null,null,null,null,null,null,null,null,null,null,null,null,null,null,null,null,null,null,null,null,null,null,null,null,null,null,null,null,null,null,null,null,null,null,null,null,null,null,null,null,null,null,null,null,null,null,null,null,null,null,null,null,null,null,null,null,null,null,null,null,null,null,null,null,null,null,null,null,null,null,null,null,null,null,null,null,null,null,null,null,null,null,null,null,null,null,null,null,null,null,null,null,null,null,null,null,null,null,null,null,null,null,null,null,null,null,null,null,null,null,null,null,null,null,null,null,null,null,null,null,null,null,null,null,null,null,null,null,null,null,null,null,null,null,null,null,null,null,null,null,null,null,null,null,null,null,null,null,null,null,null,null,null,null,null,null,null,null,null,null,null,null,null,null,null,null,null,null,null,null,null,null,null,null,null,null,null,null,"Participantes en torneos deportivos","Número de alumnos que participarán en los torneos internos y externos en los que participará la institución/ total de alumnos *100","Alumnos",69292]
[null,null,null,null,null,null,null,null,null,null,null,null,null,null,null,null,null,null,null,null,null,null,null,null,null,null,null,null,null,null,null,null,null,null,null,null,null,null,null,null,null,null,null,null,null,null,null,null,null,null,null,null,null,null,null,null,null,null,null,null,null,null,null,null,null,null,null,null,null,null,null,null,null,null,null,null,null,null,null,null,null,null,null,null,null,null,null,null,null,null,null,null,null,null,null,null,null,null,null,null,null,null,null,null,null,null,null,null,null,null,null,null,null,null,null,null,null,null,null,null,null,null,null,null,null,null,null,null,null,null,null,null,null,null,null,null,null,null,null,null,null,null,null,null,null,null,null,null,null,null,null,null,null,null,null,null,null,null,null,null,null,null,null,null,null,null,null,null,null,null,null,null,null,null,null,null,null,null,null,null,null,null,null,null,null,null,null,null,null,null,null,null,null,null,null,null,null,null,null,null,null,null,null,null,null,null,null,null,null,null,null,null,null,null,null,null,null,null,null,null,null,null,null,null,null,null,null,null,null,null,null,null,null,null,null,null,null,null,null,null,null,null,null,null,null,null,null,null,null,null,null,null,null,null,null,null,null,null,null,null,null,null,null,null,null,null,null,null,null,null,null,null,"TIPO DE  PROCESO"]
[null,"Mtra. Carmina Yadira Regalado Mardueño",null,null,null,null,null,null,null,null,null,null,null,null,null,"Lic. Gladis Valdés Torres",null,null,null,null,null,null,null,null,null,null,null,null,null,null,null,null,null,null,null,null,null,null,null,null,null,null,null,null,null,null,null,null,null,null,null,null,null,null,null,null,null,null,null,null,null,null,null,null,null,null,null,null,null,null,null,null,null,null,null,null,null,null,null,null,null,null,null,null,null,null,null,null,null,null,null,null,null,null,null,null,null,null,null,null,null,null,null,null,null,null,null,null,null,null,null,null,null,null,null,null,null,null,null,null,null,null,null,null,null,null,null,null,null,null,null,null,null,null,null,null,null,null,null,null,null,null,null,null,null,null,null,null,null,null,null,null,null,null,null,null,null,null,null,null,null,null,null,null,null,null,null,null,null,null,null,null,null,null,null,null,null,null,null,null,null,null,null,null,null,null,null,null,null,null,null,null,null,null,null,null,null,null,null,null,null,null,null,null,null,null,null,null,null,null,null,null,null,null,null,null,null,null,null,null,null,null,null,null,null,null,null,null,null,null,null,null,null,null,null,null,null,null,null,null,null,null,null,null,null,null,null,null,null,null,null,null,null,null,null,null,null,null,null,null,null,null,null,null,null,null,null,null,null,null,null,null,"Eficiencia"]
[null,"NOMBRE Y FIRMA DEL/LA RECTOR(A)",null,null,null,null,null,null,null,null,null,null,null,null,null,null,"NOMBRE Y FIRMA DE LA PERSONA RESPONSABLE DEL PROCESO",null,null,null,null,null,null,null,null,null,null,null,null,null,null,null,null,null,null,null,null,null,null,null,null,null,null,null,null,null,null,null,null,null,null,null,null,null,null,null,null,null,null,null,null,null,null,null,null,null,null,null,null,null,null,null,null,null,null,null,null,null,null,null,null,null,null,null,null,null,null,null,null,null,null,null,null,null,null,null,null,null,null,null,null,null,null,null,null,null,null,null,null,null,null,null,null,null,null,null,null,null,null,null,null,null,null,null,null,null,null,null,null,null,null,null,null,null,null,null,null,null,null,null,null,null,null,null,null,null,null,null,null,null,null,null,null,null,null,null,null,null,null,null,null,null,null,null,null,null,null,null,null,null,null,null,null,null,null,null,null,null,null,null,null,null,null,null,null,null,null,null,null,null,null,null,null,null,null,null,null,null,null,null,null,null,null,null,null,null,null,null,null,null,null,null,null,null,null,null,null,null,null,null,null,null,null,null,null,null,null,null,null,null,null,null,null,null,null,null,null,null,null,null,null,null,null,null,null,null,null,null,null,null,null,null,null,null,null,null,null,null,null,null,null,null,null,null,null,null,null,null,null,null,null,null,"Eficacia"]
[null,null,null,null,null,null,null,null,null,null,null,null,null,null,null,null,null,null,null,null,null,null,null,null,null,null,null,null,null,null,null,null,null,null,null,null,null,null,null,null,null,null,null,null,null,null,null,null,null,null,null,null,null,null,null,null,null,null,null,null,null,null,null,null,null,null,null,null,null,null,null,null,null,null,null,null,null,null,null,null,null,null,null,null,null,null,null,null,null,null,null,null,null,null,null,null,null,null,null,null,null,null,null,null,null,null,null,null,null,null,null,null,null,null,null,null,null,null,null,null,null,null,null,null,null,null,null,null,null,null,null,null,null,null,null,null,null,null,null,null,null,null,null,null,null,null,null,null,null,null,null,null,null,null,null,null,null,null,null,null,null,null,null,null,null,null,null,null,null,null,null,null,null,null,null,null,null,null,null,null,null,null,null,null,null,null,null,null,null,null,null,null,null,null,null,null,null,null,null,null,null,null,null,null,null,null,null,null,null,null,null,null,null,null,null,null,null,null,null,null,null,null,null,null,null,null,null,null,null,null,null,null,null,null,null,null,null,null,null,null,null,null,null,null,null,null,null,null,null,null,null,null,null,null,null,null,null,null,null,null,null,null,null,null,null,null,null,null,null,null,null,null,"Pertinencia"]
[null,null,null,null,null,null,null,null,null,null,null,null,null,null,null,null,null,null,null,null,null,null,null,null,null,null,null,null,null,null,null,null,null,null,null,null,null,null,null,null,null,null,null,null,null,null,null,null,null,null,null,null,null,null,null,null,null,null,null,null,null,null,null,null,null,null,null,null,null,null,null,null,null,null,null,null,null,null,null,null,null,null,null,null,null,null,null,null,null,null,null,null,null,null,null,null,null,null,null,null,null,null,null,null,null,null,null,null,null,null,null,null,null,null,null,null,null,null,null,null,null,null,null,null,null,null,null,null,null,null,null,null,null,null,null,null,null,null,null,null,null,null,null,null,null,null,null,null,null,null,null,null,null,null,null,null,null,null,null,null,null,null,null,null,null,null,null,null,null,null,null,null,null,null,null,null,null,null,null,null,null,null,null,null,null,null,null,null,null,null,null,null,null,null,null,null,null,null,null,null,null,null,null,null,null,null,null,null,null,null,null,null,null,null,null,null,null,null,null,null,null,null,null,null,null,null,null,null,null,null,null,null,null,null,null,null,null,null,null,null,null,null,null,null,null,null,null,null,null,null,null,null,null,null,null,null,null,null,null,null,null,null,null,null,null,null,null,null,null,null,null,null,"Vinculación"]
[null,null,null,null,null,null,null,null,null,null,null,null,null,null,null,null,null,null,null,null,null,null,null,null,null,null,null,null,null,null,null,null,null,null,null,null,null,null,null,null,null,null,null,null,null,null,null,null,null,null,null,null,null,null,null,null,null,null,null,null,null,null,null,null,null,null,null,null,null,null,null,null,null,null,null,null,null,null,null,null,null,null,null,null,null,null,null,null,null,null,null,null,null,null,null,null,null,null,null,null,null,null,null,null,null,null,null,null,null,null,null,null,null,null,null,null,null,null,null,null,null,null,null,null,null,null,null,null,null,null,null,null,null,null,null,null,null,null,null,null,null,null,null,null,null,null,null,null,null,null,null,null,null,null,null,null,null,null,null,null,null,null,null,null,null,null,null,null,null,null,null,null,null,null,null,null,null,null,null,null,null,null,null,null,null,null,null,null,null,null,null,null,null,null,null,null,null,null,null,null,null,null,null,null,null,null,null,null,null,null,null,null,null,null,null,null,null,null,null,null,null,null,null,null,null,null,null,null,null,null,null,null,null,null,null,null,null,null,null,null,null,null,null,null,null,null,null,null,null,null,null,null,null,null,null,null,null,null,null,null,null,null,null,null,null,null,null,null,null,null,null,null,"Equidad de Género"]
[]
[null,"PROGRAMA OPERATIVO ANUAL  2022"]
[]
[null,"FORMATO 01 \"DESARROLLO DE PROCESOS\""]
[]
[null,"UNIVERSIDAD: Universidad Tecnológica de Bahía de Banderas"]
[]
[null,"DENOMINACIÓN DEL PROCESO:\n    \nVINCULACIÓN (1)",null,null,null,null,null,null,null,null,null,null,null,null,null,null,"NUM. DE PROCESO",null,null,null,null,null,null,null,"TIPO DE PROCESO (3)               "]
[]
[null,null,null,null,null,null,null,null,null,null,null,null,null,null,null,null,3.1,null,null,null,null,null,null,null,"Pertinencia"]
[]
[null,"ÁREA RESPONSABLE( 4 )"]
[]
[null,"VINCULACIÓN"]
[null,"INDICADORES  ( 5 )"]
[null,"NOMBRE DEL INDICADOR (5.1)","FÓRMULA","UNIDAD DE MEDIDA","META INSTITUCIONAL A 2024 \nPROGRAMA INSTITUCIONAL DE DESARROLLO DE LA UNIVERSIDAD",null,null,null,null,"CONTEXTO ACTUAL Y A FUTURO DEL INDICADOR (5.2)",null,null,null,null,null,null,null,null,null,null,null,"Total alcanzado (Se reporta en el tercer cuatrimestre) (5.3)"]
[null,"Número de estudiantes inscritos en programas de intercambio o movilidad  en instituciones extranjeras",{"$f":"(IF(B60=\"Número de estudiantes inscritos en programas de intercambio o movilidad  en instituciones extranjeras\",JN22,IF(B60=\"Número de estudiantes extranjeros inscritos en programas de intercambio en nuestras instituciones\",JN23,IF(B60=\"Número de profesores extranjeros en programas de intercambio en instituciones nacionales\",JN24,IF(B60=\"Número de profesores en programas de intercambio en instituciones internacionales\",JN25,IF(B60=\"Número de programas de lengua extranjera que se imparten en la institución\",JN26,IF(B60=\"Porcentaje de profesores que imparten una lengua extranjera y que están certificados\",JN27,IF(B60=\"Número de convenios firmados con Universidades extranjeras para la movilidad estudiantil\",JN28,IF(B60=\"Participación de la institución como U-BIS\",#REF!)))))))))","v":"Número de estudiantes inscritos en programas de intercambio o movilidad  en instituciones extranjeras"},{"$f":"(IF(B60=\"Número de estudiantes inscritos en programas de intercambio o movilidad  en instituciones extranjeras\",JO22,IF(B60=\"Número de estudiantes extranjeros inscritos en programas de intercambio en nuestras instituciones\",JO23,IF(B60=\"Número de profesores extranjeros en programas de intercambio en instituciones nacionales\",JO24,IF(B60=\"Número de profesores en programas de intercambio en instituciones internacionales\",JO25,IF(B60=\"Número de programas de lengua extranjera que se imparten en la institución\",JO26,IF(B60=\"Porcentaje de profesores que imparten una lengua extranjera y que están certificados\",JO27,IF(B60=\"Número de convenios firmados con Universidades extranjeras para la movilidad estudiantil\",JO28,IF(B60=\"Participación de la institución como U-BIS\",#REF!)))))))))","v":"Estudiantes"},"Líneas estratégicas del PIDE  del SUT o SUP 2013-2018 al que se da atención.   ( 5 ).\nCrear programas permanentes de movilidad estudiantil y docente.",null,null,null,null,2021,null,null,null,null,null,2022]
[null,null,null,null,null,null,null,null,null,"Número actual",null,null,"Porcentaje actual",null,null,"Número a lograr",null,null,"Porcentaje a lograr",null,null,"Número alcanzado ",null,null,"Porcentaje alcanzado"]
[null,null,null,null,null,null,null,null,null,1,null,null,100,null,null,3,null,null,100]
[null,"NOMBRE DEL INDICADOR (5.1)","FÓRMULA","UNIDAD DE MEDIDA","META INSTITUCIONAL A 2024 \nPROGRAMA INSTITUCIONAL DE DESARROLLO DE LA UNIVERSIDAD",null,null,null,null,"CONTEXTO ACTUAL Y A FUTURO DEL INDICADOR (5.2)",null,null,null,null,null,null,null,null,null,null,null,"Total alcanzado (Se reporta en el tercer cuatrimestre) (5.3)"]
[null,"Número de profesores extranjeros en programas de intercambio en instituciones nacionales",{"$f":"(IF(B64=\"Número de estudiantes inscritos en programas de intercambio o movilidad  en instituciones extranjeras\",JN22,IF(B64=\"Número de estudiantes extranjeros inscritos en programas de intercambio en nuestras instituciones\",JN23,IF(B64=\"Número de profesores extranjeros en programas de intercambio en instituciones nacionales\",JN24,IF(B64=\"Número de profesores en programas de intercambio en instituciones internacionales\",JN25,IF(B64=\"Número de programas de lengua extranjera que se imparten en la institución\",JN26,IF(B64=\"Porcentaje de profesores que imparten una lengua extranjera y que están certificados\",JN27,IF(B64=\"Número de convenios firmados con Universidades extranjeras para la movilidad estudiantil\",JN28,IF(B64=\"Participación de la institución como U-BIS\",#REF!)))))))))","v":"Número de profesores extranjeros en programas de intercambio en instituciones nacionales"},{"$f":"(IF(B64=\"Número de estudiantes inscritos en programas de intercambio o movilidad  en instituciones extranjeras\",JO22,IF(B64=\"Número de estudiantes extranjeros inscritos en programas de intercambio en nuestras instituciones\",JO23,IF(B64=\"Número de profesores extranjeros en programas de intercambio en instituciones nacionales\",JO24,IF(B64=\"Número de profesores en programas de intercambio en instituciones internacionales\",JO25,IF(B64=\"Número de programas de lengua extranjera que se imparten en la institución\",JO26,IF(B64=\"Porcentaje de profesores que imparten una lengua extranjera y que están certificados\",JO27,IF(B64=\"Número de convenios firmados con Universidades extranjeras para la movilidad estudiantil\",JO28,IF(B64=\"Participación de la institución como U-BIS\",#REF!)))))))))","v":"Profesores"},"Líneas estratégicas del PIDE  del SUT o SUP 2013-2018 al que se da atención.   ( 5 ).\nCrear programas permanentes de movilidad estudiantil y docente.",null,null,null,null,2021,null,null,null,null,null,2022]
[null,null,null,null,null,null,null,null,null,"Número actual",null,null,"Porcentaje actual",null,null,"Número a lograr",null,null,"Porcentaje a lograr",null,null,"Número alcanzado ",null,null,"Porcentaje alcanzado"]
[null,null,null,null,null,null,null,null,null,1,null,null,100,null,null,2,null,null,100]
[null,"OBJETIVO AL QUE ATIENDE DE ACUERDO AL PSE 2020-2024    (6)",null,"6.1.- Garantizar el derecho de la población en México a una educación equitativa,\ninclusiva, intercultural e integral, que tenga como eje principal el interés superior\nde las niñas, niños, adolescentes y jóvenes. \n6.4 Generar entornos favorables para el proceso de enseñanza-aprendizaje en los\ndiferentes tipos, niveles y modalidades del Sistema Educativo Nacional."]
[null,"CALENDARIZACIÓN Y SEGUIMIENTO DE LAS PRINCIPALES ACTIVIDADES  (7)"]
[null,"ACTIVIDADES",null,"UNIDAD DE MEDIDA","META  ANUAL",null,"CALENDARIO 2022                                CUATRIMESTRAL",null,null,null,null,null,null,null,null,null,null,null,"JUSTIFICACIÓN DE LAS DESVIACIONES POSITIVAS O NEGATIVAS (8)",null,null,null,null,null,null,"ÁREA\nEJECUTORA (9)"]
[null,null,null,null,null,null,1,null,null,null,2,null,null,null,3]
[null,null,null,null,null,null,"PROG",null,"ALC",null,"PROG",null,"ALC",null,"PROG",null,"ALC"]
[null,null,null,null,null,null,"#","%","#","%","#","%","#","%","#","%","#","%"]
[null,"Generar Convenios Internacionales con Instituciones Educativas",null,"Convenios Internacionales",10,null,3,{"$f":"G73/E73*100","v":30},null,null,{"$f":"3+G73","v":6},{"$f":"K73/E73*100","v":60},null,null,{"$f":"4+K73","v":10},{"$f":"O73/E73*100","v":100},null,null,null,null,null,null,null,null,null,"Vinculacion"]
[null,"Difusion de Convocatorias Academica Internacional",null,"Convocatorias Academicas Internacionales difundidas",10,null,3,{"$f":"G74/E74*100","v":30},null,null,{"$f":"3+G74","v":6},{"$f":"K74/E74*100","v":60},null,null,{"$f":"4+K74","v":10},{"$f":"O74/E74*100","v":100},null,null,null,null,null,null,null,null,null,"Vinculacion"]
[null,"Cursos de nivelaciòn de idiomas para alumnos ",null,"Cursos",3,null,1,{"$f":"G75/E75*100","v":33.3333333333333},null,null,{"$f":"1+G75","v":2},{"$f":"K75/E75*100","v":66.6666666666667},null,null,{"$f":"1+K75","v":3},{"$f":"O75/E75*100","v":100},null,null,null,null,null,null,null,null,null,"Vinculacion"]
[null,"Convocatoria dirigida a Profesores extranjeros para realizar actividades academicas en la Institución",null,"Convocatoria",6,null,null,null,null,null,3,{"$f":"K76/E76*100","v":50},null,null,{"$f":"3+K76","v":6},{"$f":"O76/E76*100","v":100},null,null,null,null,null,null,null,null,null,"Vinculacion"]
[]
[null,"DESCRIPCIÓN DEL ALCANCE DEL INDICADOR Y EFECTO SOCIOECONOMICO    (10)"]
[null,"La Generación de Vinculos con Instituciones Extranjeras genera el posicionamiento internacional de la Institución ampliando  la visión de los estudiantes generando nuevos hombres de negocios, con visión de emprendimiento."]
[]
[null,"Mtra. Carmina Yadira Regalado Mardueño",null,null,null,null,null,null,null,null,null,null,null,null,null,"Lic. Gladis Valdés Torres"]
[null,"NOMBRE Y FIRMA DEL/LA RECTOR(A)",null,null,null,null,null,null,null,null,null,null,null,null,null,null,"NOMBRE Y FIRMA DE LA PERSONA RESPONSABLE DEL PROCESO"]
[]
[]
[]
[]
[null,"PROGRAMA OPERATIVO ANUAL  2022"]
[]
[null,"FORMATO 01 \"DESARROLLO DE PROCESOS\""]
[]
[null,"UNIVERSIDAD: Universidad Tecnológica de Bahía de Banderas"]
[]
[null,"DENOMINACIÓN DEL PROCESO:\n    \nVINCULACIÓN   (1)",null,null,null,null,null,null,null,null,null,null,null,null,null,null,"NUM. DE PRCESO",null,null,null,null,null,null,null,"TIPO DE PROCESO (3)               "]
[]
[null,null,null,null,null,null,null,null,null,null,null,null,null,null,null,null,3.2,null,null,null,null,null,null,null,"Pertinencia"]
[]
[null,"ÁREA RESPONSABLE ( 4 )"]
[]
[null,"EXTRACURRICULARES"]
[null,"INDICADORES  ( 5 )"]
[null,"NOMBRE DEL INDICADOR (5.1)","FÓRMULA","UNIDAD DE MEDIDA","META INSTITUCIONAL A 2024 \nPROGRAMA INSTITUCIONAL DE DESARROLLO DE LA UNIVERSIDAD",null,null,null,null,"CONTEXTO ACTUAL Y A FUTURO DEL INDICADOR (5.2)",null,null,null,null,null,null,null,null,null,null,null,"Total alcanzado (Se reporta en el tercer cuatrimestre) (5.3)"]
[null,"Alumnos que participan en actividades culturales y artísticas",{"$f":"(IF(B102=\"Presentaciones artísticas y culturales\",JN31,IF(B102=\"Alumnos que participan en actividades culturales y artísticas\",JN32)))","v":"Número de alumnos que participan en actividades culturales y artísticas/ total de alumnos*100"},{"$f":"(IF(B102=\"Presentaciones artísticas y culturales\",JO31,IF(B102=\"Alumnos que participan en actividades culturales y artísticas\",JO32)))","v":"Alumnos"},"Líneas estratégicas del PIDE  del SUT o SUP 2013-2018 al que se da atención.   ( 5 ).\nFomentar la formación integral de los estudiantes mediante actividades extracurriculares que propicien el aprecio por la cultura y las artes.",null,null,null,null,2021,null,null,null,null,null,2022]
[null,null,null,null,null,null,null,null,null,"Número actual",null,null,"Porcentaje actual",null,null,"Número a lograr",null,null,"Porcentaje a lograr",null,null,"Número alcanzado ",null,null,"Porcentaje alcanzado"]
[null,null,null,null,null,null,null,null,null,200,null,null,{"$f":"200/1175*100","v":17.0212765957447},null,null,500,null,null,{"$f":"500/1570*100","v":31.8471337579618}]
[null,"NOMBRE DEL INDICADOR (5.1)","FÓRMULA","UNIDAD DE MEDIDA","META INSTITUCIONAL A 2024 \nPROGRAMA INSTITUCIONAL DE DESARROLLO DE LA UNIVERSIDAD",null,null,null,null,"CONTEXTO ACTUAL Y A FUTURO DEL INDICADOR (5.2)",null,null,null,null,null,null,null,null,null,null,null,"Total alcanzado (Se reporta en el tercer cuatrimestre) (5.3)"]
[null,"Presentaciones artísticas y culturales",{"$f":"(IF(B106=\"Presentaciones artísticas y culturales\",JN31,IF(B106=\"Alumnos que participan en actividades culturales y artísticas\",JN32)))","v":"Número de presentaciones anuales de danza, múscia, teatro, festivales, entre otros"},{"$f":"(IF(B106=\"Presentaciones artísticas y culturales\",JO31,IF(B106=\"Alumnos que participan en actividades culturales y artísticas\",JO32)))","v":"Presentaciones"},"Líneas estratégicas del PIDE  del SUT o SUP 2013-2018 al que se da atención.   ( 5 ).\nFomentar la formación integral de los estudiantes mediante actividades extracurriculares que propicien el aprecio por la cultura y las artes.",null,null,null,null,2021,null,null,null,null,null,2022]
[null,null,null,null,null,null,null,null,null,"Número actual",null,null,"Porcentaje actual",null,null,"Número a lograr",null,null,"Porcentaje a lograr",null,null,"Número alcanzado ",null,null,"Porcentaje alcanzado"]
[null,null,null,null,null,null,null,null,null,16,null,null,100,null,null,16,null,null,100]
[null,"OBJETIVO AL QUE ATIENDE DE ACUERDO AL PSE 2020-2024    (6)",null,"6.5.- Relevancia del Objetivo prioritario 5: Garantizar el derecho a la cultura física y\na la práctica del deporte de la población en México con énfasis en la integración\nde las comunidades escolares, la inclusión social y la promoción de estilos de vida\nsaludables"]
[null,"CALENDARIZACIÓN Y SEGUIMIENTO DE LAS PRINCIPALES ACTIVIDADES  (7)"]
[null,"ACTIVIDADES",null,"UNIDAD DE MEDIDA","META  ANUAL",null,"CALENDARIO 2022                                      CUATRIMESTRAL",null,null,null,null,null,null,null,null,null,null,null,"JUSTIFICACIÓN DE LAS DESVIACIONES POSITIVAS O NEGATIVAS (8)",null,null,null,null,null,null,"ÁREA\nEJECUTORA (9)"]
[null,null,null,null,null,null,1,null,null,null,2,null,null,null,3]
[null,null,null,null,null,null,"PROG",null,"ALC",null,"PROG",null,"ALC",null,"PROG",null,"ALC"]
[null,null,null,null,null,null,"#","%","#","%","#","%","#","%","#","%","#","%"]
[null,"Promoción de la cultura al interior del plantel",null,"Presentaciones",16,null,3,18.75,null,null,{"$f":"6+G115","v":9},56.25,null,null,{"$f":"7+K115","v":16},100,null,null,null,null,null,null,null,null,null,"Actividades Extracurriculares"]
[null,"Participación de encuentros culturales del Comite Nacional ",null,"Participacion ",1,null,null,null,null,null,1,100,null,null,null,null,null,null,null,null,null,null,null,null,null,"Actividades Extracurriculares"]
[null,"Concursos o Eventos Culturales en el Municipio.",null,"Participacion ",3,null,null,null,null,null,null,null,null,null,3,100,null,null,null,null,null,null,null,null,null,"Actividades Extracurriculares"]
[null,"Concursos o Eventos Deportivos en el Regional.",null,"Presentaciones",1,null,null,null,null,null,null,null,null,null,1,100,null,null,null,null,null,null,null,null,null,"Actividades Extracurriculares"]
[]
[null,"DESCRIPCIÓN DEL ALCANCE DEL INDICADOR Y EFECTO SOCIOECONOMICO    (10)"]
[null,"Crear una identidad institucional en nuestros alumnos, así como fomentar la cultura y las artes en los jovenes de nuestra región."]
[]
[]
[null,"Mtra. Carmina Yadira Regalado Mardueño",null,null,null,null,null,null,null,null,null,null,null,null,"Lic. Victor Manuel Benítez Pérez"]
[null,"NOMBRE Y FIRMA DEL/LA RECTOR(A)",null,null,null,null,null,null,null,null,null,null,null,null,null,null,"NOMBRE Y FIRMA DE LA PERSONA RESPONSABLE DEL PROCESO"]
[]
[]
[]
[]
[null,"PROGRAMA OPERATIVO ANUAL  2022"]
[]
[null,"FORMATO 01 \"DESARROLLO DE PROCESOS\""]
[]
[null,"UNIVERSIDAD: Universidad Tecnológica de Bahía de Banderas"]
[]
[null,"DENOMINACIÓN DEL PROCESO:\n    \nVINCULACIÓN   (1)",null,null,null,null,null,null,null,null,null,null,null,null,null,null,"NUM. DE PROCESO",null,null,null,null,null,null,null,"TIPO DE PROCESO (3)               "]
[]
[null,null,null,null,null,null,null,null,null,null,null,null,null,null,null,null,3.3,null,null,null,null,null,null,null,"Pertinencia"]
[]
[null,"ÁREA RESPONSABLE ( 4 )"]
[]
[null,"EXTRACURRICULARES"]
[null,"INDICADORES  ( 5 )"]
[null,"NOMBRE DEL INDICADOR (5.1)","FÓRMULA","UNIDAD DE MEDIDA","META INSTITUCIONAL A 2024 \nPROGRAMA INSTITUCIONAL DE DESARROLLO DE LA UNIVERSIDAD",null,null,null,null,"CONTEXTO ACTUAL Y A FUTURO DEL INDICADOR (5.2)",null,null,null,null,null,null,null,null,null,null,null,"Total alcanzado (Se reporta en el tercer cuatrimestre) (5.3)"]
[null,"Torneos deportivos",{"$f":"(IF(B145=\"Torneos deportivos\",JN36,IF(B145=\"Participantes en torneos deportivos\",JN37)))","v":"Número de torneos deportivos anuales internos y externos en los que participará la institución"},{"$f":"(IF(B145=\"Torneos deportivos\",JO36,IF(B145=\"Participantes en torneos deportivos\",JO37)))","v":"Torneos"},"Líneas estratégicas del PIDE  del SUT o SUP 2013-2018 al que se da atención.   ( 5 ).\nImplusar la práctica regular de actividades físicas y deportivas entre los estudiantes de las Universidades Tecnológicas.",null,null,null,null,2021,null,null,null,null,null,2022]
[null,null,null,null,null,null,null,null,null,"Número actual",null,null,"Porcentaje actual",null,null,"Número a lograr",null,null,"Porcentaje a lograr",null,null,"Número alcanzado ",null,null,"Porcentaje alcanzado"]
[null,null,null,null,null,null,null,null,null,11,null,null,100,null,null,14,null,null,100]
[null,"NOMBRE DEL INDICADOR (5.1)","FÓRMULA","UNIDAD DE MEDIDA","META INSTITUCIONAL A 2024 \nPROGRAMA INSTITUCIONAL DE DESARROLLO DE LA UNIVERSIDAD",null,null,null,null,"CONTEXTO ACTUAL Y A FUTURO DEL INDICADOR (5.2)",null,null,null,null,null,null,null,null,null,null,null,"Total alcanzado (Se reporta en el tercer cuatrimestre) (5.3)"]
[null,"Participantes en torneos deportivos",{"$f":"(IF(B149=\"Torneos deportivos\",JN36,IF(B149=\"Participantes en torneos deportivos\",JN37)))","v":"Número de alumnos que participarán en los torneos internos y externos en los que participará la institución/ total de alumnos *100"},{"$f":"(IF(B149=\"Torneos deportivos\",JO36,IF(B149=\"Participantes en torneos deportivos\",JO37)))","v":"Alumnos"},"Líneas estratégicas del PIDE  del SUT o SUP 2013-2018 al que se da atención.   ( 5 ).\nImplusar la práctica regular de actividades físicas y deportivas entre los estudiantes de las Universidades Tecnológicas.",null,null,null,null,2021,null,null,null,null,null,2022]
[null,null,null,null,null,null,null,null,null,"Número actual",null,null,"Porcentaje actual",null,null,"Número a lograr",null,null,"Porcentaje a lograr",null,null,"Número alcanzado ",null,null,"Porcentaje alcanzado"]
[null,null,null,null,null,null,null,null,null,350,null,null,{"$f":"J151/1175*100","v":29.7872340425532},null,null,500,null,null,{"$f":"P151/1570*100","v":31.8471337579618}]
[null,"OBJETIVO AL QUE ATIENDE DE ACUERDO AL PSE 2020-2024    (6)",null,"6.5.- Relevancia del Objetivo prioritario 5: Garantizar el derecho a la cultura física y\na la práctica del deporte de la población en México con énfasis en la integración\nde las comunidades escolares, la inclusión social y la promoción de estilos de vida\nsaludables"]
[null,"CALENDARIZACIÓN Y SEGUIMIENTO DE LAS PRINCIPALES ACTIVIDADES  (7)"]
[null,"ACTIVIDADES",null,"UNIDAD DE MEDIDA","META  ANUAL",null,"CALENDARIO 2022                                     CUATRIMESTRAL",null,null,null,null,null,null,null,null,null,null,null,"JUSTIFICACIÓN DE LAS DESVIACIONES POSITIVAS O NEGATIVAS (8)",null,null,null,null,null,null,"ÁREA\nEJECUTORA (9)"]
[null,null,null,null,null,null,1,null,null,null,2,null,null,null,3]
[null,null,null,null,null,null,"PROG",null,"ALC",null,"PROG",null,"ALC",null,"PROG",null,"ALC"]
[null,null,null,null,null,null,"#","%","#","%","#","%","#","%","#","%","#","%"]
[null,"Promoción del deporte y la cultura al interior del plantel.",null,"Eventos",9,null,3,33,null,null,6,67,null,null,9,100,null,null,null,null,null,null,null,null,null,"Actividades Extracurriculares"]
[null,"Participacion de encuentros deportivos del comité nacional.",null,"Participacion.",1,null,null,null,null,null,1,100,null,null,null,null,null,null,null,null,null,null,null,null,null,"Actividades Extracurriculares"]
[null,"Concursos o Eventos Deportivos en el Municipio.",null,"Participacion.",3,null,null,null,null,null,null,null,null,null,3,100,null,null,null,null,null,null,null,null,null,"Actividades Extracurriculares"]
[null,"Concursos o Eventos Deportivos en el Regional.",null,"Participacion.",1,null,null,null,null,null,null,null,null,null,1,100,null,null,null,null,null,null,null,null,null,"Actividades Extracurriculares"]
[]
[null,"DESCRIPCIÓN DEL ALCANCE DEL INDICADOR Y EFECTO SOCIOECONOMICO    (10)"]
[null,"Promoción del deporte y la cultura al interior del plantel. (Actividades Extracurriculares)"]
[]
[]
[null,"Mtra. Carmina Yadira Regalado Mardueño",null,null,null,null,null,null,null,null,null,null,null,null,null,"Lic. Victor Manuel Benítez Pérez"]
[null,"NOMBRE Y FIRMA DEL/LA RECTOR(A)",null,null,null,null,null,null,null,null,null,null,null,null,null,null,"NOMBRE Y FIRMA DE LA PERSONA RESPONSABLE DEL PROCESO"]

{"sheet":"CEDULA -gestión","index":3,"n_rows":81,"n_cols":157,"rows_kept":81,"cut":false,"hidden":false,"merged":[[0,1,0,27],[2,1,2,27],[4,1,4,27],[12,1,12,27],[12,153,12,154],[13,1,13,27],[14,4,14,8],[14,9,14,20],[15,9,15,14],[15,15,15,20],[16,9,16,11],[16,12,16,14],[16,15,16,17],[16,18,16,20],[16,21,16,23],[16,24,16,27],[17,9,17,11],[17,12,17,14],[17,15,17,17],[17,18,17,20],[17,21,17,23],[17,24,17,27],[18,4,18,8],[18,9,18,20],[19,9,19,14],[19,15,19,20],[20,9,20,11],[20,12,20,14],[20,15,20,17],[20,18,20,20],[20,21,20,23],[20,24,20,27],[21,9,21,11],[21,12,21,14],[21,15,21,17],[21,18,21,20],[21,21,21,23],[21,24,21,27],[22,1,22,2],[22,3,22,27],[23,1,23,27],[24,6,24,17],[25,6,25,9],[25,10,25,13],[25,14,25,17],[26,6,26,7],[26,8,26,9],[26,10,26,11],[26,12,26,13],[26,14,26,15],[26,16,26,17],[28,1,28,2],[28,4,28,5],[28,18,28,24],[28,25,28,27],[29,1,29,2],[29,4,29,5],[29,18,29,24],[29,25,29,27],[30,1,30,2],[30,4,30,5],[30,18,30,24],[30,25,30,27],[31,1,31,2],[31,4,31,5],[31,18,31,24],[31,25,31,27],[32,1,32,2],[32,4,32,5],[32,18,32,24],[32,25,32,27],[33,1,33,27],[37,1,37,4],[37,15,37,27],[38,1,38,4],[38,16,38,27],[43,1,43,27],[45,1,45,27],[47,1,47,27],[55,1,55,27],[56,1,56,27],[57,4,57,8],[57,9,57,20],[58,9,58,14],[58,15,58,20],[59,9,59,11],[59,12,59,14],[59,15,59,17],[59,18,59,20],[59,21,59,23],[59,24,59,27],[60,9,60,11],[60,12,60,14],[60,15,60,17],[60,18,60,20],[60,21,60,23],[60,24,60,27],[61,4,61,8],[61,9,61,20],[62,9,62,14],[62,15,62,20],[63,9,63,11],[63,12,63,14],[63,15,63,17],[63,18,63,20],[63,21,63,23],[63,24,63,27],[64,9,64,11],[64,12,64,14],[64,15,64,17],[64,18,64,20],[64,21,64,23],[64,24,64,27],[65,1,65,2],[65,3,65,27],[66,1,66,27],[67,6,67,17],[68,6,68,9],[68,10,68,13],[68,14,68,17],[69,6,69,7],[69,8,69,9],[69,10,69,11],[69,12,69,13],[69,14,69,15],[69,16,69,17],[70,1,70,2],[70,4,70,5],[70,18,70,24],[70,25,70,27],[71,1,71,2],[71,4,71,5],[71,18,71,24],[71,25,71,27],[72,1,72,2],[72,4,72,5],[72,18,72,24],[72,25,72,27],[73,1,73,2],[73,4,73,5],[73,18,73,24],[73,25,73,27],[74,1,74,2],[74,4,74,5],[74,18,74,24],[74,25,74,27],[75,1,75,2],[75,4,75,5],[75,18,75,24],[75,25,75,27],[76,1,76,27],[77,1,77,27],[80,1,80,4],[80,16,80,27],[15,1,17,1],[19,1,21,1],[58,1,60,1],[62,1,64,1],[15,2,17,2],[19,2,21,2],[58,2,60,2],[62,2,64,2],[15,3,17,3],[19,3,21,3],[24,3,26,3],[58,3,60,3],[62,3,64,3],[67,3,69,3],[6,1,9,15],[6,16,7,23],[6,24,7,27],[8,16,9,23],[8,24,9,27],[14,21,15,27],[15,4,17,8],[10,1,11,27],[24,25,26,27],[24,4,26,5],[24,1,26,2],[49,1,52,15],[49,16,50,23],[49,24,50,27],[51,16,52,23],[51,24,52,27],[62,4,64,8],[58,4,60,8],[57,21,58,27],[67,1,69,2],[67,4,69,5],[67,18,69,24],[67,25,69,27],[34,1,35,27],[18,21,19,27],[19,4,21,8],[24,18,26,24],[53,1,54,27],[61,21,62,27]]}
[null,"PROGRAMA OPERATIVO ANUAL 2022"]
[]
[null,"FORMATO 01 \"DESARROLLO DE PROCESOS\""]
[]
[null,"UNIVERSIDAD: Universidad Tecnológica de Bahía de Banderas"]
[null,null,null,null,null,null,null,null,null,null,null,null,null,null,null,null,null,null,null,null,null,null,null,null,null,null,null,null,null,null,null,null,null,null,null,null,null,null,null,null,null,null,null,null,null,null,null,null,null,null,null,null,null,null,null,null,null,null,null,null,null,null,null,null,null,null,null,null,null,null,null,null,null,null,null,null,null,null,null,null,null,null,null,null,null,null,null,null,null,null,null,null,null,null,null,null,null,null,null,null,null,null,null,null,null,null,null,null,null,null,null,null,null,null,null,null,null,null,null,null,null,null,null,null,null,null,null,null,null,null,null,null,null,null,null,null,null,null,null,null,null,null,null,null,null,null,null,null,null,null,null,null,null,"GESTIÓN: APROVECHAMIENTO DE LAS TIC´S"]
[null,"DENOMINACIÓN DEL PROCESO:\n    \nGESTIÓN  (1)",null,null,null,null,null,null,null,null,null,null,null,null,null,null,"NUM. DE PROCESO",null,null,null,null,null,null,null,"TIPO DE PROCESO (3)               ",null,null,null,null,null,null,null,null,null,null,null,null,null,null,null,null,null,null,null,null,null,null,null,null,null,null,null,null,null,null,null,null,null,null,null,null,null,null,null,null,null,null,null,null,null,null,null,null,null,null,null,null,null,null,null,null,null,null,null,null,null,null,null,null,null,null,null,null,null,null,null,null,null,null,null,null,null,null,null,null,null,null,null,null,null,null,null,null,null,null,null,null,null,null,null,null,null,null,null,null,null,null,null,null,null,null,null,null,null,null,null,null,null,null,null,null,null,null,null,null,null,null,null,null,null,null,null,null,"INDICADOR","FÓRMULA"]
[null,null,null,null,null,null,null,null,null,null,null,null,null,null,null,null,null,null,null,null,null,null,null,null,null,null,null,null,null,null,null,null,null,null,null,null,null,null,null,null,null,null,null,null,null,null,null,null,null,null,null,null,null,null,null,null,null,null,null,null,null,null,null,null,null,null,null,null,null,null,null,null,null,null,null,null,null,null,null,null,null,null,null,null,null,null,null,null,null,null,null,null,null,null,null,null,null,null,null,null,null,null,null,null,null,null,null,null,null,null,null,null,null,null,null,null,null,null,null,null,null,null,null,null,null,null,null,null,null,null,null,null,null,null,null,null,null,null,null,null,null,null,null,null,null,null,null,null,null,null,null,null,null,"Cobertura en red inalámbrica y conexión a internet","Porcentaje de cobertura en red inalámbrica y conexión a internet en la institución","Cobertura de red inalámbrica e internet",95]
[null,null,null,null,null,null,null,null,null,null,null,null,null,null,null,null,4,null,null,null,null,null,null,null,"Eficacia",null,null,null,null,null,null,null,null,null,null,null,null,null,null,null,null,null,null,null,null,null,null,null,null,null,null,null,null,null,null,null,null,null,null,null,null,null,null,null,null,null,null,null,null,null,null,null,null,null,null,null,null,null,null,null,null,null,null,null,null,null,null,null,null,null,null,null,null,null,null,null,null,null,null,null,null,null,null,null,null,null,null,null,null,null,null,null,null,null,null,null,null,null,null,null,null,null,null,null,null,null,null,null,null,null,null,null,null,null,null,null,null,null,null,null,null,null,null,null,null,null,null,null,null,null,null,null,null,"Equipos de cómputo","Número de equipos de cómputo anuales necesarios para mantener actualizados los programas educativos (reportar los adquiridos durante el periodo)","equipos de cómputo",44365]
[null,null,null,null,null,null,null,null,null,null,null,null,null,null,null,null,null,null,null,null,null,null,null,null,null,null,null,null,null,null,null,null,null,null,null,null,null,null,null,null,null,null,null,null,null,null,null,null,null,null,null,null,null,null,null,null,null,null,null,null,null,null,null,null,null,null,null,null,null,null,null,null,null,null,null,null,null,null,null,null,null,null,null,null,null,null,null,null,null,null,null,null,null,null,null,null,null,null,null,null,null,null,null,null,null,null,null,null,null,null,null,null,null,null,null,null,null,null,null,null,null,null,null,null,null,null,null,null,null,null,null,null,null,null,null,null,null,null,null,null,null,null,null,null,null,null,null,null,null,null,null,null,null,"Software","Número de softwares anuales necesarios para mantener actualizados los programas educativos (reportar los adquiridos durante el periodo)","Software",10968]
[null,"ÁREA RESPONSABLE( 4 )",null,null,null,null,null,null,null,null,null,null,null,null,null,null,null,null,null,null,null,null,null,null,null,null,null,null,null,null,null,null,null,null,null,null,null,null,null,null,null,null,null,null,null,null,null,null,null,null,null,null,null,null,null,null,null,null,null,null,null,null,null,null,null,null,null,null,null,null,null,null,null,null,null,null,null,null,null,null,null,null,null,null,null,null,null,null,null,null,null,null,null,null,null,null,null,null,null,null,null,null,null,null,null,null,null,null,null,null,null,null,null,null,null,null,null,null,null,null,null,null,null,null,null,null,null,null,null,null,null,null,null,null,null,null,null,null,null,null,null,null,null,null,null,null,null,null,null,null,null,null,null,"Bibliotecas virtuales","Suscripción a bibliotecas virtuales. \nNOTA: Poner sí o no únicamente","Suscripción",107]
[null,null,null,null,null,null,null,null,null,null,null,null,null,null,null,null,null,null,null,null,null,null,null,null,null,null,null,null,null,null,null,null,null,null,null,null,null,null,null,null,null,null,null,null,null,null,null,null,null,null,null,null,null,null,null,null,null,null,null,null,null,null,null,null,null,null,null,null,null,null,null,null,null,null,null,null,null,null,null,null,null,null,null,null,null,null,null,null,null,null,null,null,null,null,null,null,null,null,null,null,null,null,null,null,null,null,null,null,null,null,null,null,null,null,null,null,null,null,null,null,null,null,null,null,null,null,null,null,null,null,null,null,null,null,null,null,null,null,null,null,null,null,null,null,null,null,null,null,null,null,null,null,null,"Aulas inteligentes","Número de  aulas inteligentes anuales establecida en la institución (reportar los adquiridos durante el periodo)","Aulas inteligentes",1525]
[null,"SISTEMAS",null,null,null,null,null,null,null,null,null,null,null,null,null,null,null,null,null,null,null,null,null,null,null,null,null,null,null,null,null,null,null,null,null,null,null,null,null,null,null,null,null,null,null,null,null,null,null,null,null,null,null,null,null,null,null,null,null,null,null,null,null,null,null,null,null,null,null,null,null,null,null,null,null,null,null,null,null,null,null,null,null,null,null,null,null,null,null,null,null,null,null,null,null,null,null,null,null,null,null,null,null,null,null,null,null,null,null,null,null,null,null,null,null,null,null,null,null,null,null,null,null,null,null,null,null,null,null,null,null,null,null,null,null,null,null,null,null,null,null,null,null,null,null,null,null,null,null,null,null,null,null,"GESTIÓN: AMPLIACIÓN Y MEJORAMIENTO DE LA INFRAESTRUCTURA DE LA EDUCACIÓN SUPERIOR "]
[null,"INDICADORES  ( 5 )",null,null,null,null,null,null,null,null,null,null,null,null,null,null,null,null,null,null,null,null,null,null,null,null,null,null,null,null,null,null,null,null,null,null,null,null,null,null,null,null,null,null,null,null,null,null,null,null,null,null,null,null,null,null,null,null,null,null,null,null,null,null,null,null,null,null,null,null,null,null,null,null,null,null,null,null,null,null,null,null,null,null,null,null,null,null,null,null,null,null,null,null,null,null,null,null,null,null,null,null,null,null,null,null,null,null,null,null,null,null,null,null,null,null,null,null,null,null,null,null,null,null,null,null,null,null,null,null,null,null,null,null,null,null,null,null,null,null,null,null,null,null,null,null,null,null,null,null,null,null,null,"Edificios de docencia de dos niveles","Número de edificios de docencia de dos niveles, sin tomar en cuenta los ya existentes, necesarios para alojar el aumento de la matrícula\nNota: el número de edificios de docencia de dos niveles tendrá que ser consistente con la proyección de crecimiento de matrícula de la universidad (reportar los construidos durante el periodo de análisis)","Edificios",48]
[null,"NOMBRE DEL INDICADOR (5.1)","FÓRMULA","UNIDAD DE MEDIDA","META INSTITUCIONAL A 2024 \nPROGRAMA INSTITUCIONAL DE DESARROLLO DE LA UNIVERSIDAD",null,null,null,null,"CONTEXTO ACTUAL Y A FUTURO DEL INDICADOR (5.2)",null,null,null,null,null,null,null,null,null,null,null,"Total alcanzado (Se reporta en el tercer cuatrimestre) (5.3)",null,null,null,null,null,null,null,null,null,null,null,null,null,null,null,null,null,null,null,null,null,null,null,null,null,null,null,null,null,null,null,null,null,null,null,null,null,null,null,null,null,null,null,null,null,null,null,null,null,null,null,null,null,null,null,null,null,null,null,null,null,null,null,null,null,null,null,null,null,null,null,null,null,null,null,null,null,null,null,null,null,null,null,null,null,null,null,null,null,null,null,null,null,null,null,null,null,null,null,null,null,null,null,null,null,null,null,null,null,null,null,null,null,null,null,null,null,null,null,null,null,null,null,null,null,null,null,null,null,null,null,"Edificios de docencia de un nivel","Número de edificios de docencia de un nivel, sin tomar en cuenta los ya existentes, necesarios para alojar el aumento de la matrícula\nNota: el número de edificios de docencia de un nivel tendrá que ser consistente con la proyección de crecimiento de matrícula de la universidad (reportar los construidos durante el periodo de análisis)","Edificios",16]
[null,"Software",{"$f":"(IF(B16=\"Cobertura en red inalámbrica y conexión a internet\",EY8,IF(B16=\"Equipos de cómputo\",EY9,IF(B16=\"Software\",EY10,IF(B16=\"Bibliotecas virtuales\",EY11,IF(B16=\"Aulas inteligentes\",EY12))))))","v":"Número de softwares anuales necesarios para mantener actualizados los programas educativos (reportar los adquiridos durante el periodo)"},{"$f":"(IF(B16=\"Cobertura en red inalámbrica y conexión a internet\",EZ8,IF(B16=\"Equipos de cómputo\",EZ9,IF(B16=\"Software\",EZ10,IF(B16=\"Bibliotecas virtuales\",EZ11,IF(B16=\"Aulas inteligentes\",EZ12))))))","v":"Software"},"Líneas estratégicas del PIDE  del SUT o SUP 2013-2018 al que se da atención.   ( 5 ).\nDiseñar guías de equipamiento informático y de software necesario para implementar la sistematización de los procesos.",null,null,null,null,2021,null,null,null,null,null,2022,null,null,null,null,null,null,null,null,null,null,null,null,null,null,null,null,null,null,null,null,null,null,null,null,null,null,null,null,null,null,null,null,null,null,null,null,null,null,null,null,null,null,null,null,null,null,null,null,null,null,null,null,null,null,null,null,null,null,null,null,null,null,null,null,null,null,null,null,null,null,null,null,null,null,null,null,null,null,null,null,null,null,null,null,null,null,null,null,null,null,null,null,null,null,null,null,null,null,null,null,null,null,null,null,null,null,null,null,null,null,null,null,null,null,null,null,null,null,null,null,null,null,null,null,null,null,null,null,null,null,null,null,null,null,null,null,null,"Edificios de laboratorios y talleres","Número de edificios de laboratorios y talleres, sin tomar en cuenta los ya existentes, necesarios para alojar el aumento de la matrícula\nNota: el número de edificios de laboratorios y talleres tendrá que ser consistente con la proyección de crecimiento de matrícula de la universidad (reportar los construidos durante el periodo de análisis)","Edificios",57]
[null,null,null,null,null,null,null,null,null,"Número actual",null,null,"Porcentaje actual",null,null,"Número a lograr",null,null,"Porcentaje a lograr",null,null,"Número alcanzado ",null,null,"Porcentaje alcanzado",null,null,null,null,null,null,null,null,null,null,null,null,null,null,null,null,null,null,null,null,null,null,null,null,null,null,null,null,null,null,null,null,null,null,null,null,null,null,null,null,null,null,null,null,null,null,null,null,null,null,null,null,null,null,null,null,null,null,null,null,null,null,null,null,null,null,null,null,null,null,null,null,null,null,null,null,null,null,null,null,null,null,null,null,null,null,null,null,null,null,null,null,null,null,null,null,null,null,null,null,null,null,null,null,null,null,null,null,null,null,null,null,null,null,null,null,null,null,null,null,null,null,null,null,null,null,null,null,"Bibliotecas","Número de edificios de biblioteca, sin tomar en cuenta los ya existentes, necesarios debido al aumento de matrícula para ofertar un servicio educativo de calidad.\nNota: el número de edificios de biblioteca tendrá que ser consistente con la proyección de crecimiento de matrícula de la universidad (reportar los construidos durante el periodo de análisis)","Edificios",14]
[null,null,null,null,null,null,null,null,null,4,null,null,100,null,null,5,null,null,100,null,null,null,null,null,null,null,null,null,null,null,null,null,null,null,null,null,null,null,null,null,null,null,null,null,null,null,null,null,null,null,null,null,null,null,null,null,null,null,null,null,null,null,null,null,null,null,null,null,null,null,null,null,null,null,null,null,null,null,null,null,null,null,null,null,null,null,null,null,null,null,null,null,null,null,null,null,null,null,null,null,null,null,null,null,null,null,null,null,null,null,null,null,null,null,null,null,null,null,null,null,null,null,null,null,null,null,null,null,null,null,null,null,null,null,null,null,null,null,null,null,null,null,null,null,null,null,null,null,null,null,null,null,null,"Número de cafeterías","Número de edificios de cafetería, sin tomar en cuenta los ya existentes, necesarios debido al aumento de matrícula para ofertar un servicio educativo de calidad.\nNota: el número de edificios de cafetería tendrá que ser consistente con la proyección de crecimiento de matrícula de la universidad (reportar los construidos durante el periodo de análisis)","Cafeterías",16]
[null,"NOMBRE DEL INDICADOR (5.1)","FÓRMULA","UNIDAD DE MEDIDA","META INSTITUCIONAL A 2024 \nPROGRAMA INSTITUCIONAL DE DESARROLLO DE LA UNIVERSIDAD",null,null,null,null,"CONTEXTO ACTUAL Y A FUTURO DEL INDICADOR (5.2)",null,null,null,null,null,null,null,null,null,null,null,"Total alcanzado (Se reporta en el tercer cuatrimestre) (5.3)",null,null,null,null,null,null,null,null,null,null,null,null,null,null,null,null,null,null,null,null,null,null,null,null,null,null,null,null,null,null,null,null,null,null,null,null,null,null,null,null,null,null,null,null,null,null,null,null,null,null,null,null,null,null,null,null,null,null,null,null,null,null,null,null,null,null,null,null,null,null,null,null,null,null,null,null,null,null,null,null,null,null,null,null,null,null,null,null,null,null,null,null,null,null,null,null,null,null,null,null,null,null,null,null,null,null,null,null,null,null,null,null,null,null,null,null,null,null,null,null,null,null,null,null,null,null,null,null,null,null,null,"Gimnasios/auditorios","Número de edificios de gimnasio/auditorio, sin tomar en cuenta los ya existentes, necesarios debido al aumento de matrícula para ofertar un servicio educativo de calidad.\nNota: el número de edificios de gimnasio/auditorio tendrá que ser consistente con la proyección de crecimiento de matrícula de la universidad (reportar los construidos durante el periodo de análisis)","Gimnasios/auditorios",27]
[null,"Equipos de cómputo",{"$f":"(IF(B20=\"Cobertura en red inalámbrica y conexión a internet\",EY8,IF(B20=\"Equipos de cómputo\",EY9,IF(B20=\"Software\",EY10,IF(B20=\"Bibliotecas virtuales\",EY11,IF(B20=\"Aulas inteligentes\",EY12))))))","v":"Número de equipos de cómputo anuales necesarios para mantener actualizados los programas educativos (reportar los adquiridos durante el periodo)"},{"$f":"(IF(B20=\"Cobertura en red inalámbrica y conexión a internet\",EZ8,IF(B20=\"Equipos de cómputo\",EZ9,IF(B20=\"Software\",EZ10,IF(B20=\"Bibliotecas virtuales\",EZ11,IF(B20=\"Aulas inteligentes\",EZ12))))))","v":"equipos de cómputo"},"Líneas estratégicas del PIDE  del SUT o SUP 2013-2018 al que se da atención.   ( 5 ).\nDiseñar guías de equipamiento informático y de software necesario para implementar la sistematización de los procesos.",null,null,null,null,2021,null,null,null,null,null,2022,null,null,null,null,null,null,null,null,null,null,null,null,null,null,null,null,null,null,null,null,null,null,null,null,null,null,null,null,null,null,null,null,null,null,null,null,null,null,null,null,null,null,null,null,null,null,null,null,null,null,null,null,null,null,null,null,null,null,null,null,null,null,null,null,null,null,null,null,null,null,null,null,null,null,null,null,null,null,null,null,null,null,null,null,null,null,null,null,null,null,null,null,null,null,null,null,null,null,null,null,null,null,null,null,null,null,null,null,null,null,null,null,null,null,null,null,null,null,null,null,null,null,null,null,null,null,null,null,null,null,null,null,null,null,null,null,null,"Edificios de rectoría","Número de edificios de rectoría, sin tomar en cuenta los existentes, necesarios por el aumento de la matrícula para dar servicio de calidad a los alumnos. Nota: el número de edificios de rectoría tendrá que ser consistente con la proyección de crecimiento de matrícula de la universidad","Edificios",20]
[null,null,null,null,null,null,null,null,null,"Número actual",null,null,"Porcentaje actual",null,null,"Número a lograr",null,null,"Porcentaje a lograr",null,null,"Número alcanzado ",null,null,"Porcentaje alcanzado",null,null,null,null,null,null,null,null,null,null,null,null,null,null,null,null,null,null,null,null,null,null,null,null,null,null,null,null,null,null,null,null,null,null,null,null,null,null,null,null,null,null,null,null,null,null,null,null,null,null,null,null,null,null,null,null,null,null,null,null,null,null,null,null,null,null,null,null,null,null,null,null,null,null,null,null,null,null,null,null,null,null,null,null,null,null,null,null,null,null,null,null,null,null,null,null,null,null,null,null,null,null,null,null,null,null,null,null,null,null,null,null,null,null,null,null,null,null,null,null,null,null,null,null,null,null,null,null,"Edificios de vinculación","Número de edificios de vinculación, sin tomar en cuenta los existentes, necesarios para ofertar un servicio de calidad.                                                                                            Nota: el número de edificios de vinculación tendrá que ser consistente con la proyección de crecimiento de matrícula de la universidad (reportar los construidos durante el periodo de análisis)","Edificios",23]
[null,null,null,null,null,null,null,null,null,410,null,null,100,null,null,338,null,null,100,null,null,null,null,null,null,null,null,null,null,null,null,null,null,null,null,null,null,null,null,null,null,null,null,null,null,null,null,null,null,null,null,null,null,null,null,null,null,null,null,null,null,null,null,null,null,null,null,null,null,null,null,null,null,null,null,null,null,null,null,null,null,null,null,null,null,null,null,null,null,null,null,null,null,null,null,null,null,null,null,null,null,null,null,null,null,null,null,null,null,null,null,null,null,null,null,null,null,null,null,null,null,null,null,null,null,null,null,null,null,null,null,null,null,null,null,null,null,null,null,null,null,null,null,null,null,null,null,null,null,null,null,null,null,"Edificios de almacén","Número de edificios de almacén, sin tomar en cuenta los ya existentes, necesarios debido al crecimiento de la infraestructura física de la Universidad.   Nota: el número de edificios de almacén tendrá que ser consistente con la proyección de crecimiento de infraestructura física de la universidad (reportar los construidos durante el periodo de análisis)","Edificios",25]
[null,"OBJETIVO AL QUE ATIENDE DE ACUERDO AL PSE 2020-2024    (6)",null,"6.4 Generar entornos favorables para el proceso de enseñanza-aprendizaje en los \ndiferentes tipos, niveles y modalidades del Sistema Educativo Nacional.",null,null,null,null,null,null,null,null,null,null,null,null,null,null,null,null,null,null,null,null,null,null,null,null,null,null,null,null,null,null,null,null,null,null,null,null,null,null,null,null,null,null,null,null,null,null,null,null,null,null,null,null,null,null,null,null,null,null,null,null,null,null,null,null,null,null,null,null,null,null,null,null,null,null,null,null,null,null,null,null,null,null,null,null,null,null,null,null,null,null,null,null,null,null,null,null,null,null,null,null,null,null,null,null,null,null,null,null,null,null,null,null,null,null,null,null,null,null,null,null,null,null,null,null,null,null,null,null,null,null,null,null,null,null,null,null,null,null,null,null,null,null,null,null,null,null,null,null,null,"Canchas deportivas","Número de canchas deportivas sin tomar en cuenta las ya existentes, necesarias debido al aumento de matrícula para ofertar un servicio educativo de calidad.\nNota: el número de canchas deportivas tendrá que ser consistente con la proyección de crecimiento de matrícula de la universidad (reportar los construidos durante el periodo de análisis)","Canchas",53]
[null,"CALENDARIZACIÓN Y SEGUIMIENTO DE LAS PRINCIPALES ACTIVIDADES  (7)",null,null,null,null,null,null,null,null,null,null,null,null,null,null,null,null,null,null,null,null,null,null,null,null,null,null,null,null,null,null,null,null,null,null,null,null,null,null,null,null,null,null,null,null,null,null,null,null,null,null,null,null,null,null,null,null,null,null,null,null,null,null,null,null,null,null,null,null,null,null,null,null,null,null,null,null,null,null,null,null,null,null,null,null,null,null,null,null,null,null,null,null,null,null,null,null,null,null,null,null,null,null,null,null,null,null,null,null,null,null,null,null,null,null,null,null,null,null,null,null,null,null,null,null,null,null,null,null,null,null,null,null,null,null,null,null,null,null,null,null,null,null,null,null,null,null,null,null,null,null,null,"TIPO DE  PROCESO"]
[null,"ACTIVIDADES",null,"UNIDAD DE MEDIDA","META  ANUAL",null,"CALENDARIO 2022                                    CUATRIMESTRAL",null,null,null,null,null,null,null,null,null,null,null,"JUSTIFICACIÓN DE LAS DESVIACIONES POSITIVAS O NEGATIVAS (8)",null,null,null,null,null,null,"ÁREA\nEJECUTORA (9)",null,null,null,null,null,null,null,null,null,null,null,null,null,null,null,null,null,null,null,null,null,null,null,null,null,null,null,null,null,null,null,null,null,null,null,null,null,null,null,null,null,null,null,null,null,null,null,null,null,null,null,null,null,null,null,null,null,null,null,null,null,null,null,null,null,null,null,null,null,null,null,null,null,null,null,null,null,null,null,null,null,null,null,null,null,null,null,null,null,null,null,null,null,null,null,null,null,null,null,null,null,null,null,null,null,null,null,null,null,null,null,null,null,null,null,null,null,null,null,null,null,null,null,null,null,null,null,"Eficiencia"]
[null,null,null,null,null,null,1,null,null,null,2,null,null,null,3,null,null,null,null,null,null,null,null,null,null,null,null,null,null,null,null,null,null,null,null,null,null,null,null,null,null,null,null,null,null,null,null,null,null,null,null,null,null,null,null,null,null,null,null,null,null,null,null,null,null,null,null,null,null,null,null,null,null,null,null,null,null,null,null,null,null,null,null,null,null,null,null,null,null,null,null,null,null,null,null,null,null,null,null,null,null,null,null,null,null,null,null,null,null,null,null,null,null,null,null,null,null,null,null,null,null,null,null,null,null,null,null,null,null,null,null,null,null,null,null,null,null,null,null,null,null,null,null,null,null,null,null,null,null,null,null,null,null,"Eficacia"]
[null,null,null,null,null,null,"PROG",null,"ALC",null,"PROG",null,"ALC",null,"PROG",null,"ALC",null,null,null,null,null,null,null,null,null,null,null,null,null,null,null,null,null,null,null,null,null,null,null,null,null,null,null,null,null,null,null,null,null,null,null,null,null,null,null,null,null,null,null,null,null,null,null,null,null,null,null,null,null,null,null,null,null,null,null,null,null,null,null,null,null,null,null,null,null,null,null,null,null,null,null,null,null,null,null,null,null,null,null,null,null,null,null,null,null,null,null,null,null,null,null,null,null,null,null,null,null,null,null,null,null,null,null,null,null,null,null,null,null,null,null,null,null,null,null,null,null,null,null,null,null,null,null,null,null,null,null,null,null,null,null,null,"Pertinencia"]
[null,null,null,null,null,null,"#","%","#","%","#","%","#","%","#","%","#","%",null,null,null,null,null,null,null,null,null,null,null,null,null,null,null,null,null,null,null,null,null,null,null,null,null,null,null,null,null,null,null,null,null,null,null,null,null,null,null,null,null,null,null,null,null,null,null,null,null,null,null,null,null,null,null,null,null,null,null,null,null,null,null,null,null,null,null,null,null,null,null,null,null,null,null,null,null,null,null,null,null,null,null,null,null,null,null,null,null,null,null,null,null,null,null,null,null,null,null,null,null,null,null,null,null,null,null,null,null,null,null,null,null,null,null,null,null,null,null,null,null,null,null,null,null,null,null,null,null,null,null,null,null,null,null,"Vinculación"]
[null,"Baja de equipo de cómputo obsoleto no funcional",null,"Equipos de cómputo",72,null,null,null,null,null,null,null,null,null,72,100,null,null,null,null,null,null,null,null,null,"Sistemas",null,null,null,null,null,null,null,null,null,null,null,null,null,null,null,null,null,null,null,null,null,null,null,null,null,null,null,null,null,null,null,null,null,null,null,null,null,null,null,null,null,null,null,null,null,null,null,null,null,null,null,null,null,null,null,null,null,null,null,null,null,null,null,null,null,null,null,null,null,null,null,null,null,null,null,null,null,null,null,null,null,null,null,null,null,null,null,null,null,null,null,null,null,null,null,null,null,null,null,null,null,null,null,null,null,null,null,null,null,null,null,null,null,null,null,null,null,null,null,null,null,null,null,null,null,null,null,"Equidad de Género"]
[null,"Implementar Sistema de Tickets de servicio para incidencias de soporte para todos usuarios",null,"Software",1,null,null,null,null,null,0.5,50,null,null,1,100,null,null,null,null,null,null,null,null,null,"Sistemas"]
[null,"Mantenimiento Preventivo a Equipos de Cómputo",null,"Equipos de cómputo",316,null,316,100,null,null,316,100,null,null,316,100,null,null,null,null,null,null,null,null,null,"Sistemas"]
[null,"Actualización de Sistema Escolar",null,"Software",1,null,null,null,null,null,null,null,null,null,1,100,null,null,null,null,null,null,null,null,null,"Sistemas"]
[]
[null,"DESCRIPCIÓN DEL ALCANCE DEL INDICADOR Y EFECTO SOCIOECONOMICO    (10)"]
[null,"Incrementar las herramientas tecnológicas para así, poder dar un mejor servicios a nuestros estudiantes y eficientar los procesos de la institución."]
[]
[]
[null,"Mtra. Carmina Yadira Regalado Mardueño",null,null,null,null,null,null,null,null,null,null,null,null,null,"Ing. Catalina Luna Ortega"]
[null,"NOMBRE Y FIRMA DEL/LA RECTOR(A)",null,null,null,null,null,null,null,null,null,null,null,null,null,null,"NOMBRE Y FIRMA DE LA PERSONA RESPONSABLE DEL PROCESO"]
[]
[]
[]
[]
[null,"PROGRAMA OPERATIVO ANUAL  2022"]
[]
[null,"FORMATO 01 \"DESARROLLO DE PROCESOS\""]
[]
[null,"UNIVERSIDAD: Universidad Tecnológica de Bahía de Banderas"]
[]
[null,"DENOMINACIÓN DEL PROCESO:\n    \nGESTIÓN   (1)",null,null,null,null,null,null,null,null,null,null,null,null,null,null,"NUM. DE PROCESO",null,null,null,null,null,null,null,"TIPO DE PROCESO  (3)              "]
[]
[null,null,null,null,null,null,null,null,null,null,null,null,null,null,null,null,"1      (2)",null,null,null,null,null,null,null,"Eficacia"]
[]
[null,"ÁREA RESPONSABLE ( 4 )"]
[]
[]
[null,"INDICADORES  ( 5 )"]
[null,"NOMBRE DEL INDICADOR (5.1)","FÓRMULA","UNIDAD DE MEDIDA","META INSTITUCIONAL A 2024 \nPROGRAMA INSTITUCIONAL DE DESARROLLO DE LA UNIVERSIDAD",null,null,null,null,"CONTEXTO ACTUAL Y A FUTURO DEL INDICADOR (5.2)",null,null,null,null,null,null,null,null,null,null,null,"Total alcanzado (Se reporta en el tercer cuatrimestre) (5.3)"]
[null,"Canchas deportivas",{"$f":"(IF(B59=\"Porcentaje de utilización de la infraestructura\",#REF!,IF(B59=\"Edificios de docencia de dos niveles\",EY14,IF(B59=\"Edificios de docencia de un nivel\",EY15,IF(B59=\"Edificios de laboratorios y talleres\",EY16,IF(B59=\"Bibliotecas\",EY17,IF(B59=\"Número de cafeterías\",EY18,IF(B59=\"Gimnasios/auditorios\",EY19,IF(B59=\"Edificios de rectoría\",EY20,IF(B59=\"Edificios de vinculación\",EY21,IF(B59=\"Edificios de almacén\",EY22,IF(B59=\"Canchas deportivas\",EY23))))))))))))","v":"Número de canchas deportivas sin tomar en cuenta las ya existentes, necesarias debido al aumento de matrícula para ofertar un servicio educativo de calidad.\nNota: el número de canchas deportivas tendrá que ser consistente con la proyección de crecimiento de matrícula de la universidad (reportar los construidos durante el periodo de análisis)"},{"$f":"(IF(B59=\"Porcentaje de utilización de la infraestructura\",#REF!,IF(B59=\"Edificios de docencia de dos niveles\",EZ14,IF(B59=\"Edificios de docencia de un nivel\",EZ15,IF(B59=\"Edificios de laboratorios y talleres\",EZ16,IF(B59=\"Bibliotecas\",EZ17,IF(B59=\"Número de cafeterías\",EZ18,IF(B59=\"Gimnasios/auditorios\",EZ19,IF(B59=\"Edificios de rectoría\",EZ20,IF(B59=\"Edificios de vinculación\",EZ21,IF(B59=\"Edificios de almacén\",EZ22,IF(B59=\"Canchas deportivas\",EZ23))))))))))))","v":"Canchas"},null,null,null,null,null,2021,null,null,null,null,null,2022]
[null,null,null,null,null,null,null,null,null,"Número actual",null,null,"Porcentaje actual",null,null,"Número a lograr",null,null,"Porcentaje a lograr",null,null,"Número alcanzado ",null,null,"Porcentaje alcanzado"]
[]
[null,"NOMBRE DEL INDICADOR (5.1)","FÓRMULA","UNIDAD DE MEDIDA","META INSTITUCIONAL A 2024 \nPROGRAMA INSTITUCIONAL DE DESARROLLO DE LA UNIVERSIDAD",null,null,null,null,"CONTEXTO ACTUAL Y A FUTURO DEL INDICADOR (5.2)",null,null,null,null,null,null,null,null,null,null,null,"Total alcanzado (Se reporta en el tercer cuatrimestre) (5.3)"]
[null,"Edificios de docencia de dos niveles",{"$f":"(IF(B63=\"Porcentaje de utilización de la infraestructura\",#REF!,IF(B63=\"Edificios de docencia de dos niveles\",EY14,IF(B63=\"Edificios de docencia de un nivel\",EY15,IF(B63=\"Edificios de laboratorios y talleres\",EY16,IF(B63=\"Bibliotecas\",EY17,IF(B63=\"Número de cafeterías\",EY18,IF(B63=\"Gimnasios/auditorios\",EY19,IF(B63=\"Edificios de rectoría\",EY20,IF(B63=\"Edificios de vinculación\",EY21,IF(B63=\"Edificios de almacén\",EY22,IF(B63=\"Canchas deportivas\",EY23))))))))))))","v":"Número de edificios de docencia de dos niveles, sin tomar en cuenta los ya existentes, necesarios para alojar el aumento de la matrícula\nNota: el número de edificios de docencia de dos niveles tendrá que ser consistente con la proyección de crecimiento de matrícula de la universidad (reportar los construidos durante el periodo de análisis)"},{"$f":"(IF(B63=\"Porcentaje de utilización de la infraestructura\",#REF!,IF(B63=\"Edificios de docencia de dos niveles\",EZ14,IF(B63=\"Edificios de docencia de un nivel\",EZ15,IF(B63=\"Edificios de laboratorios y talleres\",EZ16,IF(B63=\"Bibliotecas\",EZ17,IF(B63=\"Número de cafeterías\",EZ18,IF(B63=\"Gimnasios/auditorios\",EZ19,IF(B63=\"Edificios de rectoría\",EZ20,IF(B63=\"Edificios de vinculación\",EZ21,IF(B63=\"Edificios de almacén\",EZ22,IF(B63=\"Canchas deportivas\",EZ23))))))))))))","v":"Edificios"},null,null,null,null,null,2021,null,null,null,null,null,2022]
[null,null,null,null,null,null,null,null,null,"Número actual",null,null,"Porcentaje actual",null,null,"Número a lograr",null,null,"Porcentaje a lograr",null,null,"Número alcanzado ",null,null,"Porcentaje alcanzado"]
[]
[null,"OBJETIVO AL QUE ATIENDE DE ACUERDO AL PSE 2020-2024    (6)"]
[null,"CALENDARIZACIÓN Y SEGUIMIENTO DE LAS PRINCIPALES ACTIVIDADES  (7)"]
[null,"ACTIVIDADES",null,"UNIDAD DE MEDIDA","META  ANUAL",null,"CALENDARIO 2022                                     CUATRIMESTRAL",null,null,null,null,null,null,null,null,null,null,null,"JUSTIFICACIÓN DE LAS DESVIACIONES POSITIVAS O NEGATIVAS (8)",null,null,null,null,null,null,"ÁREA\nEJECUTORA (9)"]
[null,null,null,null,null,null,1,null,null,null,2,null,null,null,3]
[null,null,null,null,null,null,"PROG",null,"ALC",null,"PROG",null,"ALC",null,"PROG",null,"ALC"]
[null,null,null,null,null,null,"#","%","#","%","#","%","#","%","#","%","#","%"]
[]
[]
[]
[]
[]
[null,"DESCRIPCIÓN DEL ALCANCE DEL INDICADOR Y EFECTO SOCIOECONOMICO    (10)"]
[]
[]
[]
[null,"NOBRE Y FIRMA DEL/LA RECTOR(A)",null,null,null,null,null,null,null,null,null,null,null,null,null,null,"NOMBRE Y FIRMA DE LA PERSONA RESPONSABLE DEL PROCESO"]